Workbook

Sheet AER only (hidden)
B1: Data in this worksheet is used for data validation and database purposes.
B2: Date last modified:
B3: 14 April 2015 | C3: merged cell C46/47
B4: 17 April 2015 | C4: adjusted dms_RYE to automate based on dms_Model (NB: EB & CA refer to CRCP_y5)
B5: 14 May 2015 | C5: adapted this cover for use in CA & EB RINs
B7: October 2015 | C7: added full Trading Name for worksheet headings
B8: USES NAMED RANGES FLAG | C8: yes
B9: dms_Model_List | C9: dms_Worksheet_List | E9: dms_RYE_Formula_Result
B10: ARR | C10: REGULATORY REPORTING STATEMENT | E10: =LEFT(CRY,2)&RIGHT(CRY,2) -> 2016
B11: CA | C11: CATEGORY ANALYSIS | E11: =LEFT(CRY,2)&RIGHT(CRY,2) -> 2016
B12: CAM/Service change Backcast | C12: REGULATORY REPORTING STATEMENT | E12: =LEFT(dms_FRCP_FinalYear_Num,2)&RIGHT(dms_FRCP_FinalYear_Num,2) -> 2022
B13: CPI | C13: CPI
B14: EB | C14: ECONOMIC BENCHMARKING | E14: =LEFT(CRY,2)&RIGHT(CRY,2) -> 2016
B15: PTRM | C15: POST TAX REVENUE MODEL | E15: =LEFT(dms_FRCP_FinalYear_Num,2)&RIGHT(dms_FRCP_FinalYear_Num,2) -> 2022
B16: Reset | C16: REGULATORY REPORTING STATEMENT | E16: =LEFT(dms_FRCP_FinalYear_Num,2)&RIGHT(dms_FRCP_FinalYear_Num,2) -> 2022
B17: RFM | C17: ROLL FORWARD MODEL | E17: =LEFT(dms_CRCP_FinalYear_Num,2)&RIGHT(dms_CRCP_FinalYear_Num,2) -> 2015
B18: WACC | C18: WEIGHTED AVERAGE COST OF CAPITAL
N19: Feeder Types | R19: TasNetworks (D)
N20: CBD | O20: Urban | P20: Short rural | Q20: long rural | R20: EXTRA
B21: dms_TradingName_List | C21: dms_TradingNameFull_List | D21: dms_ABN_List | E21: dms_State_List | F21: dms_Sector_List | G21: dms_Segment_List | H21: dms_FormControl_List | I21: dms_CRCPlength_List | J21: dms_FRCPlength_List | K21: dms_JurisdictionList | L21: dms_663_List | M21: dms_DeterminationRef_List | N21: dms_CBD_flag | O21: dms_Urban_flag | P21: dms_ShortRural_flag | Q21: dms_LongRural_flag | R21: dms_FeederType_5_flag | S21: dms_FeederName_1 | T21: dms_FeederName_2 | U21: dms_FeederName_3 | V21: dms_FeederName_4 | W21: dms_FeederName_5
B22: ActewAGL Distribution | C22: ActewAGL Distribution | D22: 76670568688 | E22: ACT | F22: Electricity | G22: Distribution | H22: Revenue cap | I22: 5 | J22: 6 | K22: ACT | L22: 5 | M22: 2014-19 Distribution Determination | N22: NO | O22: YES | P22: YES | Q22: NO | R22: NO | S22: CBD | T22: Urban | U22: Short rural | V22: Long rural
B23: ActewAGL Distribution (Tx Assets) | C23: ActewAGL Distribution (Tx Assets) | D23: 76670568688 | E23: ACT | F23: Electricity | G23: Distribution | H23: Revenue cap | I23: 5 | J23: 5 | K23: ACT | L23: 5 | M23: distribution determination | S23: CBD | T23: Urban | U23: Short rural | V23: Long rural
B24: AGN | C24: AGN | D24: 78551685 | E24: SA | F24: Gas | G24: Distribution | H24: Revenue cap | I24: 5 | J24: 5 | K24: SA | L24: 5 | M24: distribution determination | S24: CBD | T24: Urban | U24: Short rural | V24: Long rural
B25: Ausgrid | C25: Ausgrid | D25: 67505337385 | E25: NSW | F25: Electricity | G25: Distribution | H25: Revenue cap | I25: 5 | J25: 5 | K25: NSW | L25: 5 | M25: 2014-19 Distribution Determination | N25: YES | O25: YES | P25: YES | Q25: YES | R25: NO | S25: CBD | T25: Urban | U25: Short rural | V25: Long rural
B26: Ausgrid (Tx Assets) | C26: Ausgrid (Tx Assets) | D26: 67505337385 | E26: NSW | F26: Electricity | G26: Distribution | H26: Revenue cap | I26: 5 | J26: 5 | K26: NSW | L26: 5 | M26: distribution determination | S26: CBD | T26: Urban | U26: Short rural | V26: Long rural
B27: AusNet (D) | C27: AusNet Electricity Services | D27: 91064651118 | E27: Vic | F27: Electricity | G27: Distribution | H27: Revenue cap | I27: 5 | J27: 5 | K27: Vic | L27: 2 | M27: 2016-20 Distribution Determination | N27: NO | O27: YES | P27: YES | Q27: YES | R27: NO | S27: CBD | T27: Urban | U27: Short rural | V27: Long rural
B28: AusNet (T) | C28: AusNet (T) | D28: 48116124362 | E28: Vic | F28: Electricity | G28: Transmission | H28: Revenue cap | I28: 5 | J28: 5 | K28: Vic | L28: 2 | M28: distribution determination | S28: CBD | T28: Urban | U28: Short rural | V28: Long rural
B29: Australian Distribution Co. | C29: Australian Distribution Co. | D29: 11222333444 | E29: - | F29: Electricity | G29: Distribution | H29: Revenue cap | I29: 5 | J29: 5 | K29: NSW | L29: 2 | M29: distribution determination | S29: CBD | T29: Urban | U29: Short rural | V29: Long rural
B30: Australian Transmission Co. | C30: Australian Transmission Co. | D30: 11222333444 | E30: - | F30: Electricity | G30: Transmission | H30: Revenue cap | I30: 5 | J30: 5 | K30: Vic | L30: 5 | M30: distribution determination | S30: CBD | T30: Urban | U30: Short rural | V30: Long rural
B31: CitiPower | C31: CitiPower | D31: 76064651056 | E31: Vic | F31: Electricity | G31: Distribution | H31: Revenue cap | I31: 5 | J31: 5 | K31: Vic | L31: 2 | M31: 2016-20 Distribution Determination | N31: YES | O31: YES | P31: NO | Q31: NO | R31: NO | S31: CBD | T31: Urban | U31: Short rural | V31: Long rural
B32: Directlink | C32: Directlink | D32: 16779340889 | E32: NSW | F32: Electricity | G32: Transmission | H32: Revenue cap | I32: 10 | J32: 5 | K32: Qld | L32: 5 | M32: distribution determination | S32: CBD | T32: Urban | U32: Short rural | V32: Long rural
B33: ElectraNet | C33: ElectraNet | D33: 41094482416 | E33: SA | F33: Electricity | G33: Transmission | H33: Revenue cap | I33: 5 | J33: 5 | K33: SA | L33: 5 | M33: distribution determination | S33: CBD | T33: Urban | U33: Short rural | V33: Long rural
B34: Endeavour Energy | C34: Endeavour Energy | D34: 59253130878 | E34: NSW | F34: Electricity | G34: Distribution | H34: Revenue cap | I34: 5 | J34: 5 | K34: NSW | L34: 5 | M34: 2014-19 Distribution Determination | N34: NO | O34: YES | P34: YES | Q34: YES | R34: NO | S34: CBD | T34: Urban | U34: Short rural | V34: Long rural
B35: Energex | C35: Energex | D35: 40078849055 | E35: Qld | F35: Electricity | G35: Distribution | H35: Revenue cap | I35: 5 | J35: 5 | K35: Qld | L35: 5 | M35: 2015-20 Distribution Determination | N35: YES | O35: YES | P35: YES | Q35: NO | R35: NO | S35: CBD | T35: Urban | U35: Short rural | V35: Long rural
B36: Ergon Energy | C36: Ergon Energy | D36: 50087646062 | E36: Qld | F36: Electricity | G36: Distribution | H36: Revenue cap | I36: 5 | J36: 5 | K36: Qld | L36: 5 | M36: 2015-20 Distribution Determination | N36: NO | O36: YES | P36: YES | Q36: YES | R36: NO | S36: CBD | T36: Urban | U36: Short rural | V36: Long rural
B37: Essential Energy | C37: Essential Energy | D37: 37428185226 | E37: NSW | F37: Electricity | G37: Distribution | H37: Revenue cap | I37: 5 | J37: 5 | K37: NSW | L37: 5 | M37: 2014-19 Distribution Determination | N37: NO | O37: YES | P37: YES | Q37: YES | R37: NO | S37: CBD | T37: Urban | U37: Short rural | V37: Long rural
B38: Jemena Electricity | C38: Jemena Electricity | D38: 82064651083 | E38: Vic | F38: Electricity | G38: Distribution | H38: Revenue cap | I38: 5 | J38: 5 | K38: Vic | L38: 2 | M38: 2016-20 Distribution Determination | N38: NO | O38: YES | P38: YES | Q38: NO | R38: NO | S38: CBD | T38: Urban | U38: Short rural | V38: Long rural
B39: Murraylink | C39: Murraylink | D39: 79181207909 | E39: NSW | F39: Electricity | G39: Transmission | H39: Revenue cap | I39: 5 | J39: 5 | K39: SA | L39: 5 | M39: distribution determination | S39: CBD | T39: Urban | U39: Short rural | V39: Long rural
B40: Powercor Australia | C40: Powercor Australia | D40: 89064651109 | E40: Vic | F40: Electricity | G40: Distribution | H40: Revenue cap | I40: 5 | J40: 5 | K40: Vic | L40: 2 | M40: 2016-20 Distribution Determination | N40: NO | O40: YES | P40: YES | Q40: YES | R40: NO | S40: CBD | T40: Urban | U40: Short rural | V40: Long rural
B41: Powerlink | C41: Queensland Electricity Transmission Corporation Limited trading as Powerlink Queensland | D41: 82078849233 | E41: Qld | F41: Electricity | G41: Transmission | H41: Revenue cap | I41: 5 | J41: 5 | K41: Qld | L41: 5 | M41: distribution determination | S41: CBD | T41: Urban | U41: Short rural | V41: Long rural
B42: Qld,SA &ACT Gas Reset | C42: Qld,SA &ACT Gas Reset | D42: 22222222222 | E42: - | F42: Gas | G42: Distribution | H42: ? | I42: 5 | J42: 5 | K42: - | L42: x | M42: distribution determination | S42: CBD | T42: Urban | U42: Short rural | V42: Long rural
B43: SA Power Networks | C43: SA Power Networks | D43: 13332330749 | E43: SA | F43: Electricity | G43: Distribution | H43: Revenue cap | I43: 5 | J43: 5 | K43: SA | L43: 5 | M43: 2015-20 Distribution Determination | N43: YES | O43: YES | P43: YES | Q43: YES | R43: NO | S43: CBD | T43: Urban | U43: Short rural | V43: Long rural
B44: TasNetworks (D) | C44: TasNetworks (D) | D44: 24167357299 | E44: Tas | F44: Electricity | G44: Distribution | H44: Revenue cap | I44: 5 | J44: 5 | K44: Tas | L44: 5 | M44: distribution determination | N44: YES | O44: YES | P44: YES | Q44: YES | R44: YES | S44: Critical Infrastructure | T44: High density commercial | U44: Urban | V44: High density rural | W44: Low density rural
B45: TasNetworks (T) | C45: TasNetworks (T) | D45: 24167357299 | E45: Tas | F45: Electricity | G45: Transmission | H45: Revenue cap | I45: 5 | J45: 5 | K45: Tas | L45: 5 | M45: distribution determination | S45: CBD | T45: Urban | U45: Short rural | V45: Long rural
B46: TransGrid | C46: TransGrid | D46: 19622755774 | E46: NSW | F46: Electricity | G46: Transmission | H46: Revenue cap | I46: 5 | J46: 5 | K46: NSW | L46: 5 | M46: distribution determination | S46: CBD | T46: Urban | U46: Short rural | V46: Long rural
B47: United Energy | C47: United Energy | D47: 70064651029 | E47: Vic | F47: Electricity | G47: Distribution | H47: Revenue cap | I47: 5 | J47: 5 | K47: Vic | L47: 2 | M47: 2016-20 Distribution Determination | N47: NO | O47: YES | P47: YES | Q47: NO | R47: NO | S47: CBD | T47: Urban | U47: Short rural | V47: Long rural
B48: DNSP Backcasting | C48: Victorian DNSP Backcasting | D48: 33333333666 | E48: Vic | F48: Electricity | G48: Distribution | H48: ? | I48: 5 | J48: 5 | K48: - | L48: x | M48: distribution determination | S48: CBD | T48: Urban | U48: Short rural | V48: Long rural
B49: DNSP Reset | C49: Victorian DNSP Reset | D49: 33333333333 | E49: Vic | F49: Electricity | G49: Distribution | H49: ? | I49: 5 | J49: 5 | K49: - | L49: x | M49: distribution determination | S49: CBD | T49: Urban | U49: Short rural | V49: Long rural
B54: dms_SourceList | C54: dms_FormControl_Choices | E54: dms_FRCPlength_Num_List | F54: dms_FinalYear_List
B55: After appeal | C55: Revenue cap | E55: 1 | F55: FRCP_y1
B56: Draft decision | C56: Revenue yield | E56: 2 | F56: FRCP_y2
B57: Final decision | C57: Weighted average price cap | E57: 3 | F57: FRCP_y3
B58: Pass through decision | E58: 4 | F58: FRCP_y4
B59: PTRM annual update | E59: 5 | F59: FRCP_y5
B60: PTRM interim update 1 | E60: 6 | F60: FRCP_y6
B61: PTRM interim update 2 | E61: 7 | F61: FRCP_y7
B62: PTRM interim update 3 | E62: 8 | F62: FRCP_y8
B63: PTRM interim update 4 | E63: 9 | F63: FRCP_y9
B64: Regulatory proposal | E64: 10 | F64: FRCP_y10
B65: Reporting
B66: Revised regulatory proposal
B67: RFM annual update
B68: WACC annual update
B71: Notes
B72: RFM - Base year is usually CRCP_y1 | C72: EG. Victorian 2016-20 - base year = 2011
B73: RFM - Form of Control Field is not relevant
B74: PTRM - capture base year input by NSP | C74: =PTRM input'!Q7

Sheet Contents
B3: =CONCATENATE(dms_Segment," Network Service Provider") -> Distribution Network Service Provider
B4: Annual Reporting RIN Template
B5: Table of Contents
C8: Instructions
C9: Business & other details
B12: CATEGORY ANALYSIS | C12: STPIS | D12: STATUTORY ACCOUNTS
B14: 2.11 Labour | C14: 6.2 STPIS Reliability | D14: 8.1 Income
C15: 6.6 STPIS Customer Service | D15: 8.2 Capex
C16: 6.7 STPIS Daily Performance
C17: 6.8 STPIS Exclusions | D17: 8.4 Opex
C18: 6.9 STPIS GSL
B22: NETWORK PERFORMANCE | C22: OTHER INFORMATION | D22: PRICING PROPOSAL
D23: Victorian Businesses Only
B24: 3.6 Quality of services | C24: 7.8 Avoided Cost Payments
B25: 3.6.8 Network-feeders | C25: 7.10 Juris Scheme | D25: 9.5 TUoS
B26: 3.6.9 Network-reliability | C26: 7.11 DMIS-DMIA
C27: 7.12 Safety and Bushfire
C28: 7.13 TARC
B29: PUBLIC LIGHTING
B31: 4.1 Public lighting tariffs

Sheet Instructions
B8: =CONCATENATE(dms_Segment," Network Service Provider") -> Distribution Network Service Provider
B9: Annual Reporting RIN Template
C11: =CONCATENATE("This template is to be used by ",dms_TradingName, " to fulfil its annual reporting obligations to the AER.") -> This template is to be used by ActewAGL Distribution to fulfil its annual reporting obligations to the AER.
F12: Amendments made December 2015
F13: Click here for details.
C14: INSTRUCTIONS
C15: Complete the Business & other details worksheet before entering data or values in any other worksheets. The Business & other details worksheet is linked to other cells within the workbook and automatically generates certain column headings and conditional formatting.
C17: Identifying CONFIDENTIAL INFORMATION: Please use the macro at the top of each worksheet to identify confidential information.
C18: -Do this by selecting the cell or cells that contain confidential information and then run the Mark selected cells as CONFIDENTIAL macro. This will format the cells a specific colour that is identified by the AER's database which in turn marks that information as confidential. -To reverse this, select the cell or cells and run the Return cells to NON-CONFIDENTIAL macro
C20: All amounts are to be unrounded and reported in nominal terms on a one for one basis: that is 1000 is to be entered as '1000' not '1' as in previous templates. Colour coding of input sheets:
D21: Yellow = Input cells
D22: Grey = Not applicable/No inputs required
D23: Leave coloured cells blank if no information exists. PLEASE DO NOT ENTER TEXT into cells that are to contain numeric data.
C26: Returning completed responses Please return two (2) files to the AER: 1. A confidential version which must contain a complete set of all responses with confidential information marked using the Mark selected cells CONFIDENTIAL macro and which has been completed using the locked template file provided by the AER. 2. A public version with confidential information either removed completely or aggregated in some form together with writtten consent to disclose the public version of the response. Use the drop down box on the Business and other details worksheet to identify the file as either confidential ('consolidated') or public.

Sheet Business & other details
C1: =(LOOKUP(dms_Model,dms_Model_List,dms_Worksheet_List)) -> REGULATORY REPORTING STATEMENT
C2: =dms_TradingName -> ActewAGL Distribution
C3: =CONCATENATE("Annual Reporting RIN Response ",CRY) -> Annual Reporting RIN Response 2015-16
C4: BUSINESS & OTHER DETAILS
C6: Instructions
C7: Complete the following business details regulatory template before entering data or values in any other regulatory templates. This regulatory template is linked to other cells within these worksheets and is used to automatically generate some column headings and to apply conditional formatting to certain cells.
C10: SUBMISSION PARTICULARS INPUT SHEETS
C12: ENTITY DETAILS
C14: Short name | D14: ActewAGL Distribution
C15: ACN / ABN | D15: =INDEX(dms_ABN_List,MATCH(dms_TradingName,dms_TradingName_List)) -> 76670568688
C18: Business address | D18: Address 1 | F18: 40 Bunda Street
E19: Address 2
D20: Suburb | F20: Canberra
E21: State | F21: =INDEX(dms_State_List,MATCH(dms_TradingName,dms_TradingName_List)) -> ACT | G21: p/code | H21: 2601
C23: Postal address | D23: Address 1
E24: Address 2
D25: Suburb
E26: State | G26: p/code
C29: Contact name/s | D29: Robert Walker | G29: Peter Cunningham
C30: Contact phone/s | D30: 02 6248 3847 | G30: 02 6293 5108
C31: Contact email address/s | D31: Robert.Walker@actewagl.com.au | G31: Peter.Cunningham@actewagl.com.au
C33: REGULATORY CONTROL PERIODS
C35: Forthcoming regulatory control period | D35: 2016-17 | E35: =IF(dms_RPT="financial",VALUE(LEFT(FRCP_y1,4)+1)&"-"&VALUE(MID(FRCP_y1,3,2)+2),VALUE(LEFT(FRCP_y1,4)+1)) -> 2017-18 | F35: =IF(dms_RPT="financial",VALUE(LEFT(FRCP_y2,4)+1)&"-"&VALUE(MID(FRCP_y2,3,2)+2),VALUE(LEFT(FRCP_y2,4)+1)) -> 2018-19 | G35: =IF(dms_RPT="financial",VALUE(LEFT(FRCP_y3,4)+1)&"-"&VALUE(MID(FRCP_y3,3,2)+2),VALUE(LEFT(FRCP_y3,4)+1)) -> 2019-20 | H35: =IF(dms_RPT="financial",VALUE(LEFT(FRCP_y4,4)+1)&"-"&VALUE(MID(FRCP_y4,3,2)+2),VALUE(LEFT(FRCP_y4,4)+1)) -> 2020-21 | I35: =IF(dms_RPT="financial",VALUE(LEFT(FRCP_y5,4)+1)&"-"&VALUE(MID(FRCP_y5,3,2)+2),VALUE(LEFT(FRCP_y5,4)+1)) -> 2021-22 | J35: =IF(dms_RPT="financial",VALUE(LEFT(FRCP_y6,4)+1)&"-"&VALUE(MID(FRCP_y6,3,2)+2),VALUE(LEFT(FRCP_y6,4)+1)) -> 2022-23 | K35: =IF(dms_RPT="financial",VALUE(LEFT(FRCP_y7,4)+1)&"-"&VALUE(MID(FRCP_y7,3,2)+2),VALUE(LEFT(FRCP_y7,4)+1)) -> 2023-24 | L35: =IF(dms_RPT="financial",VALUE(LEFT(FRCP_y8,4)+1)&"-"&VALUE(MID(FRCP_y8,3,2)+2),VALUE(LEFT(FRCP_y8,4)+1)) -> 2024-25 | M35: =IF(dms_RPT="financial",VALUE(LEFT(FRCP_y9,4)+1)&"-"&VALUE(MID(FRCP_y9,3,2)+2),VALUE(LEFT(FRCP_y9,4)+1)) -> 2025-26
C38: Current regulatory control period | D38: =IF(dms_RPT="financial",VALUE(LEFT(CRCP_y2,4)-1)&"-"&TEXT(VALUE(RIGHT(CRCP_y2,2)-1),"0#"),VALUE(LEFT(CRCP_y2,4)-1)) -> 2011-12 | E38: =IF(dms_RPT="financial",VALUE(LEFT(CRCP_y3,4)-1)&"-"&TEXT(VALUE(RIGHT(CRCP_y3,2)-1),"0#"),VALUE(LEFT(CRCP_y3,4)-1)) -> 2012-13 | F38: =IF(dms_RPT="financial",VALUE(LEFT(CRCP_y4,4)-1)&"-"&TEXT(VALUE(RIGHT(CRCP_y4,2)-1),"0#"),VALUE(LEFT(CRCP_y4,4)-1)) -> 2013-14 | G38: =IF(dms_RPT="financial",VALUE(LEFT(CRCP_y5,4)-1)&"-"&TEXT(VALUE(RIGHT(CRCP_y5,2)-1),"0#"),VALUE(LEFT(CRCP_y5,4)-1)) -> 2014-15 | H38: =IF(dms_RPT="financial",VALUE(LEFT(FRCP_y1,4)-1)&"-"&TEXT(VALUE(RIGHT(FRCP_y1,2)-1),"0#"),VALUE(LEFT(FRCP_y1,4)-1)) -> 2015-16
C41: Previous regulatory control period | D41: =IF(dms_RPT="financial",VALUE(LEFT(PRCP_y2,4)-1)&"-"&TEXT(VALUE(MID(PRCP_y2,3,2)),"0#"),VALUE(LEFT(PRCP_y2,4)-1)) -> 2006-07 | E41: =IF(dms_RPT="financial",VALUE(LEFT(PRCP_y3,4)-1)&"-"&TEXT(VALUE(MID(PRCP_y3,3,2)),"0#"),VALUE(LEFT(PRCP_y3,4)-1)) -> 2007-08 | F41: =IF(dms_RPT="financial",VALUE(LEFT(PRCP_y4,4)-1)&"-"&TEXT(VALUE(MID(PRCP_y4,3,2)),"0#"),VALUE(LEFT(PRCP_y4,4)-1)) -> 2008-09 | G41: =IF(dms_RPT="financial",VALUE(LEFT(PRCP_y5,4)-1)&"-"&TEXT(VALUE(RIGHT(PRCP_y5,2)-1),"0#"),VALUE(LEFT(PRCP_y5,4)-1)) -> 2009-10 | H41: =IF(dms_RPT="financial",VALUE(LEFT(CRCP_y1,4)-1)&"-"&TEXT(VALUE(RIGHT(CRCP_y1,2)-1),"0#"),VALUE(LEFT(CRCP_y1,4)-1)) -> 2010-11
C44: Current regulatory year | D44: 2015-16
C49: Source | D49: Reporting
C50: Consolidated confidential or public version? | D50: Consolidated
C51: Amended RIN submission - amendment reason
C52: EBSS - First application of scheme in forthcoming period? | D52: No
C53: Sector | D53: =INDEX(dms_Sector_List,MATCH(dms_TradingName,dms_TradingName_List)) -> Electricity | E53: dms_Sector | F53: =INDEX(dms_Sector_List,MATCH(dms_TradingName,dms_TradingName_List))
C54: Segment | D54: =INDEX(dms_Segment_List,MATCH(dms_TradingName,dms_TradingName_List)) -> Distribution | E54: dms_Segment | F54: =INDEX(dms_Segment_List,MATCH(dms_TradingName,dms_TradingName_List))
C55: Regulatory Year Ending | D55: =INDEX(dms_RYE_Formula_Result,MATCH(dms_Model,dms_Model_List)) -> 2016 | E55: dms_RYE | F55: =INDEX(dms_RYE_Formula_Result,MATCH(dms_Model,dms_Model_List))
C56: Reporting Period Type | D56: =IF(LEN(FRCP_y1)>4,"Financial","Calendar") -> Financial | E56: dms_RPT | F56: =IF(LEN(FRCP_y1)>4,"Financial","Calendar")
C57: Model or RIN Type | D57: ARR | E57: dms_Model
C58: Security Classification | D58: Public | E58: dms_Classification
C59: Template - version no. | D59: 5 | E59: dms_TemplateNumber
C60: Dollar $ real (the last month before the FRCP_y1) | D60: =CONCATENATE(IF(dms_RPT="Financial","June ","December "),VALUE((LEFT(FRCP_y1,2))&RIGHT(FRCP_y1,2))-1) -> June 2016 | E60: dms_DollarReal | F60: =CONCATENATE(IF(dms_RPT="Financial","June ","December "),VALUE((LEFT(FRCP_y1,2))&RIGHT(FRCP_y1,2))-1)
C61: Form of control | D61: =INDEX(dms_FormControl_List,MATCH(dms_TradingName,dms_TradingName_List)) -> Revenue cap | E61: dms_FormControl | F61: =INDEX(dms_FormControl_List,MATCH(dms_TradingName,dms_TradingName_List))
C62: RIN response - version no. | D62: 1 | E62: dms_RINversion
C63: Jurisdiction | D63: =INDEX(dms_JurisdictionList,MATCH(dms_TradingName,dms_TradingName_List)) -> ACT | E63: dms_Jurisdiction | F63: =INDEX(dms_JurisdictionList,MATCH(dms_TradingName,dms_TradingName_List))
C64: Length of current reg control period | D64: =INDEX(dms_CRCPlength_List,MATCH(dms_TradingName,dms_TradingName_List)) -> 5 | E64: dms_CRCPlength | F64: =INDEX(dms_CRCPlength_List,MATCH(dms_TradingName,dms_TradingName_List))
C65: Length of forthcoming reg control period | D65: =INDEX(dms_FRCPlength_List,MATCH(dms_TradingName,dms_TradingName_List)) -> 6 | E65: dms_FRCPlength | F65: =INDEX(dms_FRCPlength_List,MATCH(dms_TradingName,dms_TradingName_List))
C66: FRCP length in years | D66: =INDEX(dms_FRCPlength_List,MATCH(dms_TradingName,dms_TradingName_List)) -> 6 | E66: dms_FRCPlength_Num | F66: =INDEX(dms_FRCPlength_List,MATCH(dms_TradingName,dms_TradingName_List))
C67: FRCP Final Year Reference | D67: =INDEX(dms_FinalYear_List,MATCH(dms_FRCPlength_Num,dms_FRCPlength_Num_List)) -> FRCP_y6 | E67: dms_FRCP_FinalYear | F67: =INDEX(dms_FinalYear_List,MATCH(dms_FRCPlength_Num,dms_FRCPlength_Num_List))
C68: FRCP Final Year | D68: =INDIRECT(dms_FRCP_FinalYear) -> 2021-22 | E68: dms_FRCP_FinalYear_Num | F68: =INDIRECT(dms_FRCP_FinalYear)
C69: CRCP length in years | D69: 5 | E69: dms_CRCPlength_Num | F69: =INDEX(dms_CRCPlength_List,MATCH(dms_TradingName,dms_TradingName_List))
C70: CRCP Final Year Reference | D70: CRCP_y5 | E70: dms_CRCP_FinalYear | F70: =INDEX(dms_CFinalYear_List,MATCH(dms_CRCPlength_Num,dms_CRCPlength_Num_List))
C71: CRCP Final Year | D71: 2014-15 | E71: dms_CRCP_FinalYear_Num | F71: =INDIRECT(dms_CRCP_FinalYear)
C72: Backcast templates only - unit of measure | D72: $0s | E72: If the cover sheet is for Backcast data ensure to apply dms_Backcast_UOM named range to this field. Otherwise, do not apply this named range.
C73: Table 6.6.3 - Public lighting repair - no. business days | D73: =INDEX(dms_663_List,MATCH(dms_TradingName,dms_TradingName_List)) -> 5
C74: Distribution Determination Reference | D74: =INDEX(dms_DeterminationRef_List,MATCH(dms_TradingName,dms_TradingName_List)) -> 2014-19 Distribution Determination | E74: =dms_DeterminationRef
C75: CBD Feeder for this business | D75: =INDEX(dms_CBD_flag,MATCH(dms_TradingName,dms_TradingName_List)) -> NO | E75: dms_CBD_flag_NSP
C76: Urban Feeder for this business | D76: =INDEX(dms_Urban_flag,MATCH(dms_TradingName,dms_TradingName_List)) -> YES | E76: dms_Urban_flag_NSP
C77: Short rural Feeder for this business | D77: =INDEX(dms_ShortRural_flag,MATCH(dms_TradingName,dms_TradingName_List)) -> YES | E77: dms_ShortRural_flag_NSP
C78: Long rural Feeder for this business | D78: =INDEX(dms_LongRural_flag,MATCH(dms_TradingName,dms_TradingName_List)) -> NO | E78: dms_LongRural_flag_NSP

Sheet 2.11 Labour
B1: =(LOOKUP(dms_Model,dms_Model_List,dms_Worksheet_List)) -> REGULATORY REPORTING STATEMENT
B2: =dms_TradingName -> ActewAGL Distribution
B3: =CONCATENATE("Annual Reporting RIN Response ",CRY) -> Annual Reporting RIN Response 2015-16
B4: 2.11 LABOUR
B6: Tables 2.11.1 and 2.11.2 deliberately omitted.
B8: 2.11.3 - LABOUR / NON-LABOUR EXPENDITURE SPLIT
B9: 2.11.3.1 - Opex
C10: =CRY -> 2015-16
C11: $0's, nominal
C12: Opex
B13: In-house labour expenditure | C13: 33056899
B14: Labour expenditure outsourced to related parties | C14: 48118.23
B15: Labour expenditure outsourced to unrelated parties | C15: 778413
B16: Controllable non-labour expenditure | C16: 6678748.76
B17: Uncontrollable non-labour expenditure
B18: Total | C18: =SUM(C13:C17) -> 40562178.99
B20: Reconciliation with Opex worksheets - SCS | C20: Opex
B21: Total including margins | C21: =dms_Total_Actual_Opex -> 40562178.87 | D21: =IF((ROUND(C18,0))=(ROUND(dms_Total_Actual_Opex,0)),"OK","Error") -> OK
B24: 2.11.3.2 - Capex
C25: =CRY -> 2015-16
C26: $0's, nominal
C27: Capex
B28: In-house labour expenditure | C28: 13599872.92
B29: Labour expenditure outsourced to related parties
B30: Labour expenditure outsourced to unrelated parties | C30: 437442.47
B31: Controllable non-labour expenditure | C31: 45758330.61
B32: Uncontrollable non-labour expenditure
B33: Total | C33: =SUM(C28:C32) -> 59795646
B35: Reconciliation with Capex & Opex worksheets - SCS | C35: Capex
B36: Total including margins | C36: =dms_Total_Actual_Capex -> 59795646 | D36: =IF(C33=dms_Total_Actual_Capex,"OK","Error") -> OK

Sheet 3.6 Quality of services
B1: =(LOOKUP(dms_Model,dms_Model_List,dms_Worksheet_List)) -> REGULATORY REPORTING STATEMENT
B2: =dms_TradingName -> ActewAGL Distribution
B3: =CONCATENATE("Annual Reporting RIN Response ",CRY) -> Annual Reporting RIN Response 2015-16
B4: 3.6 QUALITY OF SERVICES
B6: 3.6.5 - QUALITY OF SUPPLY METRICS
C7: Unit | D7: Volume
D8: =CRY -> 2015-16
B9: Over voltage events - due to high voltage injection | C9: number
B10: Customers receiving over-voltage - due to high voltage injection | C10: number
B11: Over voltage events - due to lightning | C11: number
B12: Customers receiving over-voltage - due to lightning | C12: number
B13: Over voltage events - due to voltage regulation or other cause | C13: number
B14: Customers receiving over-voltage - due to voltage regulation or other cause | C14: number
B15: Voltage variations - steady state (zone sub) | C15: number
B16: Voltage variations - one minute (zone sub) | C16: number
B17: Voltage variations - 10 seconds (zone sub) Min<0.7 | C17: number
B18: Voltage variations - 10 seconds (zone sub) Min<0.8 | C18: number
B19: Voltage variations - 10 seconds (zone sub) Min<0.9 | C19: number
B20: Voltage variations - steady state (feeder) | C20: number
B21: Voltage variations - % zone subs monitored | C21: (per cent)
B22: Voltage variations - % feeders monitored | C22: (per cent)
B24: 3.6.6 - COMPLAINTS - TECHNICAL QUALITY OF SUPPLY
C25: Unit | D25: Volume
D26: =CRY -> 2015-16
B27: 3.6.6.1 - TECHNICAL QUALITY OF SUPPLY
B28: Number of complaints - technical quality of supply | C28: number | D28: 1
B29: 3.6.6.2 - PERCENTAGE OF COMPLAINTS BY CATEGORY
B30: Low voltage supply | C30: (per cent)
B31: Voltage dips | C31: (per cent)
B32: Voltage swell | C32: (per cent)
B33: Voltage spike (impulsive transient) | C33: (per cent)
B34: Waveform distortion | C34: (per cent)
B35: TV or radio interference | C35: (per cent)
B36: Solar related | C36: (per cent)
B37: Noise from appliances | C37: (per cent)
B38: Other | C38: (per cent)
B39: 3.6.6.3 - PERCENTAGE OF COMPLAINTS BY LIKELY CAUSE
B40: Network equipment faulty | C40: (per cent)
B41: Network interference by NSP equipment | C41: (per cent)
B42: Network interference by another customer | C42: (per cent)
B43: Network limitation | C43: (per cent)
B44: Customer internal problem | C44: (per cent)
B45: No problem identified | C45: (per cent)
B46: Environmental | C46: (per cent)
B47: Other | C47: (per cent)
B49: 3.6.7 - CUSTOMER SERVICE METRICS
C50: Unit | D50: =CRY -> 2015-16
B51: 3.6.7.1 - TIMELY PROVISIONS OF SERVICES
B52: Number of connections made | C52: number
B53: Number of connections not made on or before agreed date | C53: number
B54: 3.6.7.2 - TIMELY REPAIR OF FAULTY STREET LIGHTS
B55: Street lights - average monthly number "out" | C55: number
B56: Street lights - not repaired by "fix by" date | C56: number
B57: Street lights - average number of days to repair | C57: number
B58: Total number of street lights | C58: number
B59: 3.6.7.3 - CALL CENTRE PERFORMANCE
B60: Calls to call centre fault line | C60: number | D60: 25367
B61: Calls to fault line answered within 30 seconds | C61: number | D61: 18227
B62: Calls to fault line - average waiting time before call answered | C62: number | D62: 38
B63: Call centre - number of overload events | C63: number | D63: 0
B64: Percentage of calls abandoned | C64: (per cent) | D64: 10.75
B65: 3.6.7.4 - NUMBER OF CUSTOMER COMPLAINTS
B66: Complaint - reliability of supply | C66: number
B67: Complaint - technical quality of supply | C67: number | D67: =IF(ISBLANK(D28),"",D28) -> 1
B68: Complaint - administrative process or customer service | C68: number
B69: Complaint - connection or augmentation | C69: number
B70: Complaint - other | C70: number
B71: Total number of complaints | C71: number

Sheet 3.6.8 Network-feeders
B1: =(LOOKUP(dms_Model,dms_Model_List,dms_Worksheet_List)) -> REGULATORY REPORTING STATEMENT | G1: =CONCATENATE("1-Jan-",LEFT(CRY,4)) -> 1-Jan-2015
B2: =dms_TradingName -> ActewAGL Distribution
B3: =CONCATENATE("Annual Reporting RIN Response ",CRY) -> Annual Reporting RIN Response 2015-16
B4: 3.6 QUALITY OF SERVICES
B6: Did the MAIFI parameter of the STPIS apply during the period? | F6: No | G6: ** IMPORTANT Please ensure this question is answered correctly. Your response will affect other tables throughout this workbook and will determine which cells are grey and which are input cells.
B10: 3.6.8 - NETWORK FEEDER RELIABILITY
B11: Feeder ID / name | C11: Description of the service area for the feeder | D11: Feeder classification (drop down) | E11: Number of distribution customers | F11: Length of high voltage distribution lines | H11: Maximum demand (MVA) | I11: Energy not supplied (MWh) | K11: Unplanned Outages | P11: Planned Outages | U11: Momentary feeder outages
F12: Overhead | G12: Underground | I12: Unplanned | J12: Planned | K12: Total number of unplanned outages | L12: Unplanned customer minutes off-supply (SAIDI) | N12: Unplanned interruptions (SAIFI) | P12: Total number of planned outages | Q12: Planned customer minutes off-supply (SAIDI) | S12: Planned interruptions (SAIFI) | U12: Total number of momentary feeder outages | V12: Momentary interruptions due to feeder outages (MAIFI)
L13: Including excluded events and MEDs | M13: After removing excluded events and MED | N13: Including excluded events and MEDs | O13: After removing excluded events and MED | Q13: Including MEDs | R13: After removing MED | S13: Including MEDs | T13: After removing MED | V13: Including excluded events and MEDs | W13: After removing excluded events and MED
B14: Abattoir | C14: FYSHWK_8HB_ABATTOIR | D14: Rural short | E14: 407 | F14: 20370.85711 | G14: 5147.948469 | H14: 5.495520084 | I14: 5.327089906 | J14: 0.1557662867 | K14: 9 | L14: 0.3958563561 | M14: 0.3958563561 | N14: 0.005898508883 | O14: 0.005898508883 | P14: 7 | Q14: 0.01295941869 | R14: 0.01295941869 | S14: 5.406515933e-05 | T14: 5.406515933e-05
B15: Aero Park | C15: CITYEA_8+UB_AEROPARK | D15: Urban | E15: 146 | F15: 0 | G15: 12264.27734 | H15: 4.672989109 | I15: 0 | J15: 0 | K15: 0 | L15: 0 | M15: 0 | N15: 0 | O15: 0 | P15: 0 | Q15: 0 | R15: 0 | S15: 0 | T15: 0
B16: Aikman | C16: BELCON_8KB_AIKMAN | D16: Urban | E16: 365 | F16: 0 | G16: 4132.333738 | H16: 3.068177213 | I16: 0.01047707953 | J16: 0.1073012558 | K16: 2 | L16: 0.0007760152536 | M16: 0.0007760152536 | N16: 1.081303187e-05 | O16: 1.081303187e-05 | P16: 1 | Q16: 0.007947578422 | R16: 0.007947578422 | S16: 0.0002270736692 | T16: 0.0002270736692
B17: Ainslie | C17: CITYEA_8+EB_AINSLIE | D17: Urban | E17: 172 | F17: 0 | G17: 2666.581038 | H17: 1.927316084 | I17: 0 | J17: 0 | K17: 0 | L17: 0 | M17: 0 | N17: 0 | O17: 0 | P17: 0 | Q17: 0 | R17: 0 | S17: 0 | T17: 0
B18: Airport | C18: FYSHWK_8PB_AIRPORT | D18: Urban | E18: 69 | F18: 0 | G18: 5369.45282 | H18: 3.975697462 | I18: 0 | J18: 0 | K18: 0 | L18: 0 | M18: 0 | N18: 0 | O18: 0 | P18: 0 | Q18: 0 | R18: 0 | S18: 0 | T18: 0
B19: Akuna | C19: CITYEA_8NB_AKUNA | D19: Urban | E19: 420 | F19: 0 | G19: 3089.398525 | H19: 2.151847252 | I19: 0 | J19: 0 | K19: 0 | L19: 0 | M19: 0 | N19: 0 | O19: 0 | P19: 0 | Q19: 0 | R19: 0 | S19: 0 | T19: 0
B20: Alderson | C20: GILMRE_8FB_ALDERSON | D20: Urban | E20: 188 | F20: 12316.00501 | G20: 3425.756727 | H20: 3.296092687 | I20: 0.02570728839 | J20: 0 | K20: 2 | L20: 0.001904084803 | M20: 0.001904084803 | N20: 1.081303187e-05 | O20: 1.081303187e-05 | P20: 1 | Q20: 0.001167807442 | R20: 0.001167807442 | S20: 5.406515933e-06 | T20: 5.406515933e-06
B21: Allara | C21: CITYEA_8UB_ALLARA | D21: Urban | E21: 26 | F21: 0 | G21: 4348.680024 | H21: 2.23026244 | I21: 0 | J21: 0.07182614672 | K21: 0 | L21: 0 | M21: 0 | N21: 0 | O21: 0 | P21: 1 | Q21: 0.005320011678 | R21: 0.005320011678 | S21: 1.081303187e-05 | T21: 1.081303187e-05
B22: Anthony Rolfe | C22: GOLDCR_8NB_ANTHNYRLF | D22: Urban | E22: 2845 | F22: 3884.114209 | G22: 18298.70373 | H22: 6.590661169 | I22: 14.51955843 | J22: 2.065927989 | K22: 27 | L22: 1.428226789 | M22: 1.427303086 | N22: 0.02900055146 | O22: 0.0289789254 | P22: 6 | Q22: 0.1862815065 | R22: 0.1862815065 | S22: 0.0008488230015 | T22: 0.0008488230015
B23: ANUBELM | C23: TELOPK_8+FB_ANUBELM | D23: Urban | E23: 877 | F23: 253.3162598 | G23: 12889.47334 | H23: 5.732105044 | I23: 0.1981160418 | J23: 1.107930066 | K23: 7 | L23: 0.01489098662 | M23: 0.01489098662 | N23: 0.0002108541214 | O23: 0.0002108541214 | P23: 9 | Q23: 0.08976979055 | R23: 0.08976979055 | S23: 0.0007947578422 | T23: 0.0007947578422
B24: ANUNO12345 | C24: CIVIC_8QB_ANUNO12345 | D24: Urban | E24: 4 | F24: 603.8715852 | G24: 22099.50819 | H24: 19.62802828 | I24: 0.01357689359 | J24: 0.2391285129 | K24: 2 | L24: 0.001005611964 | M24: 0.001005611964 | N24: 1.081303187e-05 | O24: 1.081303187e-05 | P24: 14 | Q24: 0.0177117462 | R24: 0.0177117462 | S24: 7.569122306e-05 | T24: 7.569122306e-05
B25: Ashley | C25: WANNIA_8NB_ASHLEY | D25: Urban | E25: 765 | F25: 265.0483155 | G25: 11468.27579 | H25: 2.252715499 | I25: 5.630194111 | J25: 2.858088795 | K25: 9 | L25: 0.4180520864 | M25: 0.4180520864 | N25: 0.0113320574 | O25: 0.0113320574 | P25: 9 | Q25: 0.2165147436 | R25: 0.2165147436 | S25: 0.001000205448 | T25: 0.001000205448
B26: Athllon | C26: WANNIA_8+FB_ATHLLON | D26: Urban | E26: 1456 | F26: 6138.889753 | G26: 9124.06121 | H26: 4.103886889 | I26: 1.044655021 | J26: 1.206816157 | K26: 12 | L26: 0.0800184182 | M26: 0.0800184182 | N26: 0.0006541884279 | O26: 0.0006541884279 | P26: 4 | Q26: 0.1206085574 | R26: 0.1206085574 | S26: 0.0005514646252 | T26: 0.0005514646252
B27: Banyule | C27: THEDRE_8HB_BANYULE | D27: Urban | E27: 1396 | F27: 532.975237 | G27: 12752.49832 | H27: 3.046760428 | I27: 0.4757691451 | J27: 0.7594301123 | K27: 5 | L27: 0.03523922031 | M27: 0.03523922031 | N27: 0.0001838215417 | O27: 0.0001838215417 | P27: 4 | Q27: 0.05624939177 | R27: 0.05624939177 | S27: 0.0004541473384 | T27: 0.0004541473384
B28: Barrington | C28: GOLDCR_8+UB_BARRNGTN | D28: Urban | E28: 1452 | F28: 0 | G28: 12486.99596 | H28: 6.401659785 | I28: 11.03007638 | J28: 0.4046790218 | K28: 5 | L28: 0.8169745677 | M28: 0.8169745677 | N28: 0.01040754317 | O28: 0.01040754317 | P28: 1 | Q28: 0.02997372433 | R28: 0.02997372433 | S28: 0.0001189433505 | T28: 0.0001189433505
B29: Battye | C29: BELCON_8XB_BATTYE | D29: Urban | E29: 466 | F29: 476.5555908 | G29: 7215.54718 | H29: 2.909934661 | I29: 0 | J29: 0.3319769464 | K29: 0 | L29: 0 | M29: 0 | N29: 0 | O29: 0 | P29: 2 | Q29: 0.02458883446 | R29: 0.02458883446 | S29: 0.0009785793839 | T29: 0.0009785793839
B30: Beggs | C30: GILMRE_8LB_BEGGS | D30: Urban | E30: 653 | F30: 1153.336202 | G30: 7908.333593 | H30: 1.938832912 | I30: 1.622214579 | J30: 1.887188209 | K30: 8 | L30: 0.1343915687 | M30: 0.1343915687 | N30: 0.002951957699 | O30: 0.002951957699 | P30: 3 | Q30: 0.1397800629 | R30: 0.1397800629 | S30: 0.0005082124977 | T30: 0.0005082124977
B31: Belconnen Way Nth | C31: CIVIC_8+QB_BELCWAYNT | D31: Urban | E31: 1191 | F31: 8409.383191 | G31: 4378.900123 | H31: 2.912154094 | I31: 5.324467391 | J31: 1.79220756 | K31: 13 | L31: 0.5558407493 | M31: 0.5558407493 | N31: 0.01777662439 | O31: 0.01777662439 | P31: 12 | Q31: 0.1259501952 | R31: 0.1259501952 | S31: 0.001059677123 | T31: 0.001059677123
B32: Belconnen Way Sth | C32: CIVIC_8FB_BELCWAYSTH | D32: Urban | E32: 1631 | F32: 7329.387288 | G32: 9662.338068 | H32: 5.061878128 | I32: 9.122958606 | J32: 0.2532664313 | K32: 20 | L32: 0.7284368321 | M32: 0.7284368321 | N32: 0.01968512451 | O32: 0.01968512451 | P32: 4 | Q32: 0.01310539462 | R32: 0.01310539462 | S32: 0.0004541473384 | T32: 0.0004541473384
B33: Binara | C33: CITYEA_8+PB_BINARA | D33: Urban | E33: 237 | F33: 0 | G33: 5041.383113 | H33: 3.891565578 | I33: 0 | J33: 0.4472713928 | K33: 0 | L33: 0 | M33: 0 | N33: 0 | O33: 0 | P33: 1 | Q33: 0.0005839037208 | R33: 0.0005839037208 | S33: 5.406515933e-06 | T33: 5.406515933e-06
B34: Birrigai | C34: GOLDCR_8+MB_BIRRIGAI | D34: Rural short | E34: 1251 | F34: 0 | G34: 12836.80009 | H34: 1.87900908 | I34: 3.883545213 | J34: 0.02661224174 | K34: 6 | L34: 0.3397711422 | M34: 0.3397711422 | N34: 0.006098549972 | O34: 0.006098549972 | P34: 2 | Q34: 0.01495442307 | R34: 0.01495442307 | S34: 0.0001135368346 | T34: 0.0001135368346
B35: BISSHAWK | C35: WANNIA_8KB_BISSHAWK | D35: Urban | E35: 2412 | F35: 11731.18893 | G35: 16348.4526 | H35: 6.935842094 | I35: 3.113179136 | J35: 15.17384659 | K35: 33 | L35: 0.6178846646 | M35: 0.6172033535 | N35: 0.00677977098 | O35: 0.006774364464 | P35: 39 | Q35: 1.789659498 | R35: 1.789659498 | S35: 0.007774569912 | T35: 0.007774569912
B36: Blackall | C36: TELOPK_8QB_BLACKALL | D36: Urban | E36: 94 | F36: 0 | G36: 1808.480155 | H36: 2.31679116 | I36: 0 | J36: 0 | K36: 0 | L36: 0 | M36: 0 | N36: 0 | O36: 0 | P36: 0 | Q36: 0 | R36: 0 | S36: 0 | T36: 0
B37: Black Mountain | C37: CIVIC_8+NB_BLACKMTN | D37: Urban | E37: 726 | F37: 33410.38282 | G37: 4121.017602 | H37: 2.063740789 | I37: 0.4225846298 | J37: 0.6490631063 | K37: 10 | L37: 0.03372638704 | M37: 0.03372638704 | N37: 0.0002000410895 | O37: 0.0002000410895 | P37: 10 | Q37: 0.04807473968 | R37: 0.04807473968 | S37: 0.0002324801851 | T37: 0.0002324801851
B38: BLDWNJOYC | C38: BELCON_8PB_BLDWNJOYC | D38: Urban | E38: 1665 | F38: 5874.951235 | G38: 13599.46398 | H38: 5.033464557 | I38: 2.329142067 | J38: 2.113074005 | K38: 24 | L38: 0.2094628446 | M38: 0.2086825943 | N38: 0.002270736692 | O38: 0.002265330176 | P38: 9 | Q38: 0.2333506342 | R38: 0.2333506342 | S38: 0.001081303187 | T38: 0.001081303187
B39: BNJMNLAUR | C39: BELCON_8FB_BNJMNLAUR | D39: Urban | E39: 959 | F39: 1050.749757 | G39: 11633.1463 | H39: 5.42346216 | I39: 0.5701592174 | J39: 0.9279156968 | K39: 15 | L39: 0.04774341036 | M39: 0.04774341036 | N39: 0.0008217904218 | O39: 0.0008217904218 | P39: 5 | Q39: 0.1624117386 | R39: 0.1624117386 | S39: 0.0008758555811 | T39: 0.0008758555811
B40: Boulevarde North | C40: GOLDCR_8+RB_BOULVDNT | D40: Urban | E40: 138 | F40: 0 | G40: 3682.914665 | H40: 1.472890835 | I40: 0 | J40: 0.709502181 | K40: 0 | L40: 0 | M40: 0 | N40: 0 | O40: 0 | P40: 1 | Q40: 0.05255133487 | R40: 0.05255133487 | S40: 8.1097739e-05 | T40: 8.1097739e-05
B41: Bowen | C41: TELOPK_8MB_BOWEN | D41: Urban | E41: 320 | F41: 0 | G41: 11707.54623 | H41: 3.790389798 | I41: 0.0184504631 | J41: 0 | K41: 2 | L41: 0.001366587011 | M41: 0.001366587011 | N41: 1.081303187e-05 | O41: 1.081303187e-05 | P41: 0 | Q41: 0 | R41: 0 | S41: 0 | T41: 0
B42: Bowley | C42: LATHAM_8WB_BOWLEY | D42: Urban | E42: 1765 | F42: 7215.891387 | G42: 9496.038481 | H42: 4.166095688 | I42: 0.2160507861 | J42: 0.7170177677 | K42: 16 | L42: 0.02219879399 | M42: 0.02219879399 | N42: 0.0002270736692 | O42: 0.0002270736692 | P42: 7 | Q42: 0.1138882581 | R42: 0.1138882581 | S42: 0.001032644543 | T42: 0.001032644543
B43: Braddon | C43: CITYEA_8+NB_BRADDON | D43: Urban | E43: 972 | F43: 0 | G43: 3727.771772 | H43: 3.663214539 | I43: 1.985358321 | J43: 0.7359949643 | K43: 6 | L43: 0.05927938351 | M43: 0.05927938351 | N43: 5.406515933e-05 | O43: 5.406515933e-05 | P43: 4 | Q43: 0.09830667921 | R43: 0.09830667921 | S43: 0.001346222467 | T43: 0.001346222467
B44: Brisbane | C44: TELOPK_8+DB_BRISBANE | D44: Urban | E44: 64 | F44: 195.7356969 | G44: 3941.506909 | H44: 2.238517151 | I44: 0 | J44: 0 | K44: 0 | L44: 0 | M44: 0 | N44: 0 | O44: 0 | P44: 0 | Q44: 0 | R44: 0 | S44: 0 | T44: 0
B45: Brookman | C45: WANNIA_8+MB_BROOKMAN | D45: Urban | E45: 1468 | F45: 7145.11998 | G45: 1654.312925 | H45: 5.048779494 | I45: 1.162044726 | J45: 2.726480366 | K45: 16 | L45: 0.1543917129 | M45: 0.1543917129 | N45: 0.0008758555811 | O45: 0.0008758555811 | P45: 18 | Q45: 0.7948335334 | R45: 0.7948335334 | S45: 0.003114153177 | T45: 0.003114153177
B46: Broughton | C46: TELOPK_8+EB_BROUGHTN | D46: Urban | E46: 30 | F46: 0 | G46: 5055.081733 | H46: 3.009300234 | I46: 0.1058949037 | J46: 0 | K46: 4 | L46: 0.007843412881 | M46: 0.007843412881 | N46: 0.0001946345736 | O46: 0.0001946345736 | P46: 0 | Q46: 0 | R46: 0 | S46: 0 | T46: 0
B47: Bunburung | C47: GOLDCR_8+PB_BUNBURNG | D47: Urban | E47: 265 | F47: 0 | G47: 2049.981086 | H47: 0.5185954098 | I47: 0.02707895636 | J47: 0 | K47: 4 | L47: 0.002758945081 | M47: 0.002758945081 | N47: 2.162606373e-05 | O47: 2.162606373e-05 | P47: 0 | Q47: 0 | R47: 0 | S47: 0 | T47: 0
B48: Bunbury | C48: WODEN_8TB_BUNBURY | D48: Urban | E48: 1287 | F48: 7734.367555 | G48: 7017.42318 | H48: 3.396608272 | I48: 0.4935171361 | J48: 5.470427595 | K48: 15 | L48: 0.05799001957 | M48: 0.05799001957 | N48: 0.001054270607 | O48: 0.001054270607 | P48: 20 | Q48: 0.5667055936 | R48: 0.5667055936 | S48: 0.003438544133 | T48: 0.003438544133
B49: Bunda | C49: CITYEA_8+FB_BUNDA | D49: Urban | E49: 73 | F49: 0 | G49: 2531.450727 | H49: 2.26020849 | I49: 0 | J49: 0 | K49: 0 | L49: 0 | M49: 0 | N49: 0 | O49: 0 | P49: 0 | Q49: 0 | R49: 0 | S49: 0 | T49: 0
B50: CAENO1-2 | C50: BELCON_8DB_CAENO1-2 | D50: Urban | E50: 1 | F50: 2946.243729 | G50: 5908.829015 | H50: 5.080105711 | I50: 0 | J50: 0.4330940857 | K50: 0 | L50: 0 | M50: 0 | N50: 0 | O50: 0 | P50: 1 | Q50: 0.09913928266 | R50: 0.09913928266 | S50: 0.009731728679 | T50: 0.009731728679
B51: Callister | C51: THEDRE_8+RB_CALLISTR | D51: Urban | E51: 1611 | F51: 1244.542924 | G51: 14459.98567 | H51: 3.998751058 | I51: 9.504613847 | J51: 0.5325646001 | K51: 9 | L51: 0.7039867648 | M51: 0.7039867648 | N51: 0.00874774278 | O51: 0.00874774278 | P51: 3 | Q51: 0.03944594025 | R51: 0.03944594025 | S51: 0.0003297974719 | T51: 0.0003297974719
B52: Cameron North | C52: BELCON_8MB_CAMNORTH | D52: Urban | E52: 19 | F52: 0 | G52: 3315.109859 | H52: 3.668457993 | I52: 0 | J52: 0 | K52: 0 | L52: 0 | M52: 0 | N52: 0 | O52: 0 | P52: 0 | Q52: 0 | R52: 0 | S52: 0 | T52: 0
B53: Cameron South | C53: BELCON_8GB_CAMSOUTH | D53: Urban | E53: 1075 | F53: 0 | G53: 5890.382469 | H53: 2.846993218 | I53: 0.01124351346 | J53: 0 | K53: 2 | L53: 0.002059612245 | M53: 0.002059612245 | N53: 5.947167526e-05 | O53: 5.947167526e-05 | P53: 0 | Q53: 0 | R53: 0 | S53: 0 | T53: 0
B54: Carruthers | C54: WODEN_8+PB_CARRUTHRS | D54: Urban | E54: 1259 | F54: 7861.354162 | G54: 2433.230585 | H54: 3.453838348 | I54: 0.5918249955 | J54: 0.876586387 | K54: 15 | L54: 0.05330914819 | M54: 0.05290086612 | N54: 0.0006920340394 | O54: 0.0006866275235 | P54: 6 | Q54: 0.1582433148 | R54: 0.1582433148 | S54: 0.0009947989317 | T54: 0.0009947989317
B55: Cessnock | C55: EASTLK_8EB_CESSNOCK | D55: Urban | E55: 165 | F55: 1730.636594 | G55: 4617.293425 | H55: 3.515197114 | I55: 0.05186154692 | J55: 0 | K55: 6 | L55: 0.002732453152 | M55: 0.002732453152 | N55: 3.24390956e-05 | O55: 3.24390956e-05 | P55: 0 | Q55: 0 | R55: 0 | S55: 0 | T55: 0
B56: Chan | C56: BELCON_8+HB_CHAN | D56: Urban | E56: 371 | F56: 0 | G56: 3965.58586 | H56: 3.379239197 | I56: 0 | J56: 0.00569353602 | K56: 0 | L56: 0 | M56: 0 | N56: 0 | O56: 0 | P56: 1 | Q56: 0.0004217082428 | R56: 0.0004217082428 | S56: 5.406515933e-06 | T56: 5.406515933e-06
B57: Chandler | C57: BELCON_8LB_CHANDLER | D57: Urban | E57: 369 | F57: 0 | G57: 2994.548039 | H57: 2.559373865 | I57: 0 | J57: 0 | K57: 0 | L57: 0 | M57: 0 | N57: 0 | O57: 0 | P57: 0 | Q57: 0 | R57: 0 | S57: 0 | T57: 0
B58: Chisholm | C58: CITYEA_8KB_CHISHOLM | D58: Urban | E58: 772 | F58: 4070.246325 | G58: 3360.721289 | H58: 3.600623072 | I58: 0.06068679409 | J58: 0.3205509862 | K58: 6 | L58: 0.01620666227 | M58: 0.01620666227 | N58: 0.0005190255296 | O58: 0.0005190255296 | P58: 2 | Q58: 0.02246948022 | R58: 0.02246948022 | S58: 0.0001892280577 | T58: 0.0001892280577
B59: Chippindall | C59: THEDRE_8+SB_CHPPNDL | D59: Urban | E59: 1384 | F59: 592.7360326 | G59: 12714.21044 | H59: 3.624975923 | I59: 0.6629201152 | J59: 1.147134197 | K59: 20 | L59: 0.07429940564 | M59: 0.07429940564 | N59: 0.0008217904218 | O59: 0.0008217904218 | P59: 4 | Q59: 0.1009504655 | R59: 0.1009504655 | S59: 0.0006001232686 | T59: 0.0006001232686
B60: Christian | C60: CIVIC_8+PB_CHRISTIAN | D60: Urban | E60: 1 | F60: 676.8868034 | G60: 1588.554796 | H60: 1.622320245 | I60: 0 | J60: 0.02014635823 | K60: 0 | L60: 0 | M60: 0 | N60: 0 | O60: 0 | P60: 2 | Q60: 0.001492198398 | R60: 0.001492198398 | S60: 1.081303187e-05 | T60: 1.081303187e-05
B61: Chuculba | C61: BELCON_8RB_CHUCULBA | D61: Urban | E61: 1050 | F61: 3043.262721 | G61: 10820.83466 | H61: 3.37887615 | I61: 0.9912905535 | J61: 0.8274241295 | K61: 17 | L61: 0.1172022722 | M61: 0.1172022722 | N61: 0.001162400926 | O61: 0.001162400926 | P61: 4 | Q61: 0.1519555368 | R61: 0.1519555368 | S61: 0.000648781912 | T61: 0.000648781912
B62: CNBP1 | C62: TELOPK_8SB_CNBP1 | D62: Urban | E62: 7 | F62: 0 | G62: 2890.762019 | H62: 2.781246058 | I62: 0 | J62: 0 | K62: 0 | L62: 0 | M62: 0 | N62: 0 | O62: 0 | P62: 0 | Q62: 0 | R62: 0 | S62: 0 | T62: 0
B63: CNBP2 | C63: CITYEA_8PB_CNBP2 | D63: Urban | E63: 4 | F63: 0 | G63: 4082.977793 | H63: 1.623278017 | I63: 0 | J63: 0 | K63: 0 | L63: 0 | M63: 0 | N63: 0 | O63: 0 | P63: 0 | Q63: 0 | R63: 0 | S63: 0 | T63: 0
B64: Constitution | C64: CITYEA_8RB_CNSTITUTN | D64: Urban | E64: 11 | F64: 0 | G64: 3349.365903 | H64: 2.386333 | I64: 0 | J64: 0.6428285561 | K64: 0 | L64: 0 | M64: 0 | N64: 0 | O64: 0 | P64: 1 | Q64: 0.006276964998 | R64: 0.006276964998 | S64: 1.62195478e-05 | T64: 1.62195478e-05
B65: Conley | C65: LATHAM_8+FB_CONLEY | D65: Urban | E65: 769 | F65: 4273.083155 | G65: 3339.265531 | H65: 1.788124801 | I65: 0.2429290842 | J65: 4.612122927 | K65: 12 | L65: 0.02226961935 | M65: 0.02226961935 | N65: 0.0001730085099 | O65: 0.0001730085099 | P65: 11 | Q65: 0.5246591192 | R65: 0.5246591192 | S65: 0.002135573794 | T65: 0.002135573794
B66: Conolly | C66: WANNIA_8+GB_CONOLLY | D66: Urban | E66: 777 | F66: 2525.173746 | G66: 5537.433417 | H66: 3.332978441 | I66: 9.249211566 | J66: 0.1496449999 | K66: 12 | L66: 0.6867340319 | M66: 0.03882797548 | N66: 0.006887901299 | O66: 0.0004379277906 | P66: 2 | Q66: 0.02925465771 | R66: 0.02925465771 | S66: 0.0002919518604 | T66: 0.0002919518604
B67: Cooleman | C67: WODEN_8+HB_COOLEMAN | D67: Urban | E67: 898 | F67: 2711.495858 | G67: 5427.87468 | H67: 2.294907391 | I67: 1.105966583 | J67: 1.524621762 | K67: 17 | L67: 0.221320145 | M67: 0.221320145 | N67: 0.001081303187 | O67: 0.001081303187 | P67: 4 | Q67: 0.1280046712 | R67: 0.1280046712 | S67: 0.0006217493323 | T67: 0.0006217493323
B68: Cooyong | C68: CITYEA_8TB_COOYONG | D68: Urban | E68: 79 | F68: 0 | G68: 3099.85816 | H68: 3.558065371 | I68: 0 | J68: 0.247887799 | K68: 0 | L68: 0 | M68: 0 | N68: 0 | O68: 0 | P68: 2 | Q68: 0.01836052811 | R68: 0.01836052811 | S68: 0.0001081303187 | T68: 0.0001081303187
B69: Copland | C69: LATHAM_8+PB_COPLAND | D69: Urban | E69: 973 | F69: 6714.352095 | G69: 5731.186614 | H69: 3.026073442 | I69: 0.7794365626 | J69: 2.77557301 | K69: 12 | L69: 0.07169878137 | M69: 0.07126770183 | N69: 0.0007352861669 | O69: 0.000729879651 | P69: 11 | Q69: 0.4644467512 | R69: 0.4644467512 | S69: 0.002681631903 | T69: 0.002681631903
B70: Corrina | C70: WODEN_8UB_CORINNA | D70: Urban | E70: 208 | F70: 0 | G70: 3726.885281 | H70: 2.590385906 | I70: 0.571885163 | J70: 0.06990348053 | K70: 3 | L70: 0.04235473593 | M70: 0.04235473593 | N70: 0.0003892691472 | O70: 0.0003892691472 | P70: 1 | Q70: 0.0001351628983 | R70: 0.0001351628983 | S70: 5.406515933e-06 | T70: 5.406515933e-06
B71: Cotter 11kV | C71: WODEN_8SB_COTTER11KV | D71: Rural short | E71: 1516 | F71: 43321.16117 | G71: 13340.49775 | H71: 5.529052588 | I71: 0.1401382962 | J71: 8.691767401 | K71: 7 | L71: 0.01719335143 | M71: 0.01719335143 | N71: 0.0001027238027 | O71: 0.0001027238027 | P71: 20 | Q71: 0.637925628 | R71: 0.637925628 | S71: 0.002416712622 | T71: 0.002416712622
B72: Cotter 22kV | C72: WODEN_8JB_COTTER22KV | D72: Rural short | E72: 5 | F72: 11254.0934 | G72: 1087.415769 | H72: 1.576027671 | I72: 0 | J72: 0 | K72: 0 | L72: 0 | M72: 0 | N72: 0 | O72: 0 | P72: 0 | Q72: 0 | R72: 0 | S72: 0 | T72: 0
B73: Cowper | C73: CITYEA_8TB_COWPER | D73: Urban | E73: 1557 | F73: 2585.009127 | G73: 7500.419595 | H73: 4.881152709 | I73: 0.3934292354 | J73: 3.137094648 | K73: 19 | L73: 0.03622636001 | M73: 0.03417557841 | N73: 0.0004757734021 | O73: 0.0004541473384 | P73: 8 | Q73: 0.2948335334 | R73: 0.2931791395 | S73: 0.001546263557 | T73: 0.001524637493
B74: CSIRO | C74: CIVIC_8XB_CSIRO | D74: Urban | E74: 104 | F74: 60.78216123 | G74: 4900.70557 | H74: 3.619986188 | I74: 0.009837165013 | J74: 0 | K74: 1 | L74: 0.0007286181306 | M74: 0.0007286181306 | N74: 5.406515933e-06 | O74: 5.406515933e-06 | P74: 0 | Q74: 0 | R74: 0 | S74: 0 | T74: 0
B75: Cunningham | C75: TELOPK_8+LB_CNNINGHM | D75: Urban | E75: 1925 | F75: 7509.018816 | G75: 5858.85518 | H75: 5.536673611 | I75: 19.35136507 | J75: 8.244374997 | K75: 22 | L75: 1.451954185 | M75: 0.7848766233 | N75: 0.03824569371 | O75: 0.02481050162 | P75: 21 | Q75: 1.00071366 | R75: 1.00071366 | S75: 0.003903504504 | T75: 0.003903504504
B76: Curtin North | C76: WODEN_8PB_CURTINNTH | D76: Urban | E76: 1234 | F76: 9702.14982 | G76: 7235.134605 | H76: 4.990920683 | I76: 1.842380602 | J76: 3.20192913 | K76: 14 | L76: 0.1490709803 | M76: 0.1490709803 | N76: 0.002681631903 | O76: 0.002681631903 | P76: 11 | Q76: 0.3603442869 | R76: 0.3603442869 | S76: 0.001897687092 | T76: 0.001897687092
B77: Dairy North | C77: EASTLK_8QB_DAIRYNTH | D77: Urban | E77: 240 | F77: 31979.52438 | G77: 18456.43384 | H77: 4.43924622 | I77: 3.000759305 | J77: 0.2776693721 | K77: 11 | L77: 0.2022413613 | M77: 0.2022413613 | N77: 0.00245996475 | O77: 0.00245996475 | P77: 5 | Q77: 0.02056638661 | R77: 0.02056638661 | S77: 0.0001567889621 | T77: 0.0001567889621
B78: Dairy South | C78: EASTLK_8JB_DAIRYSTH | D78: Urban | E78: 456 | F78: 8470.591327 | G78: 7906.772532 | H78: 6.717932262 | I78: 0.7280519514 | J78: 0.5635578609 | K78: 6 | L78: 0.0540323598 | M78: 0.0540323598 | N78: 0.0001351628983 | O78: 0.0001351628983 | P78: 6 | Q78: 0.06158021648 | R78: 0.06158021648 | S78: 0.0002541062489 | T78: 0.0002541062489
B79: Daplyn | C79: WODEN_8+GB_DAPLYN | D79: Urban | E79: 1047 | F79: 6978.752398 | G79: 1606.984289 | H79: 3.471357176 | I79: 1.554681439 | J79: 1.602996994 | K79: 18 | L79: 0.2131408073 | M79: 0.2131408073 | N79: 0.002584314616 | O79: 0.002584314616 | P79: 8 | Q79: 0.3301813345 | R79: 0.3301813345 | S79: 0.001389474595 | T79: 0.001389474595
B80: Deakin No 1 | C80: WODEN_8NB_DEAKINNO1 | D80: Urban | E80: 1057 | F80: 3688.286676 | G80: 3697.157518 | H80: 3.64706559 | I80: 2.075966652 | J80: 0.4427819167 | K80: 16 | L80: 0.1847584909 | M80: 0.1840663668 | N80: 0.006076923909 | O80: 0.006071517393 | P80: 3 | Q80: 0.03279592565 | R80: 0.03279592565 | S80: 0.0003352039878 | T80: 0.0003352039878
B81: Deakin No 2 | C81: WODEN_8LB_DEAKINNO2 | D81: Urban | E81: 216 | F81: 3375.126646 | G81: 5688.004854 | H81: 2.240580925 | I81: 1.449141456 | J81: 0.3042894249 | K81: 5 | L81: 0.1422021821 | M81: 0.1422021821 | N81: 0.001119148798 | O81: 0.001119148798 | P81: 3 | Q81: 0.04912360377 | R81: 0.04912360377 | S81: 0.0003081714082 | T81: 0.0003081714082
B82: Devonport | C82: WODEN_8+TB_DEVONPORT | D82: Urban | E82: 611 | F82: 2468.806274 | G82: 2077.723248 | H82: 2.2690645 | I82: 0.0628251522 | J82: 0 | K82: 9 | L82: 0.00717850153 | M82: 0.00717850153 | N82: 4.86586434e-05 | O82: 4.86586434e-05 | P82: 0 | Q82: 0 | R82: 0 | S82: 0 | T82: 0
B83: Dryandra | C83: CIVIC_8YB_DRYANDRA | D83: Urban | E83: 1057 | F83: 8787.764053 | G83: 3159.982905 | H83: 3.745954086 | I83: 0.3319483429 | J83: 3.154450241 | K83: 17 | L83: 0.02330001117 | M83: 0.02330001117 | N83: 0.0006650014598 | O83: 0.0006650014598 | P83: 9 | Q83: 0.6724894843 | R83: 0.6724894843 | S83: 0.002789762221 | T83: 0.002789762221
B84: Duffy | C84: CITYEA_8XB_DUFFY | D84: Urban | E84: 978 | F84: 3913.022123 | G84: 5239.806357 | H84: 2.419167664 | I84: 1.068033915 | J84: 1.372665605 | K84: 9 | L84: 0.3233684036 | M84: 0.3233684036 | N84: 0.005292979098 | O84: 0.005292979098 | P84: 5 | Q84: 0.2888755528 | R84: 0.2888755528 | S84: 0.001238092149 | T84: 0.001238092149
B85: Eaglemont | C85: THEDRE_8FB_EAGLEMONT | D85: Urban | E85: 1651 | F85: 0 | G85: 10848.94457 | H85: 3.845344149 | I85: 0.01963296673 | J85: 1.08439963 | K85: 2 | L85: 0.001454172569 | M85: 0.001454172569 | N85: 1.081303187e-05 | O85: 1.081303187e-05 | P85: 2 | Q85: 0.0803192007 | R85: 0.0803192007 | S85: 0.0006974405554 | T85: 0.0006974405554
B86: Eardley | C86: BELCON_8+FB_EARDLEY | D86: Urban | E86: 1050 | F86: 0 | G86: 7213.863496 | H86: 3.143239717 | I86: 0.07088087375 | J86: 1.03336792 | K86: 4 | L86: 0.005249997297 | M86: 0.005249997297 | N86: 0.0001405694143 | O86: 0.0001405694143 | P86: 1 | Q86: 0.001200246537 | R86: 0.001200246537 | S86: 5.406515933e-06 | T86: 5.406515933e-06
B87: Easty | C87: WODEN_8+YB_EASTY | D87: Urban | E87: 604 | F87: 1166.758369 | G87: 4905.678133 | H87: 2.039151556 | I87: 0.04817607402 | J87: 0 | K87: 1 | L87: 0.003568300516 | M87: 0.003568300516 | N87: 1.081303187e-05 | O87: 1.081303187e-05 | P87: 0 | Q87: 0 | R87: 0 | S87: 0 | T87: 0
B88: Ebden | C88: CITYEA_8LB_EBDEN | D88: Urban | E88: 1811 | F88: 6892.003153 | G88: 3400.655986 | H88: 3.886969634 | I88: 2.092558011 | J88: 3.634822978 | K88: 18 | L88: 0.165801534 | M88: 0.165801534 | N88: 0.0110617316 | O88: 0.0110617316 | P88: 9 | Q88: 0.3771207059 | R88: 0.3771207059 | S88: 0.001405694143 | T88: 0.001405694143
B89: Edmund Barton | C89: TELOPK_8NB_EDMNDBRTN | D89: Urban | E89: 145 | F89: 0 | G89: 5507.432075 | H89: 2.103612079 | I89: 0 | J89: 0 | K89: 0 | L89: 0 | M89: 0 | N89: 0 | O89: 0 | P89: 0 | Q89: 0 | R89: 0 | S89: 0 | T89: 0
B90: Edmond | C90: GILMRE_8+PB_EDMOND | D90: Urban | E90: 1054 | F90: 983.9825843 | G90: 8673.90941 | H90: 2.655601001 | I90: 0.8267320153 | J90: 0.3981095571 | K90: 11 | L90: 0.06372669341 | M90: 0.06372669341 | N90: 0.0002811388285 | O90: 0.0002811388285 | P90: 2 | Q90: 0.0294871379 | R90: 0.0294871379 | S90: 0.0002703257967 | T90: 0.0002703257967
B91: Elect House | C91: CITYEA_8HB_ELECHOUSE | D91: Urban | E91: 81 | F91: 0 | G91: 3937.155991 | H91: 2.303454369 | I91: 0 | J91: 0 | K91: 0 | L91: 0 | M91: 0 | N91: 0 | O91: 0 | P91: 0 | Q91: 0 | R91: 0 | S91: 0 | T91: 0
B92: Elkington | C92: LATHAM_8VB_ELKINGTON | D92: Urban | E92: 1569 | F92: 2482.681505 | G92: 8412.53775 | H92: 4.104177151 | I92: 0.3202478246 | J92: 1.972990543 | K92: 7 | L92: 0.02699230112 | M92: 0.02699230112 | N92: 0.000486586434 | O92: 0.000486586434 | P92: 10 | Q92: 0.6412614483 | R92: 0.6412614483 | S92: 0.00287085996 | T92: 0.00287085996
B93: Empire | C93: TELOPK_8TB_EMPIRE | D93: Urban | E93: 1242 | F93: 2023.438886 | G93: 6787.649453 | H93: 4.191650034 | I93: 3.033719013 | J93: 5.320117869 | K93: 17 | L93: 0.2253299777 | M93: 0.1866250005 | N93: 0.006990625101 | O93: 0.006823023107 | P93: 11 | Q93: 0.4031530801 | R93: 0.4031530801 | S93: 0.002146386825 | T93: 0.002146386825
B94: Emu Bank | C94: BELCON_8JB_EMUBANK | D94: Urban | E94: 328 | F94: 0 | G94: 3609.38535 | H94: 2.821960804 | I94: 0.008558552543 | J94: 0.06876039655 | K94: 1 | L94: 0.0006339139931 | M94: 0.0006339139931 | N94: 5.406515933e-06 | O94: 5.406515933e-06 | P94: 1 | Q94: 0.005092938009 | R94: 0.005092938009 | S94: 0.0001459759302 | T94: 0.0001459759302
B95: Erindale | C95: WANNIA_8+HB_ERINDALE | D95: Urban | E95: 142 | F95: 0 | G95: 9244.161488 | H95: 3.346056117 | I95: 0.006329800837 | J95: 0 | K95: 2 | L95: 0.00046883504 | M95: 0.00046883504 | N95: 1.081303187e-05 | O95: 1.081303187e-05 | P95: 0 | Q95: 0 | R95: 0 | S95: 0 | T95: 0
B96: Fairbairn | C96: CITYEA_8DB_FAIRBAIRN | D96: Urban | E96: 30 | F96: 5287.110326 | G96: 2076.227407 | H96: 4.172510395 | I96: 0.009938140118 | J96: 0.1125568275 | K96: 1 | L96: 0.0007360971443 | M96: 0.0007360971443 | N96: 5.406515933e-06 | O96: 5.406515933e-06 | P96: 1 | Q96: 0.008336847569 | R96: 0.008336847569 | S96: 5.947167526e-05 | T96: 5.947167526e-05
B97: Fairley | C97: THEDRE_8+UB_FAIRLEY | D97: Rural short | E97: 1125 | F97: 30959.24221 | G97: 6863.861693 | H97: 2.717186767 | I97: 4.789180614 | J97: 0 | K97: 10 | L97: 0.3551904355 | M97: 0.3551904355 | N97: 0.006228306355 | O97: 0.006228306355 | P97: 0 | Q97: 0 | R97: 0 | S97: 0 | T97: 0
B98: Falkiner | C98: GILMRE_8MB_FALKINER | D98: Urban | E98: 810 | F98: 1395.284907 | G98: 7167.266584 | H98: 2.713330294 | I98: 10.90591472 | J98: 0 | K98: 3 | L98: 0.8077781743 | M98: 0.8077781743 | N98: 0.005136190136 | O98: 0.005136190136 | P98: 0 | Q98: 0 | R98: 0 | S98: 0 | T98: 0
B99: Ferdinand | C99: CITYEA_8EB_FERDINAND | D99: Urban | E99: 1145 | F99: 6403.82307 | G99: 7491.230197 | H99: 3.628771984 | I99: 0.20977039 | J99: 28.89929742 | K99: 12 | L99: 0.015913539 | M99: 0.015913539 | N99: 0.0004649603702 | O99: 0.0004649603702 | P99: 38 | Q99: 2.337685579 | R99: 2.337685579 | S99: 0.007920545842 | T99: 0.007920545842
B100: Ferguson | C100: GOLDCR_8EB_FERGUSON | D100: Urban | E100: 2371 | F100: 0 | G100: 16357.04237 | H100: 5.075238653 | I100: 0.09003068136 | J100: 0.5421998149 | K100: 6 | L100: 0.007350789171 | M100: 0.007350789171 | N100: 0.0002324801851 | O100: 0.0002324801851 | P100: 1 | Q100: 0.04015960035 | R100: 0.04015960035 | S100: 0.0001351628983 | T100: 0.0001351628983
B101: Fielder | C101: LATHAM_8+JB_FIELDER | D101: Urban | E101: 1421 | F101: 5194.046317 | G101: 5172.293268 | H101: 5.523265276 | I101: 1.006583704 | J101: 0.897826834 | K101: 22 | L101: 0.08890835235 | M101: 0.08890835235 | N101: 0.0008163839059 | O101: 0.0008163839059 | P101: 2 | Q101: 0.06650014598 | R101: 0.06650014598 | S101: 0.0002216671533 | T101: 0.0002216671533
B102: Fincham | C102: WANNIA_8LB_FINCHAM | D102: Urban | E102: 273 | F102: 1959.248156 | G102: 7543.385526 | H102: 3.815158696 | I102: 0 | J102: 0 | K102: 0 | L102: 0 | M102: 0 | N102: 0 | O102: 0 | P102: 0 | Q102: 0 | R102: 0 | S102: 0 | T102: 0
B103: Findlayson | C103: GILMRE_8+RB_FINDLYSN | D103: Rural short | E103: 928 | F103: 312.8703496 | G103: 10726.98424 | H103: 2.5542022 | I103: 0.2735194688 | J103: 0 | K103: 11 | L103: 0.02158037867 | M103: 0.02158037867 | N103: 8.650425493e-05 | O103: 8.650425493e-05 | P103: 0 | Q103: 0 | R103: 0 | S103: 0 | T103: 0
B104: Florey | C104: LATHAM_8GB_FLOREY | D104: Urban | E104: 1087 | F104: 6815.64106 | G104: 5317.864668 | H104: 2.797253191 | I104: 10.87955242 | J104: 3.83203832 | K104: 24 | L104: 1.163540529 | M104: 1.163098817 | N104: 0.02094484272 | O104: 0.02093943621 | P104: 5 | Q104: 0.2888971789 | R104: 0.2888971789 | S104: 0.001146181378 | T104: 0.001146181378
B105: Folingsby | C105: WODEN_8GB_FOLINGSBY | D105: Urban | E105: 1094 | F105: 6514.515375 | G105: 8343.560274 | H105: 5.871004104 | I105: 16.27460337 | J105: 3.283882349 | K105: 10 | L105: 1.209245683 | M105: 1.209245683 | N105: 0.01173213957 | O105: 0.01173213957 | P105: 14 | Q105: 0.3069441291 | R105: 0.3069441291 | S105: 0.001870654513 | T105: 0.001870654513
B106: Forster | C106: TELOPK_8+HB_FORSTER | D106: Urban | E106: 501 | F106: 1276.241716 | G106: 8549.730605 | H106: 3.913084362 | I106: 1.808042466 | J106: 3.199140786 | K106: 6 | L106: 0.2094473459 | M106: 0.2091226847 | N106: 0.002708664482 | O106: 0.002703257967 | P106: 5 | Q106: 0.2621078924 | R106: 0.2621078924 | S106: 0.001178620473 | T106: 0.001178620473
B107: Gallery | C107: TELOPK_8+RB_GALLERY | D107: Urban | E107: 4 | F107: 0 | G107: 3357.712453 | H107: 2.723708092 | I107: 0 | J107: 14.78512268 | K107: 0 | L107: 0 | M107: 0 | N107: 0 | O107: 0 | P107: 3 | Q107: 0.02815172846 | R107: 0.02815172846 | S107: 3.24390956e-05 | T107: 3.24390956e-05
B108: Garran | C108: WODEN_8EB_GARRAN | D108: Urban | E108: 8 | F108: 0 | G108: 4456.983055 | H108: 2.267254507 | I108: 0 | J108: 0 | K108: 0 | L108: 0 | M108: 0 | N108: 0 | O108: 0 | P108: 0 | Q108: 0 | R108: 0 | S108: 0 | T108: 0
B109: Gaunson | C109: WANNIA_8SB_GAUNSON | D109: Urban | E109: 754 | F109: 0 | G109: 7125.895473 | H109: 2.297239424 | I109: 0.2550031111 | J109: 0 | K109: 8 | L109: 0.0275569216 | M109: 0.0275569216 | N109: 0.0003838626312 | O109: 0.0003838626312 | P109: 0 | Q109: 0 | R109: 0 | S109: 0 | T109: 0
B110: Giles | C110: TELOPK_8VB_GILES | D110: Urban | E110: 631 | F110: 5286.406183 | G110: 6079.519981 | H110: 3.17415631 | I110: 0.6429889554 | J110: 0.7689523007 | K110: 9 | L110: 0.05883740084 | M110: 0.05883740084 | N110: 0.0004919929499 | O110: 0.0004919929499 | P110: 5 | Q110: 0.06947372974 | R110: 0.06947372974 | S110: 0.0005028059818 | T110: 0.0005028059818
B111: Girrahween | C111: CIVIC_8+JB_GIRRAHWN | D111: Urban | E111: 151 | F111: 0 | G111: 3770.939523 | H111: 2.903609974 | I111: 0 | J111: 0 | K111: 0 | L111: 0 | M111: 0 | N111: 0 | O111: 0 | P111: 0 | Q111: 0 | R111: 0 | S111: 0 | T111: 0
B112: Gladstone | C112: FYSHWK_8JB_GLADSTONE | D112: Urban | E112: 251 | F112: 4343.871161 | G112: 1875.365287 | H112: 3.467790537 | I112: 0.04090128374 | J112: 0.314774402 | K112: 7 | L112: 0.003169209531 | M112: 0.003169209531 | N112: 3.784561153e-05 | O112: 3.784561153e-05 | P112: 5 | Q112: 0.06354818828 | R112: 0.06354818828 | S112: 0.0001513824461 | T112: 0.0001513824461
B113: Gouger | C113: WANNIA_8+NB_GOUGER | D113: Urban | E113: 1196 | F113: 6180.713325 | G113: 2243.17872 | H113: 4.216043587 | I113: 3.044200268 | J113: 1.297866078 | K113: 15 | L113: 0.4386322596 | M113: 0.4386322596 | N113: 0.01343519209 | O113: 0.01343519209 | P113: 6 | Q113: 0.4719780279 | R113: 0.4719780279 | S113: 0.00176793071 | T113: 0.00176793071
B114: Gribble | C114: GOLDCR_8QB_GRIBBLE | D114: Urban | E114: 350 | F114: 0 | G114: 5830.186651 | H114: 4.709792556 | I114: 0.002870211601 | J114: 0.1085420583 | K114: 1 | L114: 0.0004541473384 | M114: 0.0004541473384 | N114: 1.081303187e-05 | O114: 1.081303187e-05 | P114: 3 | Q114: 0.02285874936 | R114: 0.02285874936 | S114: 0.0007947578422 | T114: 0.0007947578422
B115: Grimshaw | C115: WANNIA_8ZB_GRIMSHAW | D115: Urban | E115: 1741 | F115: 0 | G115: 17855.76927 | H115: 4.179975188 | I115: 1.087616063 | J115: 6.116320347 | K115: 5 | L115: 0.3388444653 | M115: 0.3361166978 | N115: 0.0122511651 | O115: 0.01221331949 | P115: 14 | Q115: 0.4888139185 | R115: 0.4888139185 | S115: 0.002211265017 | T115: 0.002211265017
B116: Gungahlin | C116: GOLDCR_8GB_GUNGAHLIN | D116: Urban | E116: 158 | F116: 5298.606088 | G116: 3769.235403 | H116: 1.9738451 | I116: 0.2747677562 | J116: 0 | K116: 5 | L116: 0.02137799476 | M116: 0.004963812387 | N116: 0.0009028881608 | O116: 6.48781912e-05 | P116: 0 | Q116: 0 | R116: 0 | S116: 0 | T116: 0
B117: Gurrang | C117: GOLDCR_8+KB_GURRANG | D117: Urban | E117: 1355 | F117: 1314.146227 | G117: 12482.43815 | H117: 3.434868426 | I117: 0.03759740418 | J117: 0.2018671935 | K117: 6 | L117: 0.003115775132 | M117: 0.003115775132 | N117: 3.24390956e-05 | O117: 3.24390956e-05 | P117: 3 | Q117: 0.01917691201 | R117: 0.01917691201 | S117: 0.0001351628983 | T117: 0.0001351628983
B118: Haig | C118: CITYEA_8+LB_HAIG | D118: Urban | E118: 958 | F118: 0 | G118: 5360.428558 | H118: 2.627590649 | I118: 0.2300595064 | J118: 2.148170584 | K118: 6 | L118: 0.02763396445 | M118: 0.02763396445 | N118: 0.0003406105038 | O118: 0.0003406105038 | P118: 7 | Q118: 0.2681685968 | R118: 0.2681685968 | S118: 0.001227279117 | T118: 0.001227279117
B119: Harman | C119: GILMRE_8GB_HARMAN1 | D119: Urban | E119: 2 | F119: 0 | G119: 19150.96079 | H119: 3.285147754 | I119: 0 | J119: 0 | K119: 0 | L119: 0 | M119: 0 | N119: 0 | O119: 0 | P119: 0 | Q119: 0 | R119: 0 | S119: 0 | T119: 0
B120: HAWKRPRD | C120: WANNIA_8+LB_HAWKRPRD | D120: Urban | E120: 2388 | F120: 12848.71942 | G120: 4600.838063 | H120: 6.571820093 | I120: 0.6183989687 | J120: 10.35128593 | K120: 18 | L120: 0.07083743327 | M120: 0.07083743327 | N120: 0.0008542295174 | O120: 0.0008542295174 | P120: 31 | Q120: 1.299391226 | R120: 1.299391226 | S120: 0.005801191596 | T120: 0.005801191596
B121: Haydon | C121: BELCON_8WB_HAYDON | D121: Urban | E121: 1143 | F121: 4587.753464 | G121: 8296.509915 | H121: 4.139168417 | I121: 5.85849529 | J121: 0 | K121: 12 | L121: 0.449235789 | M121: 0.449235789 | N121: 0.006098549972 | O121: 0.006098549972 | P121: 0 | Q121: 0 | R121: 0 | S121: 0 | T121: 0
B122: Hemmings | C122: WANNIA_8QB_HEMMINGS | D122: Urban | E122: 795 | F122: 1167.885273 | G122: 12085.50845 | H122: 4.149647325 | I122: 0.4911927882 | J122: 0 | K122: 4 | L122: 0.03638161712 | M122: 0.03638161712 | N122: 0.004644197186 | O122: 0.004644197186 | P122: 0 | Q122: 0 | R122: 0 | S122: 0 | T122: 0
B123: Hilder | C123: WODEN_8+JB_HILDER | D123: Urban | E123: 1782 | F123: 3553.55318 | G123: 11809.84664 | H123: 4.132955378 | I123: 0.9543977724 | J123: 10.67931372 | K123: 13 | L123: 0.312635208 | M123: 0.312635208 | N123: 0.006482412604 | O123: 0.006482412604 | P123: 18 | Q123: 0.8468171841 | R123: 0.8145078449 | S123: 0.003422324586 | T123: 0.003292568203
B124: Hindmarsh | C124: WODEN_8+RB_HINDMARSH | D124: Urban | E124: 109 | F124: 1575.543959 | G124: 2067.591449 | H124: 3.372314354 | I124: 0 | J124: 0.5619082088 | K124: 0 | L124: 0 | M124: 0 | N124: 0 | O124: 0 | P124: 1 | Q124: 0.04161935965 | R124: 0.04161935965 | S124: 8.650425493e-05 | T124: 8.650425493e-05
B125: Hobart Long | C125: CIVIC_8+GB_HOBARTLNG | D125: Urban | E125: 556 | F125: 0 | G125: 5020.875874 | H125: 3.888722912 | I125: 0.04155141687 | J125: 0 | K125: 1 | L125: 0.004238708491 | M125: 0.004238708491 | N125: 7.569122306e-05 | O125: 7.569122306e-05 | P125: 0 | Q125: 0 | R125: 0 | S125: 0 | T125: 0
B126: Hobart Short | C126: CIVIC_8UB_HOBARTSHRT | D126: Urban | E126: 66 | F126: 0 | G126: 3971.728304 | H126: 4.134405278 | I126: 2.392745346 | J126: 1.822904531 | K126: 2 | L126: 0.07681577838 | M126: 0.07681577838 | N126: 3.24390956e-05 | O126: 3.24390956e-05 | P126: 4 | Q126: 0.01286750792 | R126: 0.01286750792 | S126: 0.0001297563824 | T126: 0.0001297563824
B127: Homann | C127: LATHAM_8DB_HOMANN | D127: Rural short | E127: 942 | F127: 21333.64557 | G127: 3486.74931 | H127: 2.65021237 | I127: 10.9036522 | J127: 9.874150142 | K127: 22 | L127: 0.8237804702 | M127: 0.4327058171 | N127: 0.0114023421 | O127: 0.006212086807 | P127: 14 | Q127: 0.8022837123 | R127: 0.8022837123 | S127: 0.002978990279 | T127: 0.002978990279
B128: Hughes | C128: GOLDCR_8JB_HUGHES | D128: Urban | E128: 1049 | F128: 0 | G128: 9339.903014 | H128: 2.470200802 | I128: 2.280461154 | J128: 0.1291994712 | K128: 5 | L128: 0.6564263651 | M128: 0.6564263651 | N128: 0.0170359317 | O128: 0.0170359317 | P128: 1 | Q128: 0.009569533201 | R128: 0.009569533201 | S128: 3.784561153e-05 | T128: 3.784561153e-05
B129: Ijong | C129: CITYEA_8+TB_IJONG | D129: Urban | E129: 1353 | F129: 0 | G129: 5878.672304 | H129: 3.632555247 | I129: 0.2613428639 | J129: 2.500170979 | K129: 10 | L129: 0.03553135239 | M129: 0.03553135239 | N129: 0.000405488695 | O129: 0.000405488695 | P129: 8 | Q129: 0.191715055 | R129: 0.191715055 | S129: 0.001081303187 | T129: 0.001081303187
B130: Isa | C130: EASTLK_8GB_ISA | D130: Urban | E130: 291 | F130: 2254.193466 | G130: 1958.739318 | H130: 2.792506882 | I130: 0.04179168129 | J130: 2.662703532 | K130: 2 | L130: 0.001054270607 | M130: 0.001054270607 | N130: 1.081303187e-05 | O130: 1.081303187e-05 | P130: 4 | Q130: 0.4816286589 | R130: 0.4816286589 | S130: 0.001038051059 | T130: 0.001038051059
B131: Jackie Howe | C131: GILMRE_8JB_JACKIEHOW | D131: Urban | E131: 934 | F131: 1091.591251 | G131: 10894.02557 | H131: 2.487265825 | I131: 0.05966202444 | J131: 0.4886691761 | K131: 5 | L131: 0.007679415231 | M131: 0.007679415231 | N131: 6.48781912e-05 | O131: 6.48781912e-05 | P131: 2 | Q131: 0.06581892497 | R131: 0.06581892497 | S131: 0.0005136190136 | T131: 0.0005136190136
B132: Jardine | C132: TELOPK_8+SB_JARDINE | D132: Urban | E132: 1149 | F132: 395.7522572 | G132: 3568.567534 | H132: 3.919418509 | I132: 0.557804807 | J132: 0.2703624072 | K132: 6 | L132: 0.239538662 | M132: 0.239538662 | N132: 0.001870654513 | O132: 0.001870654513 | P132: 3 | Q132: 0.1247391356 | R132: 0.1247391356 | S132: 0.0003784561153 | T132: 0.0003784561153
B133: Jolimont | C133: CIVIC_8+FB_JOLIMONT | D133: Urban | E133: 163 | F133: 0 | G133: 3598.907118 | H133: 3.772406659 | I133: 0.01031950247 | J133: 0 | K133: 1 | L133: 0.0009515468042 | M133: 0.0009515468042 | N133: 1.081303187e-05 | O133: 1.081303187e-05 | P133: 0 | Q133: 0 | R133: 0 | S133: 0 | T133: 0
B134: Kelliher | C134: TELOPK_8PB_KELLIHER | D134: Urban | E134: 2 | F134: 2119.317446 | G134: 2608.423533 | H134: 3.714448775 | I134: 0 | J134: 0 | K134: 0 | L134: 0 | M134: 0 | N134: 0 | O134: 0 | P134: 0 | Q134: 0 | R134: 0 | S134: 0 | T134: 0
B135: Kent | C135: WODEN_8+QB_KENT | D135: Urban | E135: 49 | F135: 0 | G135: 4041.232065 | H135: 2.640671324 | I135: 0 | J135: 0 | K135: 0 | L135: 0 | M135: 0 | N135: 0 | O135: 0 | P135: 0 | Q135: 0 | R135: 0 | S135: 0 | T135: 0
B136: KF1 | C136: TELOPK_8+JB_KF1 | D136: Urban | E136: 1092 | F136: 0 | G136: 2558.93078 | H136: 2.97838117 | I136: 0.05371454091 | J136: 1.167612848 | K136: 6 | L136: 0.004902898974 | M136: 0.004902898974 | N136: 3.24390956e-05 | O136: 3.24390956e-05 | P136: 1 | Q136: 0.08648262886 | R136: 0.08648262886 | S136: 0.0002324801851 | T136: 0.0002324801851
B137: King | C137: WODEN_8+EB_KING | D137: Urban | E137: 340 | F137: 892.5239748 | G137: 5132.214507 | H137: 4.016279413 | I137: 0.01908307821 | J137: 0.07226411103 | K137: 2 | L137: 0.001413443482 | M137: 0.001413443482 | N137: 1.081303187e-05 | O137: 1.081303187e-05 | P137: 2 | Q137: 0.005352450774 | R137: 0.005352450774 | S137: 3.24390956e-05 | T137: 3.24390956e-05
B138: Kurrajong | C138: TELOPK_8HB_KURRAJONG | D138: Urban | E138: 25 | F138: 0 | G138: 3196.584532 | H138: 2.097339786 | I138: 0 | J138: 0 | K138: 0 | L138: 0 | M138: 0 | N138: 0 | O138: 0 | P138: 0 | Q138: 0 | R138: 0 | S138: 0 | T138: 0
B139: Lambrigg | C139: WANNIA_8+PB_LAMBRIGG | D139: Urban | E139: 1291 | F139: 6561.461394 | G139: 1561.126207 | H139: 3.640444826 | I139: 5.075336158 | J139: 9.951810195 | K139: 14 | L139: 0.59461502 | M139: 0.59461502 | N139: 0.01420832387 | O139: 0.01420832387 | P139: 21 | Q139: 0.814897114 | R139: 0.814897114 | S139: 0.00385484586 | T139: 0.00385484586
B140: Lander | C140: GOLDCR_8PB_LANDER | D140: Urban | E140: 2202 | F140: 2733.068894 | G140: 15084.50785 | H140: 7.217109305 | I140: 2.249110476 | J140: 1.054450168 | K140: 19 | L140: 0.8177783365 | M140: 0.8177783365 | N140: 0.01469491031 | O140: 0.01469491031 | P140: 6 | Q140: 0.1114228869 | R140: 0.1114228869 | S140: 0.000481179918 | T140: 0.000481179918
B141: Langdon | C141: WANNIA_8VB_LANGDON | D141: Urban | E141: 1210 | F141: 3247.754884 | G141: 10842.39116 | H141: 4.114318165 | I141: 0.613096012 | J141: 1.29374657 | K141: 13 | L141: 0.08012204309 | M141: 0.08008960399 | N141: 0.0007677252625 | O141: 0.0007623187466 | P141: 2 | Q141: 0.0958250884 | R141: 0.0958250884 | S141: 0.0003946756631 | T141: 0.0003946756631
B142: Latham | C142: LATHAM_8KB_LATHAM | D142: Urban | E142: 1061 | F142: 5804.564289 | G142: 2449.489465 | H142: 2.363766039 | I142: 1.775579354 | J142: 0.910527799 | K142: 15 | L142: 0.172230332 | M142: 0.172230332 | N142: 0.006871681751 | O142: 0.006871681751 | P142: 3 | Q142: 0.06744087975 | R142: 0.06744087975 | S142: 0.0003460170197 | T142: 0.0003460170197
B143: Launceston | C143: WODEN_8+XB_LAUNCESTN | D143: Urban | E143: 92 | F143: 0 | G143: 5443.375185 | H143: 1.9738451 | I143: 0 | J143: 2.663720395 | K143: 0 | L143: 0 | M143: 0 | N143: 0 | O143: 0 | P143: 12 | Q143: 0.1955915269 | R143: 0.1955915269 | S143: 0.0008488230015 | T143: 0.0008488230015
B144: Lawrence Wackett | C144: THEDRE_8+TB_LAWRCWCK | D144: Urban | E144: 1294 | F144: 0 | G144: 10823.67636 | H144: 3.672389542 | I144: 0.1620963338 | J144: 0.5643931258 | K144: 11 | L144: 0.03752194144 | M144: 0.03752194144 | N144: 0.0001135368346 | O144: 0.0001135368346 | P144: 2 | Q144: 0.01535991177 | R144: 0.01535991177 | S144: 7.028470713e-05 | T144: 7.028470713e-05
B145: Lethbridge | C145: THEDRE_8JB_LETHBRIDG | D145: Urban | E145: 1345 | F145: 75.22255563 | G145: 10263.6255 | H145: 3.661139715 | I145: 0.2251367169 | J145: 1.378711646 | K145: 4 | L145: 0.01691446531 | M145: 0.01691446531 | N145: 9.191077086e-05 | O145: 9.191077086e-05 | P145: 2 | Q145: 0.1021182729 | R145: 0.1021182729 | S145: 0.0002270736692 | T145: 0.0002270736692
B146: Lexcen | C146: GOLDCR_8HB_LEXCEN | D146: Rural short | E146: 901 | F146: 0 | G146: 9811.848017 | H146: 3.337608535 | I146: 0.3109578766 | J146: 0 | K146: 4 | L146: 0.07852441763 | M146: 0.07852441763 | N146: 2.162606373e-05 | O146: 2.162606373e-05 | P146: 0 | Q146: 0 | R146: 0 | S146: 0 | T146: 0
B147: Lhotsky | C147: LATHAM_8FB_LHOTSKY | D147: Urban | E147: 2475 | F147: 3091.195829 | G147: 13976.62912 | H147: 5.093269021 | I147: 3.298081792 | J147: 0.04940084088 | K147: 11 | L147: 0.2485631283 | M147: 0.2485631283 | N147: 0.005606557023 | O147: 0.005606557023 | P147: 2 | Q147: 0.03555324878 | R147: 0.03555324878 | S147: 0.0001946345736 | T147: 0.0001946345736
B148: Ling | C148: GOLDCR_8LB_LING | D148: Urban | E148: 147 | F148: 0 | G148: 2364.408097 | H148: 0.3652526846 | I148: 0.0009338717461 | J148: 0 | K148: 1 | L148: 0.0004108952109 | M148: 0.0004108952109 | N148: 5.406515933e-06 | O148: 5.406515933e-06 | P148: 0 | Q148: 0 | R148: 0 | S148: 0 | T148: 0
B149: Longmore | C149: WANNIA_8HB_LONGMORE | D149: Urban | E149: 1366 | F149: 169.2754242 | G149: 12568.88235 | H149: 3.659432606 | I149: 0.7864786812 | J149: 2.371646723 | K149: 25 | L149: 0.07979612028 | M149: 0.07979612028 | N149: 0.0009569533201 | O149: 0.0009569533201 | P149: 5 | Q149: 0.1976027508 | R149: 0.1976027508 | S149: 0.0008380099696 | T149: 0.0008380099696
B150: Lonsdale | C150: CITYEA_8+MB_LONSDALE | D150: Urban | E150: 575 | F150: 0 | G150: 4047.845023 | H150: 4.092489648 | I150: 0.3479215817 | J150: 0 | K150: 7 | L150: 0.05307594713 | M150: 0.05307594713 | N150: 9.731728679e-05 | O150: 9.731728679e-05 | P150: 0 | Q150: 0 | R150: 0 | S150: 0 | T150: 0
B151: Low Molonglo East | C151: LATHAM_8RB_LWMLNGLOE | D151: Urban | E151: 214 | F151: 4468.905224 | G151: 7078.768976 | H151: 2.229149389 | I151: 0.2229939695 | J151: 0.59179226 | K151: 4 | L151: 0.02430769563 | M151: 0.02430769563 | N151: 2.162606373e-05 | O151: 2.162606373e-05 | P151: 4 | Q151: 0.1580432738 | R151: 0.1580432738 | S151: 0.000405488695 | T151: 0.000405488695
B152: Low Molonglo West | C152: LATHAM_8TB_LWMLNGLOW | D152: Urban | E152: 317 | F152: 7896.811122 | G152: 7326.219244 | H152: 2.765288396 | I152: 0.04664854796 | J152: 0.2455732243 | K152: 7 | L152: 0.01091323263 | M152: 0.01091323263 | N152: 0.0001027238027 | O152: 0.0001027238027 | P152: 5 | Q152: 0.07799439885 | R152: 0.07799439885 | S152: 0.0003784561153 | T152: 0.0003784561153
B153: Lyell | C153: EASTLK_8FB_LYELL | D153: Urban | E153: 311 | F153: 2167.135671 | G153: 2166.721531 | H153: 3.147482728 | I153: 0.2504215508 | J153: 2.319245059 | K153: 10 | L153: 0.02359917172 | M153: 0.02359917172 | N153: 0.0001513824461 | O153: 0.0001513824461 | P153: 7 | Q153: 0.3177301284 | R153: 0.3177301284 | S153: 0.001173213957 | T153: 0.001173213957
B154: Lyons West | C154: WODEN_8+UB_LYONSWEST | D154: Urban | E154: 1896 | F154: 10269.88846 | G154: 2157.174243 | H154: 4.781866481 | I154: 7.804267128 | J154: 1.297216327 | K154: 24 | L154: 1.410130549 | M154: 1.410130549 | N154: 0.02284252982 | O154: 0.02284252982 | P154: 7 | Q154: 0.3395508267 | R154: 0.3395508267 | S154: 0.001600328716 | T154: 0.001600328716
B155: Mackenzie | C155: CITYEA_8YB_MACKENZIE | D155: Rural short | E155: 2147 | F155: 27615.16087 | G155: 8440.305377 | H155: 5.591995403 | I155: 0.2334479614 | J155: 1.155385473 | K155: 16 | L155: 0.02044275761 | M155: 0.02044275761 | N155: 0.0004703668862 | O155: 0.0004703668862 | P155: 11 | Q155: 0.1730950141 | R155: 0.1730950141 | S155: 0.0006001232686 | T155: 0.0006001232686
B156: Macrossan | C156: LATHAM_8JB_MACROSSAN | D156: Rural short | E156: 2526 | F156: 27836.30636 | G156: 11149.81633 | H156: 5.074182252 | I156: 0.3413096406 | J156: 0.5842375371 | K156: 16 | L156: 0.02699653623 | M156: 0.02699653623 | N156: 0.0003135779241 | O156: 0.0003135779241 | P156: 12 | Q156: 0.116391475 | R156: 0.116391475 | S156: 0.0009299207405 | T156: 0.0009299207405
B157: Magenta | C157: GOLDCR_8+SB_MAGENTA | D157: Urban | E157: 2115 | F157: 1211.298097 | G157: 13360.38326 | H157: 1.806182582 | I157: 0.02439217889 | J157: 1.663629735 | K157: 3 | L157: 0.01175466672 | M157: 0.01175466672 | N157: 1.62195478e-05 | O157: 1.62195478e-05 | P157: 6 | Q157: 0.09422475968 | R157: 0.09422475968 | S157: 0.0004757734021 | T157: 0.0004757734021
B158: Mannheim | C158: WANNIA_8+EB_MANNHEIM | D158: Urban | E158: 722 | F158: 1014.82062 | G158: 8261.548753 | H158: 0.8335494511 | I158: 0.03724306798 | J158: 3.100203668 | K158: 7 | L158: 0.003011879918 | M158: 0.003011879918 | N158: 3.784561153e-05 | O158: 3.784561153e-05 | P158: 7 | Q158: 0.2585504049 | R158: 0.2585504049 | S158: 0.001194840021 | T158: 0.001194840021
B159: Maribyrnong | C159: BELCON_8TB_MARBYNONG | D159: Urban | E159: 503 | F159: 6906.447009 | G159: 3740.489621 | H159: 3.086514539 | I159: 0.5156278745 | J159: 1.010393387 | K159: 9 | L159: 0.0387139881 | M159: 0.0387139881 | N159: 0.0002541062489 | O159: 0.0002541062489 | P159: 2 | Q159: 0.07710773024 | R159: 0.07710773024 | S159: 0.0001784150258 | T159: 0.0001784150258
B160: Marconi | C160: WANNIA_8EB_MARCONI | D160: Urban | E160: 1051 | F160: 2026.020022 | G160: 10356.04455 | H160: 2.978564646 | I160: 1.809298504 | J160: 1.880257817 | K160: 20 | L160: 0.1739919551 | M160: 0.1739919551 | N160: 0.002941144668 | O160: 0.002941144668 | P160: 4 | Q160: 0.1628334469 | R160: 0.1155696846 | S160: 0.0007947578422 | T160: 0.0005406515933
B161: Markell | C161: LATHAM_8+GB_MARKELL | D161: Urban | E161: 1451 | F161: 2735.92569 | G161: 9092.393791 | H161: 3.646565414 | I161: 1.994560107 | J161: 0.8816172879 | K161: 13 | L161: 0.1517161183 | M161: 0.1517161183 | N161: 0.001297563824 | O161: 0.001297563824 | P161: 2 | Q161: 0.1478736173 | R161: 0.1478736173 | S161: 0.0006163428164 | T161: 0.0006163428164
B162: Masson | C162: CITYEA_8+SB_MASSON | D162: Urban | E162: 1217 | F162: 0 | G162: 6232.573737 | H162: 2.854091297 | I162: 0.06418696476 | J162: 0.9013305485 | K162: 6 | L162: 0.005571865212 | M162: 0.005571865212 | N162: 3.24390956e-05 | O162: 3.24390956e-05 | P162: 3 | Q162: 0.06675965874 | R162: 0.06675965874 | S162: 0.001194840021 | T162: 0.001194840021
B163: Matthews | C163: WANNIA_8JB_MATTHEWS | D163: Rural short | E163: 1750 | F163: 109747.5674 | G163: 20526.29335 | H163: 4.686929485 | I163: 0.1577194048 | J163: 2.236683727 | K163: 14 | L163: 0.05581398702 | M163: 0.05581398702 | N163: 0.0004271147587 | O163: 0.0004271147587 | P163: 12 | Q163: 0.1682724019 | R163: 0.1682724019 | S163: 0.0007839448103 | T163: 0.0007839448103
B164: May Maxwell | C164: GILMRE_8+SB_MAYMAXWL | D164: Urban | E164: 817 | F164: 1050.987101 | G164: 7357.214691 | H164: 2.229149389 | I164: 0.08507234325 | J164: 0.9140315134 | K164: 9 | L164: 0.0148079966 | M164: 0.0148079966 | N164: 0.0001838215417 | O164: 0.0001838215417 | P164: 4 | Q164: 0.06770039251 | R164: 0.06770039251 | S164: 0.0004217082428 | T164: 0.0004217082428
B165: McCaughey | C165: CIVIC_8+HB_MCCAUGHEY | D165: Urban | E165: 643 | F165: 1124.151633 | G165: 4832.796449 | H165: 1.555812525 | I165: 0.008911357127 | J165: 0.8233676617 | K165: 2 | L165: 0.0006600454869 | M165: 0.0006600454869 | N165: 1.081303187e-05 | O165: 1.081303187e-05 | P165: 5 | Q165: 0.06626766579 | R165: 0.06626766579 | S165: 0.000805570874 | T165: 0.000805570874
B166: McGuiness | C166: BELCON_8NB_MCGUINESS | D166: Urban | E166: 900 | F166: 0 | G166: 9628.742599 | H166: 1.392361003 | I166: 0.8324365703 | J166: 0.918965311 | K166: 18 | L166: 0.0637873365 | M166: 0.0637873365 | N166: 0.0008542295174 | O166: 0.0008542295174 | P166: 3 | Q166: 0.1083627988 | R166: 0.1083627988 | S166: 0.000486586434 | T166: 0.000486586434
B167: MCHMBEAN | C167: BELCON_8+GB_MCHMBEAN | D167: Rural short | E167: 3213 | F167: 11431.16313 | G167: 22957.87138 | H167: 8.783812463 | I167: 17.70447397 | J167: 6.565523771 | K167: 26 | L167: 1.384577913 | M167: 0.1565477413 | N167: 0.03754825315 | O167: 0.01909040776 | P167: 17 | Q167: 0.706637039 | R167: 0.706637039 | S167: 0.002984396795 | T167: 0.002984396795
B168: McInnes | C168: WODEN_8+VB_MCINNES | D168: Urban | E168: 1119 | F168: 5135.795195 | G168: 4412.017776 | H168: 2.255931571 | I168: 2.123277606 | J168: 4.637499105 | K168: 13 | L168: 0.1772731696 | M168: 0.1772731696 | N168: 0.006617575502 | O168: 0.006617575502 | P168: 14 | Q168: 0.3511640229 | R168: 0.3511640229 | S168: 0.002011223927 | T168: 0.002011223927
B169: Melba | C169: LATHAM_8UB_MELBA | D169: Urban | E169: 868 | F169: 5910.683459 | G169: 2973.393406 | H169: 2.423359375 | I169: 1.35113855 | J169: 9.80001356 | K169: 9 | L169: 0.2770024834 | M169: 0.2770024834 | N169: 0.005763345985 | O169: 0.005763345985 | P169: 16 | Q169: 0.7342264898 | R169: 0.7342264898 | S169: 0.003443950649 | T169: 0.003443950649
B170: Mildura | C170: TELOPK_8+PB_MILDURA | D170: Urban | E170: 94 | F170: 0 | G170: 4935.111287 | H170: 1.398457822 | I170: 4.076571791 | J170: 0 | K170: 1 | L170: 0.3019431018 | M170: 0.3019431018 | N170: 0.005806598112 | O170: 0.005806598112 | P170: 0 | Q170: 0 | R170: 0 | S170: 0 | T170: 0
B171: Miller | C171: CIVIC_8+MB_MILLER | D171: Urban | E171: 2341 | F171: 8361.172001 | G171: 3383.845028 | H171: 5.019758636 | I171: 48.60649274 | J171: 4.865850263 | K171: 43 | L171: 3.971290319 | M171: 2.827747321 | N171: 0.06456461327 | O171: 0.05285409976 | P171: 10 | Q171: 0.9640737016 | R171: 0.9640737016 | S171: 0.003514235356 | T171: 0.003514235356
B172: Monaro | C172: GILMRE_8HB_MONARO | D172: Urban | E172: 34 | F172: 8691.52736 | G172: 3338.136736 | H172: 3.357060875 | I172: 0.1015415066 | J172: 0 | K172: 5 | L172: 0.004027764261 | M172: 0.004027764261 | N172: 3.784561153e-05 | O172: 3.784561153e-05 | P172: 0 | Q172: 0 | R172: 0 | S172: 0 | T172: 0
B173: Monash | C173: TELOPK_8GB_MONASH | D173: Urban | E173: 196 | F173: 7302.319368 | G173: 8006.002123 | H173: 4.456774574 | I173: 0.1457968625 | J173: 0.1734338665 | K173: 3 | L173: 0.02592298238 | M173: 0.02592298238 | N173: 2.703257967e-05 | O173: 2.703257967e-05 | P173: 1 | Q173: 0.01284588186 | R173: 0.01284588186 | S173: 0.0001027238027 | T173: 0.0001027238027
B174: Morison | C174: THEDRE_8GB_MORISON | D174: Rural short | E174: 1339 | F174: 0 | G174: 10710.77162 | H174: 2.873633625 | I174: 0.04443812596 | J174: 0.4471615598 | K174: 8 | L174: 0.007672837304 | M174: 0.007672837304 | N174: 4.325212746e-05 | O174: 4.325212746e-05 | P174: 1 | Q174: 0.03312031661 | R174: 0.03312031661 | S174: 0.0002649192807 | T174: 0.0002649192807
B175: Mugga | C175: WANNIA_8PB_MUGGA | D175: Rural short | E175: 44 | F175: 20968.23267 | G175: 1591.773595 | H175: 1.983013192 | I175: 4.970079609 | J175: 0.4114400102 | K175: 7 | L175: 0.08018620041 | M175: 0.08018620041 | N175: 0.0007190666191 | O175: 0.0007190666191 | P175: 11 | Q175: 0.02798412647 | R175: 0.02798412647 | S175: 0.0001459759302 | T175: 0.0001459759302
B176: MUNDRUSS3 | C176: TELOPK_8FB_MUNDRUSS3 | D176: Urban | E176: 205 | F176: 331.1211286 | G176: 7918.681682 | H176: 4.187038906 | I176: 0.1868313161 | J176: 0.00613150033 | K176: 2 | L176: 0.04406310485 | M176: 0.04406310485 | N176: 0.002119354246 | O176: 0.002119354246 | P176: 2 | Q176: 0.001265124728 | R176: 0.001265124728 | S176: 2.162606373e-05 | T176: 2.162606373e-05
B177: Muresk | C177: WANNIA_8MB_MURESK | D177: Urban | E177: 1294 | F177: 3414.435274 | G177: 7948.581644 | H177: 3.402411681 | I177: 0.9767852201 | J177: 3.451285334 | K177: 14 | L177: 0.1147712323 | M177: 0.1147712323 | N177: 0.001059677123 | O177: 0.001059677123 | P177: 6 | Q177: 0.3804294936 | R177: 0.3804294936 | S177: 0.001530044009 | T177: 0.001530044009
B178: Newcastle | C178: FYSHWK_8NB_NEWCASTLE | D178: Urban | E178: 40 | F178: 12476.43012 | G178: 4756.383669 | H178: 3.816698143 | I178: 2.714805915 | J178: 0.1444056721 | K178: 5 | L178: 0.02759647928 | M178: 0.02759647928 | N178: 0.0002378867011 | O178: 0.0002378867011 | P178: 1 | Q178: 0.001346222467 | R178: 0.001346222467 | S178: 1.62195478e-05 | T178: 1.62195478e-05
B179: Nicholson | C179: CIVIC_8WB_NICHOLSON | D179: Urban | E179: 416 | F179: 6103.796611 | G179: 3765.664071 | H179: 4.006798859 | I179: 0.2119357955 | J179: 1.507624527 | K179: 4 | L179: 0.01569763879 | M179: 0.01569763879 | N179: 0.0001784150258 | O179: 0.0001784150258 | P179: 6 | Q179: 0.1980785242 | R179: 0.1980785242 | S179: 0.0006055297845 | T179: 0.0006055297845
B180: Nona | C180: GOLDCR_8+VB_NONA | D180: Urban | E180: 2586 | F180: 63.75423185 | G180: 16718.23208 | H180: 5.562168974 | I180: 17.19832 | J180: 1.758785552 | K180: 10 | L180: 1.305755687 | M180: 1.305755687 | N180: 0.01410019355 | O180: 0.01410019355 | P180: 5 | Q180: 0.275202474 | R180: 0.275202474 | S180: 0.0007352861669 | T180: 0.0007352861669
B181: Northbourne | C181: CITYEA_8+RB_NORTHBRN | D181: Urban | E181: 771 | F181: 0 | G181: 4765.477628 | H181: 2.194161842 | I181: 0.006752579373 | J181: 0.6407417845 | K181: 3 | L181: 0.0009479424603 | M181: 0.0009479424603 | N181: 1.62195478e-05 | O181: 1.62195478e-05 | P181: 1 | Q181: 0.04745839686 | R181: 0.04745839686 | S181: 0.0001135368346 | T181: 0.0001135368346
B182: NSW | C182: TELOPK_8UB_NSW | D182: Urban | E182: 423 | F182: 0 | G182: 7203.551358 | H182: 4.813742746 | I182: 0.0007901251316 | J182: 0.4506652742 | K182: 1 | L182: 0.0006704079757 | M182: 0.0006704079757 | N182: 5.406515933e-06 | O182: 5.406515933e-06 | P182: 1 | Q182: 0.03337982937 | R182: 0.03337982937 | S182: 0.0001027238027 | T182: 0.0001027238027
B183: O'Loghlen | C183: LATHAM_8LB_O'LOGHLEN | D183: Urban | E183: 1179 | F183: 4058.735752 | G183: 5099.390966 | H183: 3.140597449 | I183: 3.861261576 | J183: 0.9477547652 | K183: 16 | L183: 0.4186113904 | M183: 0.4186113904 | N183: 0.008023269645 | O183: 0.008023269645 | P183: 4 | Q183: 0.07019820287 | R183: 0.07019820287 | S183: 0.0003568300516 | T183: 0.0003568300516
B184: Ovens | C184: TELOPK_8+KB_OVENS | D184: Urban | E184: 827 | F184: 328.2826046 | G184: 3232.279876 | H184: 2.808347179 | I184: 0.03773099046 | J184: 0.4379643093 | K184: 2 | L184: 0.01872042185 | M184: 0.01872042185 | N184: 6.48781912e-05 | O184: 6.48781912e-05 | P184: 1 | Q184: 0.0324390956 | R184: 0.0324390956 | S184: 0.0001297563824 | T184: 0.0001297563824
B185: Paterick | C185: LATHAM_8NB_PATERICK | D185: Urban | E185: 1236 | F185: 2068.63862 | G185: 7256.506601 | H185: 4.310106114 | I185: 0.1533397536 | J185: 0.2360627627 | K185: 8 | L185: 0.01302736057 | M185: 0.01302736057 | N185: 0.0002162606373 | O185: 0.0002162606373 | P185: 1 | Q185: 0.01748467253 | R185: 0.01748467253 | S185: 0.0003297974719 | T185: 0.0003297974719
B186: Penton | C186: GILMRE_8+NB_PENTON | D186: Urban | E186: 349 | F186: 0 | G186: 5497.230448 | H186: 1.02883818 | I186: 0.02564553862 | J186: 0.3385464111 | K186: 5 | L186: 0.003241206302 | M186: 0.003241206302 | N186: 2.703257967e-05 | O186: 2.703257967e-05 | P186: 1 | Q186: 0.0250754209 | R186: 0.0250754209 | S186: 0.0001027238027 | T186: 0.0001027238027
B187: Petrie | C187: CITYEA_8JB_PETRIE | D187: Urban | E187: 252 | F187: 0 | G187: 3293.970243 | H187: 3.307630154 | I187: 0.2317535419 | J187: 0 | K187: 1 | L187: 0.02352915734 | M187: 0.02352915734 | N187: 9.191077086e-05 | O187: 9.191077086e-05 | P187: 0 | Q187: 0 | R187: 0 | S187: 0 | T187: 0
B188: Phillip North | C188: WODEN_8+MB_PHLIPNTH | D188: Urban | E188: 162 | F188: 490.4932334 | G188: 6099.106589 | H188: 5.856756601 | I188: 2.473189282 | J188: 0 | K188: 3 | L188: 0.0667571357 | M188: 0.0667571357 | N188: 0.001016424995 | O188: 0.001016424995 | P188: 0 | Q188: 0 | R188: 0 | S188: 0 | T188: 0
B189: Phillip South | C189: WODEN_8KB_PHLIPSTH | D189: Urban | E189: 141 | F189: 0 | G189: 3151.894362 | H189: 3.53765246 | I189: 0 | J189: 0.03709882134 | K189: 0 | L189: 0 | M189: 0 | N189: 0 | O189: 0 | P189: 1 | Q189: 0.001038051059 | R189: 0.001038051059 | S189: 3.24390956e-05 | T189: 3.24390956e-05
B190: Power House | C190: TELOPK_8+VB_POWERHSE | D190: Urban | E190: 905 | F190: 4817.291356 | G190: 3188.368177 | H190: 3.122918867 | I190: 3.050798969 | J190: 2.856235078 | K190: 23 | L190: 0.308498142 | M190: 0.308498142 | N190: 0.007466398503 | O190: 0.007466398503 | P190: 18 | Q190: 0.6861139045 | R190: 0.6861139045 | S190: 0.003433137617 | T190: 0.003433137617
B191: Powers | C191: LATHAM_8MB_POWERS | D191: Urban | E191: 1271 | F191: 3596.667532 | G191: 5223.578385 | H191: 3.434764993 | I191: 1.841542174 | J191: 3.411227513 | K191: 16 | L191: 0.1377454108 | M191: 0.1377454108 | N191: 0.001713865551 | O191: 0.001713865551 | P191: 7 | Q191: 0.3193250506 | R191: 0.3193250506 | S191: 0.001335409435 | T191: 0.001335409435
B192: Parliament House No 1 | C192: TELOPK_8+TB_PRLMTHS1 | D192: Urban | E192: 0 | F192: 0 | G192: 4181.006481 | H192: 3.338008316 | I192: 0 | J192: 0 | K192: 0 | L192: 0 | M192: 0 | N192: 0 | O192: 0 | P192: 0 | Q192: 0 | R192: 0 | S192: 0 | T192: 0
B193: Parliament House No 4 | C193: TELOPK_8+GB_PRLMTHS4 | D193: Urban | E193: 1 | F193: 0 | G193: 3556.932286 | H193: 3.825260744 | I193: 0 | J193: 0 | K193: 0 | L193: 0 | M193: 0 | N193: 0 | O193: 0 | P193: 0 | Q193: 0 | R193: 0 | S193: 0 | T193: 0
B194: Queen Victoria | C194: TELOPK_8JB_QUEENVICT | D194: Urban | E194: 75 | F194: 0 | G194: 3183.551767 | H194: 3.470097802 | I194: 0 | J194: 0 | K194: 0 | L194: 0 | M194: 0 | N194: 0 | O194: 0 | P194: 0 | Q194: 0 | R194: 0 | S194: 0 | T194: 0
B195: Quick | C195: CITYEA_8GB_QUICK | D195: Urban | E195: 1452 | F195: 0 | G195: 4483.369092 | H195: 3.24363565 | I195: 0.08420336526 | J195: 0.003503714474 | K195: 7 | L195: 0.03923499602 | M195: 0.03923499602 | N195: 0.0001459759302 | O195: 0.0001459759302 | P195: 1 | Q195: 0.0002595127648 | R195: 0.0002595127648 | S195: 5.406515933e-06 | T195: 5.406515933e-06
B196: Reid | C196: WANNIA_8+QB_REID | D196: Rural short | E196: 1051 | F196: 66535.16271 | G196: 11836.0699 | H196: 3.029356862 | I196: 9.350052097 | J196: 3.487947759 | K196: 31 | L196: 0.8502192342 | M196: 0.8502192342 | N196: 0.01327840313 | O196: 0.01327840313 | P196: 11 | Q196: 0.2583449573 | R196: 0.1709540338 | S196: 0.00081097739 | T196: 0.0005893102367
B197: Riley | C197: GOLDCR_8+TB_RILEY | D197: Urban | E197: 1004 | F197: 0 | G197: 5931.5003 | H197: 3.061146438 | I197: 0.009498254418 | J197: 0 | K197: 1 | L197: 0.0009082946767 | M197: 0.0009082946767 | N197: 2.162606373e-05 | O197: 2.162606373e-05 | P197: 0 | Q197: 0 | R197: 0 | S197: 0 | T197: 0
B198: Riverside | C198: TELOPK_8WB_RIVERSIDE | D198: Urban | E198: 639 | F198: 0 | G198: 6987.100219 | H198: 3.073257769 | I198: 0.01129096321 | J198: 0.08803082616 | K198: 1 | L198: 0.0008362979062 | M198: 0.0008362979062 | N198: 5.406515933e-06 | O198: 5.406515933e-06 | P198: 1 | Q198: 0.006520258215 | R198: 0.006520258215 | S198: 3.784561153e-05 | T198: 3.784561153e-05
B199: Rossman | C199: GILMRE_8+TB_ROSSMAN | D199: Rural short | E199: 717 | F199: 2111.773087 | G199: 6792.447376 | H199: 2.055636526 | I199: 0.04982271056 | J199: 0.0188324653 | K199: 5 | L199: 0.007438825272 | M199: 0.007438825272 | N199: 2.703257967e-05 | O199: 2.703257967e-05 | P199: 1 | Q199: 0.001394881111 | R199: 0.001394881111 | S199: 1.081303187e-05 | T199: 1.081303187e-05
B200: ROW-PIT | C200: WANNIA_8DB_ROW-PIT | D200: Urban | E200: 290 | F200: 0 | G200: 16289.78899 | H200: 5.169989968 | I200: 0.2097082604 | J200: 0 | K200: 4 | L200: 0.01553264995 | M200: 0.01553264995 | N200: 0.0015949222 | O200: 0.0015949222 | P200: 0 | Q200: 0 | R200: 0 | S200: 0 | T200: 0
B201: Royalla1 | C201: THEDRE_8NB_ROYALLA1 | D201: Rural short | E201: 0 | F201: 0 | G201: 292.9623816 | H201: 0 | I201: 0 | J201: 0 | K201: 0 | L201: 0 | M201: 0 | N201: 0 | O201: 0 | P201: 0 | Q201: 0 | R201: 0 | S201: 0 | T201: 0
B202: Royalla2 | C202: THEDRE_8+PB_ROYALLA2 | D202: Rural short | E202: 0 | F202: 0 | G202: 268.9183311 | H202: 0 | I202: 0 | J202: 0 | K202: 0 | L202: 0 | M202: 0 | N202: 0 | O202: 0 | P202: 0 | Q202: 0 | R202: 0 | S202: 0 | T202: 0
B203: RUSSEL1-2 | C203: TELOPK_8LB_RUSSEL1-2 | D203: Urban | E203: 0 | F203: 0 | G203: 6870.473561 | H203: 4.088679136 | I203: 0 | J203: 0 | K203: 0 | L203: 0 | M203: 0 | N203: 0 | O203: 0 | P203: 0 | Q203: 0 | R203: 0 | S203: 0 | T203: 0
B204: Sainsbury | C204: WANNIA_8UB_SAINSBURY | D204: Urban | E204: 696 | F204: 553.5003793 | G204: 7533.683954 | H204: 3.4720545 | I204: 0.129515504 | J204: 0.8014746859 | K204: 3 | L204: 0.04495283716 | M204: 0.04495283716 | N204: 0.0004271147587 | O204: 0.0004271147587 | P204: 3 | Q204: 0.05936354494 | R204: 0.05936354494 | S204: 0.0002649192807 | T204: 0.0002649192807
... 37 more rows

Sheet 3.6.9 Network-reliability
B1: =(LOOKUP(dms_Model,dms_Model_List,dms_Worksheet_List)) -> REGULATORY REPORTING STATEMENT | G1: =CONCATENATE("1-Jan-",LEFT(CRY,4)) -> 1-Jan-2015
B2: =dms_TradingName -> ActewAGL Distribution
B3: =CONCATENATE("Annual Reporting RIN Response ",CRY) -> Annual Reporting RIN Response 2015-16
B4: 3.6 QUALITY OF SERVICES
B7: 3.6.9 - NETWORK FEEDER RELIABILITY - PLANNED OUTAGES
B10: 3.6.9.1 - PLANNED MINUTES OFF SUPPLY (SAIDI)
C11: =CRY -> 2015-16
B12: =INDEX(dms_FeederName_1,MATCH(dms_TradingName,dms_TradingName_List)) -> CBD
B13: =INDEX(dms_FeederName_2,MATCH(dms_TradingName,dms_TradingName_List)) -> Urban | C13: 40.49
B14: =INDEX(dms_FeederName_3,MATCH(dms_TradingName,dms_TradingName_List)) -> Short rural | C14: 26.36
B15: =INDEX(dms_FeederName_4,MATCH(dms_TradingName,dms_TradingName_List)) -> Long rural
B16: =IF((INDEX(dms_FeederName_5,MATCH(dms_TradingName,dms_TradingName_List))=0),"",(INDEX(dms_FeederName_5,MATCH(dms_TradingName,dms_TradingName_List)))) -> 
B18: 3.6.9.2 - PLANNED INTERRUPTIONS TO SUPPLY (SAIFI)
C19: =CRY -> 2015-16
B20: =INDEX(dms_FeederName_1,MATCH(dms_TradingName,dms_TradingName_List)) -> CBD
B21: =INDEX(dms_FeederName_2,MATCH(dms_TradingName,dms_TradingName_List)) -> Urban | C21: 0.1942642248
B22: =INDEX(dms_FeederName_3,MATCH(dms_TradingName,dms_TradingName_List)) -> Short rural | C22: 0.1087413077
B23: =INDEX(dms_FeederName_4,MATCH(dms_TradingName,dms_TradingName_List)) -> Long rural
B24: =IF((INDEX(dms_FeederName_5,MATCH(dms_TradingName,dms_TradingName_List))=0),"",(INDEX(dms_FeederName_5,MATCH(dms_TradingName,dms_TradingName_List)))) -> 

Sheet 4.1 Public lighting
B1: =(LOOKUP(dms_Model,dms_Model_List,dms_Worksheet_List)) -> REGULATORY REPORTING STATEMENT
B2: =dms_TradingName -> ActewAGL Distribution
B3: =CONCATENATE("Annual Reporting RIN Response ",CRY) -> Annual Reporting RIN Response 2015-16
B4: 4.1 PUBLIC LIGHTING
B6: Tables 4.1.1 - 4.1.3 deliberately omitted.
B8: 4.1.4 - PUBLIC LIGHTING METRICS BY TARIFF
B10: Tariff categories | C10: Number of Lights | D10: Public Lighting Revenue
B11: <insert tariff category> | C11: 0's | D11: $0's, nominal
B22: To enter further tariff categories - please insert new lines above this line.
B23: Total | C23: =SUM(C12:C21) -> 0 | D23: =SUM(D12:D21) -> 0

Sheet 6.2 STPIS Reliability
B1: =(LOOKUP(dms_Model,dms_Model_List,dms_Worksheet_List)) -> REGULATORY REPORTING STATEMENT
B2: =dms_TradingName -> ActewAGL Distribution
B3: =CONCATENATE("Annual Reporting RIN Response ",CRY) -> Annual Reporting RIN Response 2015-16
B4: 6.2 RELIABILITY AND CUSTOMER SERVICE PERFORMANCE
B6: Did the MAIFI parameter of the STPIS apply during the period? This flag is set from the response on worksheet 3.6.8 Network feeders | D6: =dms_MAIFI_Flag -> No
B9: 6.2.1 - UNPLANNED MINUTES OFF SUPPLY (SAIDI)
D10: =CRY -> 2015-16
B11: Total sustained minutes off supply | C11: =INDEX(dms_FeederName_1,MATCH(dms_TradingName,dms_TradingName_List)) -> CBD
C12: =INDEX(dms_FeederName_2,MATCH(dms_TradingName,dms_TradingName_List)) -> Urban | D12: 35.73111546
C13: =INDEX(dms_FeederName_3,MATCH(dms_TradingName,dms_TradingName_List)) -> Short rural | D13: 30.25007467
C14: =INDEX(dms_FeederName_4,MATCH(dms_TradingName,dms_TradingName_List)) -> Long rural
C15: =IF((INDEX(dms_FeederName_5,MATCH(dms_TradingName,dms_TradingName_List))=0),"",(INDEX(dms_FeederName_5,MATCH(dms_TradingName,dms_TradingName_List)))) -> 
C16: Whole Network | D16: 35.1
B17: Total of excluded events* *see 3.3 of STPIS | C17: =INDEX(dms_FeederName_1,MATCH(dms_TradingName,dms_TradingName_List)) -> CBD
C18: =INDEX(dms_FeederName_2,MATCH(dms_TradingName,dms_TradingName_List)) -> Urban
C19: =INDEX(dms_FeederName_3,MATCH(dms_TradingName,dms_TradingName_List)) -> Short rural
C20: =INDEX(dms_FeederName_4,MATCH(dms_TradingName,dms_TradingName_List)) -> Long rural
C21: =IF((INDEX(dms_FeederName_5,MATCH(dms_TradingName,dms_TradingName_List))=0),"",(INDEX(dms_FeederName_5,MATCH(dms_TradingName,dms_TradingName_List)))) -> 
C22: Whole Network
B23: Total sustained minutes off supply after removing excluded events | C23: =INDEX(dms_FeederName_1,MATCH(dms_TradingName,dms_TradingName_List)) -> CBD
C24: =INDEX(dms_FeederName_2,MATCH(dms_TradingName,dms_TradingName_List)) -> Urban | D24: 35.73111546
C25: =INDEX(dms_FeederName_3,MATCH(dms_TradingName,dms_TradingName_List)) -> Short rural | D25: 30.25007467
C26: =INDEX(dms_FeederName_4,MATCH(dms_TradingName,dms_TradingName_List)) -> Long rural
C27: =IF((INDEX(dms_FeederName_5,MATCH(dms_TradingName,dms_TradingName_List))=0),"",(INDEX(dms_FeederName_5,MATCH(dms_TradingName,dms_TradingName_List)))) -> 
C28: Whole Network | D28: 35.1
B31: 6.2.2 - UNPLANNED INTERRUPTIONS TO SUPPLY (SAIFI)
D32: =CRY -> 2015-16
B33: Total sustained interruptions | C33: =INDEX(dms_FeederName_1,MATCH(dms_TradingName,dms_TradingName_List)) -> CBD
C34: =INDEX(dms_FeederName_2,MATCH(dms_TradingName,dms_TradingName_List)) -> Urban | D34: 0.6821903568
C35: =INDEX(dms_FeederName_3,MATCH(dms_TradingName,dms_TradingName_List)) -> Short rural | D35: 0.6159051664
C36: =INDEX(dms_FeederName_4,MATCH(dms_TradingName,dms_TradingName_List)) -> Long rural
C37: =IF((INDEX(dms_FeederName_5,MATCH(dms_TradingName,dms_TradingName_List))=0),"",(INDEX(dms_FeederName_5,MATCH(dms_TradingName,dms_TradingName_List)))) -> 
C38: Whole Network | D38: 0.6745115213
B39: Total of excluded events* *see 3.3 of STPIS | C39: =INDEX(dms_FeederName_1,MATCH(dms_TradingName,dms_TradingName_List)) -> CBD
C40: =INDEX(dms_FeederName_2,MATCH(dms_TradingName,dms_TradingName_List)) -> Urban
C41: =INDEX(dms_FeederName_3,MATCH(dms_TradingName,dms_TradingName_List)) -> Short rural
C42: =INDEX(dms_FeederName_4,MATCH(dms_TradingName,dms_TradingName_List)) -> Long rural
C43: =IF((INDEX(dms_FeederName_5,MATCH(dms_TradingName,dms_TradingName_List))=0),"",(INDEX(dms_FeederName_5,MATCH(dms_TradingName,dms_TradingName_List)))) -> 
C44: Whole Network
B45: Total sustained interruptions after removing excluded events | C45: =INDEX(dms_FeederName_1,MATCH(dms_TradingName,dms_TradingName_List)) -> CBD
C46: =INDEX(dms_FeederName_2,MATCH(dms_TradingName,dms_TradingName_List)) -> Urban | D46: 0.6821903568
C47: =INDEX(dms_FeederName_3,MATCH(dms_TradingName,dms_TradingName_List)) -> Short rural | D47: 0.6159051664
C48: =INDEX(dms_FeederName_4,MATCH(dms_TradingName,dms_TradingName_List)) -> Long rural
C49: =IF((INDEX(dms_FeederName_5,MATCH(dms_TradingName,dms_TradingName_List))=0),"",(INDEX(dms_FeederName_5,MATCH(dms_TradingName,dms_TradingName_List)))) -> 
C50: Whole Network | D50: 0.6745115213
B55: 6.2.3 - UNPLANNED MOMENTARY INTERRUPTIONS TO SUPPLY (MAIFI)
D56: =CRY -> 2015-16
B57: Total momentary interruptions | C57: =INDEX(dms_FeederName_1,MATCH(dms_TradingName,dms_TradingName_List)) -> CBD
C58: =INDEX(dms_FeederName_2,MATCH(dms_TradingName,dms_TradingName_List)) -> Urban
C59: =INDEX(dms_FeederName_3,MATCH(dms_TradingName,dms_TradingName_List)) -> Short rural
C60: =INDEX(dms_FeederName_4,MATCH(dms_TradingName,dms_TradingName_List)) -> Long rural
C61: =IF((INDEX(dms_FeederName_5,MATCH(dms_TradingName,dms_TradingName_List))=0),"",(INDEX(dms_FeederName_5,MATCH(dms_TradingName,dms_TradingName_List)))) -> 
C62: Whole Network
B63: Total of excluded events* *see 3.3 of STPIS | C63: =INDEX(dms_FeederName_1,MATCH(dms_TradingName,dms_TradingName_List)) -> CBD
C64: =INDEX(dms_FeederName_2,MATCH(dms_TradingName,dms_TradingName_List)) -> Urban
C65: =INDEX(dms_FeederName_3,MATCH(dms_TradingName,dms_TradingName_List)) -> Short rural
C66: =INDEX(dms_FeederName_4,MATCH(dms_TradingName,dms_TradingName_List)) -> Long rural
C67: =IF((INDEX(dms_FeederName_5,MATCH(dms_TradingName,dms_TradingName_List))=0),"",(INDEX(dms_FeederName_5,MATCH(dms_TradingName,dms_TradingName_List)))) -> 
C68: Whole Network
B69: Total momentary interruptions after removing excluded events | C69: =INDEX(dms_FeederName_1,MATCH(dms_TradingName,dms_TradingName_List)) -> CBD
C70: =INDEX(dms_FeederName_2,MATCH(dms_TradingName,dms_TradingName_List)) -> Urban
C71: =INDEX(dms_FeederName_3,MATCH(dms_TradingName,dms_TradingName_List)) -> Short rural
C72: =INDEX(dms_FeederName_4,MATCH(dms_TradingName,dms_TradingName_List)) -> Long rural
C73: =IF((INDEX(dms_FeederName_5,MATCH(dms_TradingName,dms_TradingName_List))=0),"",(INDEX(dms_FeederName_5,MATCH(dms_TradingName,dms_TradingName_List)))) -> 
C74: Whole Network
B79: 6.2.4 - DISTRIBUTION CUSTOMER NUMBERS
D80: =CRY -> 2015-16
B81: Customer numbers at the start of the period | C81: =INDEX(dms_FeederName_1,MATCH(dms_TradingName,dms_TradingName_List)) -> CBD
C82: =INDEX(dms_FeederName_2,MATCH(dms_TradingName,dms_TradingName_List)) -> Urban | D82: 162284
C83: =INDEX(dms_FeederName_3,MATCH(dms_TradingName,dms_TradingName_List)) -> Short rural | D83: 21263
C84: =INDEX(dms_FeederName_4,MATCH(dms_TradingName,dms_TradingName_List)) -> Long rural
C85: =IF((INDEX(dms_FeederName_5,MATCH(dms_TradingName,dms_TradingName_List))=0),"",(INDEX(dms_FeederName_5,MATCH(dms_TradingName,dms_TradingName_List)))) -> 
C86: Whole Network | D86: 183547
B87: Customer numbers at the end of the period | C87: =INDEX(dms_FeederName_1,MATCH(dms_TradingName,dms_TradingName_List)) -> CBD
C88: =INDEX(dms_FeederName_2,MATCH(dms_TradingName,dms_TradingName_List)) -> Urban | D88: 164786
C89: =INDEX(dms_FeederName_3,MATCH(dms_TradingName,dms_TradingName_List)) -> Short rural | D89: 21590
C90: =INDEX(dms_FeederName_4,MATCH(dms_TradingName,dms_TradingName_List)) -> Long rural
C91: =IF((INDEX(dms_FeederName_5,MATCH(dms_TradingName,dms_TradingName_List))=0),"",(INDEX(dms_FeederName_5,MATCH(dms_TradingName,dms_TradingName_List)))) -> 
C92: Whole Network | D92: 186376
B93: Average customer numbers | C93: =INDEX(dms_FeederName_1,MATCH(dms_TradingName,dms_TradingName_List)) -> CBD | D93: =ROUND(SUM(D81+D87)/2,0) -> 0
C94: =INDEX(dms_FeederName_2,MATCH(dms_TradingName,dms_TradingName_List)) -> Urban | D94: =ROUND(SUM(D82+D88)/2,0) -> 163535
C95: =INDEX(dms_FeederName_3,MATCH(dms_TradingName,dms_TradingName_List)) -> Short rural | D95: =ROUND(SUM(D83+D89)/2,0) -> 21427
C96: =INDEX(dms_FeederName_4,MATCH(dms_TradingName,dms_TradingName_List)) -> Long rural | D96: =ROUND(SUM(D84+D90)/2,0) -> 0
C97: =IF((INDEX(dms_FeederName_5,MATCH(dms_TradingName,dms_TradingName_List))=0),"",(INDEX(dms_FeederName_5,MATCH(dms_TradingName,dms_TradingName_List)))) ->  | D97: =ROUND(SUM(D85+D91)/2,0) -> 0
C98: Whole Network | D98: 184962

Sheet 6.6 STPIS Customer Service
B1: =(LOOKUP(dms_Model,dms_Model_List,dms_Worksheet_List)) -> REGULATORY REPORTING STATEMENT
B2: =dms_TradingName -> ActewAGL Distribution
B3: =CONCATENATE("Annual Reporting RIN Response ",CRY) -> Annual Reporting RIN Response 2015-16
B4: 6.6 STPIS CUSTOMER SERVICE
B7: 6.6.1 - TELEPHONE ANSWERING
C9: Number of calls after removing excluded events | D9: Total number of calls
C10: =CRY -> 2015-16 | D10: =CRY -> 2015-16
B11: Number of calls received | C11: 24213 | D11: 25367
B12: Number of calls answered within 30 seconds | C12: 18001
B13: Percentage of calls answered within 30 seconds | C13: =C12/C11 -> 0.7434436047

Sheet 6.7 STPIS Daily Performance
B1: =(LOOKUP(dms_Model,dms_Model_List,dms_Worksheet_List)) -> REGULATORY REPORTING STATEMENT | I1: =CONCATENATE(IF(LEN(CRY)=4,"1-Jan-","1-Jul-"),LEFT(CRY,4)) -> 1-Jul-2015
B2: =dms_TradingName -> ActewAGL Distribution
B3: =CONCATENATE("Annual Reporting RIN Response ",CRY) -> Annual Reporting RIN Response 2015-16
B4: 6.7 STPIS DAILY PERFORMANCE
B7: Did the MAIFI parameter of the STPIS apply during the period? This flag is set from the response on worksheet 3.6.8 Network feeders | G7: =dms_MAIFI_Flag -> No
B9: The excluded events to be removed from the data refer only to events listed in clause 3.3(a) of the STPIS, with respect to reliability data, and in clause 5.4 of the STPIS with respect to customer service parameters. *Customer service information must be reported as per the definitions in the STPIS, that is excluding: • calls to payment lines and automated interactive services • calls abandoned by the customer within 30 seconds of the call being queued for response by a human operator (where the time in which a telephone call is abandoned is not measured, then an estimate of the number of calls abandoned within 30 seconds will be determined by taking 20 per cent of all calls abandoned).
B11: 6.7.1 - DAILY PERFORMANCE DATA - UNPLANNED
B13: Date | C13: Customer service* | E13: MAIFI
C14: Number of calls received (after removing excluded events) | D14: Number of calls answered in 30 seconds (after removing excluded events) | E14: =INDEX(dms_FeederName_1,MATCH(dms_TradingName,dms_TradingName_List)) -> CBD | G14: =INDEX(dms_FeederName_2,MATCH(dms_TradingName,dms_TradingName_List)) -> Urban | I14: =INDEX(dms_FeederName_3,MATCH(dms_TradingName,dms_TradingName_List)) -> Short rural | K14: =INDEX(dms_FeederName_4,MATCH(dms_TradingName,dms_TradingName_List)) -> Long rural | M14: =IF((INDEX(dms_FeederName_5,MATCH(dms_TradingName,dms_TradingName_List))=0),"Network",(INDEX(dms_FeederName_5,MATCH(dms_TradingName,dms_TradingName_List)))) -> Network | O14: Network
E15: All events | F15: After removing excluded events | G15: All events | H15: After removing excluded events | I15: All events | J15: After removing excluded events | K15: All events | L15: After removing excluded events | M15: All events | N15: After removing excluded events | O15: All events | P15: After removing excluded events
B16: =CONCATENATE(IF(LEN(CRY)=4,"1-Jan-","1-Jul-"),LEFT(CRY,4)) -> 1-Jul-2015 | C16: 64 | D16: 59
B17: =B16+1 -> 2015-07-02 | C17: 108 | D17: 84
B18: 2015-07-03 | C18: 75 | D18: 57
B19: 2015-07-04 | C19: 43 | D19: 35
B20: 2015-07-05 | C20: 30 | D20: 17
B21: 2015-07-06 | C21: 58 | D21: 47
B22: 2015-07-07 | C22: 71 | D22: 60
B23: 2015-07-08 | C23: 71 | D23: 58
B24: 2015-07-09 | C24: 71 | D24: 61
B25: 2015-07-10 | C25: 85 | D25: 75
B26: 2015-07-11 | C26: 32 | D26: 29
B27: 2015-07-12 | C27: 76 | D27: 49
B28: 2015-07-13 | C28: 54 | D28: 47
B29: 2015-07-14 | C29: 50 | D29: 38
B30: 2015-07-15 | C30: 84 | D30: 76
B31: 2015-07-16 | C31: 91 | D31: 72
B32: 2015-07-17 | C32: 66 | D32: 56
B33: 2015-07-18 | C33: 37 | D33: 25
B34: 2015-07-19 | C34: 28 | D34: 24
B35: 2015-07-20 | C35: 97 | D35: 79
B36: 2015-07-21 | C36: 56 | D36: 49
B37: 2015-07-22 | C37: 136 | D37: 92
B38: 2015-07-23 | C38: 60 | D38: 58
B39: 2015-07-24 | C39: 108 | D39: 66
B40: 2015-07-25 | C40: 28 | D40: 26
B41: 2015-07-26 | C41: 19 | D41: 16
B42: 2015-07-27 | C42: 61 | D42: 52
B43: 2015-07-28 | C43: 42 | D43: 42
B44: 2015-07-29 | C44: 89 | D44: 75
B45: 2015-07-30 | C45: 56 | D45: 44
B46: 2015-07-31 | C46: 53 | D46: 49
B47: 2015-08-01 | C47: 55 | D47: 45
B48: 2015-08-02 | C48: 53 | D48: 45
B49: 2015-08-03 | C49: 63 | D49: 55
B50: 2015-08-04 | C50: 59 | D50: 54
B51: 2015-08-05 | C51: 57 | D51: 48
B52: 2015-08-06 | C52: 77 | D52: 65
B53: 2015-08-07 | C53: 52 | D53: 45
B54: 2015-08-08 | C54: 21 | D54: 19
B55: 2015-08-09 | C55: 18 | D55: 17
B56: 2015-08-10 | C56: 60 | D56: 43
B57: 2015-08-11 | C57: 67 | D57: 49
B58: 2015-08-12 | C58: 123 | D58: 64
B59: 2015-08-13 | C59: 216 | D59: 117
B60: 2015-08-14 | C60: 67 | D60: 57
B61: 2015-08-15 | C61: 25 | D61: 22
B62: 2015-08-16 | C62: 14 | D62: 11
B63: 2015-08-17 | C63: 224 | D63: 105
B64: 2015-08-18 | C64: 71 | D64: 56
B65: 2015-08-19 | C65: 62 | D65: 60
B66: 2015-08-20 | C66: 46 | D66: 44
B67: 2015-08-21 | C67: 71 | D67: 60
B68: 2015-08-22 | C68: 15 | D68: 13
B69: 2015-08-23 | C69: 30 | D69: 26
B70: 2015-08-24 | C70: 63 | D70: 53
B71: 2015-08-25 | C71: 58 | D71: 48
B72: 2015-08-26 | C72: 41 | D72: 36
B73: 2015-08-27 | C73: 77 | D73: 68
B74: 2015-08-28 | C74: 43 | D74: 38
B75: 2015-08-29 | C75: 12 | D75: 11
B76: 2015-08-30 | C76: 15 | D76: 13
B77: 2015-08-31 | C77: 91 | D77: 71
B78: 2015-09-01 | C78: 65 | D78: 48
B79: 2015-09-02 | C79: 61 | D79: 51
B80: 2015-09-03 | C80: 34 | D80: 30
B81: =B80+1 -> 2015-09-04 | C81: 46 | D81: 43
B82: 2015-09-05 | C82: 26 | D82: 25
B83: 2015-09-06 | C83: 19 | D83: 16
B84: 2015-09-07 | C84: 53 | D84: 48
B85: 2015-09-08 | C85: 68 | D85: 61
B86: 2015-09-09 | C86: 62 | D86: 57
B87: 2015-09-10 | C87: 42 | D87: 39
B88: 2015-09-11 | C88: 48 | D88: 47
B89: 2015-09-12 | C89: 17 | D89: 15
B90: 2015-09-13 | C90: 64 | D90: 42
B91: 2015-09-14 | C91: 79 | D91: 60
B92: 2015-09-15 | C92: 80 | D92: 70
B93: 2015-09-16 | C93: 92 | D93: 72
B94: 2015-09-17 | C94: 68 | D94: 48
B95: 2015-09-18 | C95: 61 | D95: 53
B96: 2015-09-19 | C96: 16 | D96: 15
B97: 2015-09-20 | C97: 20 | D97: 17
B98: 2015-09-21 | C98: 85 | D98: 71
B99: 2015-09-22 | C99: 75 | D99: 52
B100: 2015-09-23 | C100: 114 | D100: 67
B101: 2015-09-24 | C101: 47 | D101: 38
B102: 2015-09-25 | C102: 139 | D102: 60
B103: 2015-09-26 | C103: 40 | D103: 33
B104: 2015-09-27 | C104: 15 | D104: 15
B105: 2015-09-28 | C105: 20 | D105: 17
B106: 2015-09-29 | C106: 61 | D106: 50
B107: 2015-09-30 | C107: 77 | D107: 60
B108: 2015-10-01 | C108: 46 | D108: 41
B109: 2015-10-02 | C109: 52 | D109: 47
B110: 2015-10-03 | C110: 24 | D110: 22
B111: 2015-10-04 | C111: 17 | D111: 15
B112: 2015-10-05 | C112: 18 | D112: 17
B113: 2015-10-06 | C113: 67 | D113: 48
B114: 2015-10-07 | C114: 137 | D114: 66
B115: 2015-10-08 | C115: 51 | D115: 46
B116: 2015-10-09 | C116: 72 | D116: 64
B117: 2015-10-10 | C117: 29 | D117: 24
B118: 2015-10-11 | C118: 54 | D118: 23
B119: 2015-10-12 | C119: 58 | D119: 52
B120: 2015-10-13 | C120: 40 | D120: 37
B121: 2015-10-14 | C121: 48 | D121: 45
B122: 2015-10-15 | C122: 55 | D122: 53
B123: 2015-10-16 | C123: 99 | D123: 61
B124: 2015-10-17 | C124: 57 | D124: 52
B125: 2015-10-18 | C125: 29 | D125: 23
B126: 2015-10-19 | C126: 40 | D126: 31
B127: 2015-10-20 | C127: 56 | D127: 52
B128: 2015-10-21 | C128: 58 | D128: 55
B129: 2015-10-22 | C129: 49 | D129: 47
B130: 2015-10-23 | C130: 39 | D130: 35
B131: 2015-10-24 | C131: 28 | D131: 26
B132: 2015-10-25 | C132: 12 | D132: 9
B133: 2015-10-26 | C133: 44 | D133: 36
B134: 2015-10-27 | C134: 44 | D134: 38
B135: 2015-10-28 | C135: 48 | D135: 40
B136: 2015-10-29 | C136: 53 | D136: 42
B137: 2015-10-30 | C137: 50 | D137: 44
B138: 2015-10-31 | C138: 52 | D138: 45
B139: 2015-11-01 | C139: 60 | D139: 45
B140: 2015-11-02 | C140: 96 | D140: 88
B141: 2015-11-03 | C141: 74 | D141: 58
B142: 2015-11-04 | C142: 59 | D142: 56
B143: 2015-11-05 | C143: 66 | D143: 56
B144: 2015-11-06 | C144: 57 | D144: 49
B145: =B144+1 -> 2015-11-07 | C145: 32 | D145: 29
B146: 2015-11-08 | C146: 11 | D146: 11
B147: 2015-11-09 | C147: 61 | D147: 54
B148: 2015-11-10 | C148: 43 | D148: 40
B149: 2015-11-11 | C149: 105 | D149: 51
B150: 2015-11-12 | C150: 131 | D150: 85
B151: 2015-11-13 | C151: 66 | D151: 63
B152: 2015-11-14 | C152: 24 | D152: 24
B153: 2015-11-15 | C153: 6 | D153: 6
B154: 2015-11-16 | C154: 73 | D154: 68
B155: 2015-11-17 | C155: 57 | D155: 56
B156: 2015-11-18 | C156: 90 | D156: 70
B157: 2015-11-19 | C157: 212 | D157: 102
B158: 2015-11-20 | C158: 164 | D158: 79
B159: 2015-11-21 | C159: 354 | D159: 62
B160: 2015-11-22 | C160: 58 | D160: 52
B161: 2015-11-23 | C161: 57 | D161: 45
B162: 2015-11-24 | C162: 72 | D162: 61
B163: 2015-11-25 | C163: 106 | D163: 87
B164: 2015-11-26 | C164: 177 | D164: 143
B165: 2015-11-27 | C165: 51 | D165: 46
B166: 2015-11-28 | C166: 40 | D166: 36
B167: 2015-11-29 | C167: 24 | D167: 19
B168: 2015-11-30 | C168: 73 | D168: 69
B169: 2015-12-01 | C169: 265 | D169: 164
B170: 2015-12-02 | C170: 89 | D170: 79
B171: 2015-12-03 | C171: 72 | D171: 55
B172: 2015-12-04 | C172: 60 | D172: 50
B173: 2015-12-05 | C173: 22 | D173: 16
B174: 2015-12-06 | C174: 17 | D174: 13
B175: 2015-12-07 | C175: 46 | D175: 36
B176: 2015-12-08 | C176: 60 | D176: 48
B177: 2015-12-09 | C177: 79 | D177: 71
B178: 2015-12-10 | C178: 45 | D178: 41
B179: 2015-12-11 | C179: 119 | D179: 95
B180: 2015-12-12 | C180: 25 | D180: 22
B181: 2015-12-13 | C181: 23 | D181: 22
B182: 2015-12-14 | C182: 162 | D182: 84
B183: 2015-12-15 | C183: 96 | D183: 86
B184: 2015-12-16 | C184: 149 | D184: 133
B185: 2015-12-17 | C185: 71 | D185: 68
B186: 2015-12-18 | C186: 74 | D186: 71
B187: 2015-12-19 | C187: 182 | D187: 82
B188: 2015-12-20 | C188: 99 | D188: 41
B189: 2015-12-21 | C189: 116 | D189: 83
B190: 2015-12-22 | C190: 61 | D190: 56
B191: 2015-12-23 | C191: 43 | D191: 42
B192: 2015-12-24 | C192: 30 | D192: 29
B193: 2015-12-25 | C193: 12 | D193: 11
B194: 2015-12-26 | C194: 37 | D194: 28
B195: 2015-12-27 | C195: 19 | D195: 15
B196: 2015-12-28 | C196: 30 | D196: 29
B197: 2015-12-29 | C197: 53 | D197: 51
B198: 2015-12-30 | C198: 27 | D198: 27
B199: 2015-12-31
B200: 2016-01-01 | C200: 45 | D200: 26
B201: 2016-01-02 | C201: 15 | D201: 12
B202: 2016-01-03 | C202: 27 | D202: 18
B203: 2016-01-04 | C203: 45 | D203: 41
B204: 2016-01-05 | C204: 45 | D204: 43
B205: 2016-01-06 | C205: 42 | D205: 40
... 176 more rows

Sheet 6.8 STPIS Exclusions
B1: =(LOOKUP(dms_Model,dms_Model_List,dms_Worksheet_List)) -> REGULATORY REPORTING STATEMENT
B2: =dms_TradingName -> ActewAGL Distribution
B3: =CONCATENATE("Annual Reporting RIN Response ",CRY) -> Annual Reporting RIN Response 2015-16
B4: 6.8 STPIS EXCLUSIONS
B7: =CONCATENATE("This information is collected to inform the application of the STPIS to ",dms_TradingName," in future regulatory periods. The information is also collected to monitor network performance, and may be used in performance reports.") -> This information is collected to inform the application of the STPIS to ActewAGL Distribution in future regulatory periods. The information is also collected to monitor network performance, and may be used in performance reports.
B9: 6.8.1 - STPIS EXCLUSIONS
B11: Date of event | C11: Outage ID | D11: Feeder ID / name | E11: Feeder classification (drop down) | F11: Cause of event (drop down) | G11: Unplanned | J11: Event category | K11: Effect on unplanned MAIFI | L11: Please provide separate explanation to confirm the outage was not due to inadequate transmission connection planning
B12: DD/MM/YYYY | G12: Number of interruptions | H12: Duration of interruption (mins) | I12: Total unplanned minutes off supply | J12: Use exclusion categories listed in section 3.3(a) of the STPIS (drop down) | K12: by feeder classification | O12: Cause of Event
O13: Weather
O14: Equipment failure
O15: Operational error
O16: Vegetation
O17: Animals
O18: Third party impacts
O19: Transmission failure
O20: Load shedding
O21: Inter-distributor connection failure
O22: Other
B44: To enter further events - please insert new lines above this line.

Sheet 6.9 STPIS - GSL
B1: =(LOOKUP(dms_Model,dms_Model_List,dms_Worksheet_List)) -> REGULATORY REPORTING STATEMENT
B2: =dms_TradingName -> ActewAGL Distribution
B3: =CONCATENATE("Annual Reporting RIN Response ",CRY) -> Annual Reporting RIN Response 2015-16
B4: 6.9 STPIS - GUARANTEED SERVICE LEVEL
B6: Did the AER's GSL Scheme apply at any time during the regulatory year? | D6: No | E6: **IMPORTANT Please ensure this flag is set. Conditional formatting on this worksheet is dependant on this response.
B8: Instructions: Table 6.9.1 collects information relating to jurisdiction GSL scheme parameters. These parameters can be found in the jurisdictonal scheme relevant to NSP. Please identify each parameter in the relevant sub-tables and provide the volume and value of GSL payments. For GSL parameters that do not fit within the provided sub-tables provided, please enter a heading and identify the relevant parameter(s).
B10: 6.9.1 - GUARANTEED SERVICE LEVELS - JURISDICTIONAL GSL SCHEME
D11: =CRY -> 2015-16 | E11: =CRY -> 2015-16
D12: Volume | E12: Value of GSL payments
D13: 0's | E13: $0's
B14: Appointments
B19: To enter further GSL parameters relating to appointments - please copy a row from above and "insert copied cells" above this row.
B20: Connections
B26: To enter further GSL parameters relating to connections - please copy a row from above and "insert copied cells" above this row.
B27: Reliability of supply
B39: To enter further GSL parameters relating to reliability of supply - please copy a row from above and "insert copied cells" above this row.
B40: Street lights
B48: To enter further GSL parameters relating to street lights - please copy a row from above and "insert copied cells" above this row.
B49: Planned interruptions
B50: Planned interruptions - 4 business days notice not given | D50: 65 | E50: 3250
B53: To enter further GSL parameters relating to planned interruptions - please copy a row from above and "insert copied cells" above this row.
B54: <NSP defined parameter category>
B58: To enter further GSL parameters - please identify the parameter and if insufficient rows please copy a row from above and "insert copied cells" above this row.
B59: <NSP defined parameter category>
B63: To enter further GSL parameters - please identify the parameter and if insufficient rows please copy a row from above and "insert copied cells" above this row.
B64: <NSP defined parameter category>
B68: To enter further GSL parameters - please identify the parameter and if insufficient rows please copy a row from above and "insert copied cells" above this row.
B69: <NSP defined parameter category>
B73: To enter further GSL parameters - please identify the parameter and if insufficient rows please copy a row from above and "insert copied cells" above this row.
B76: 6.9.2 - GUARANTEED SERVICE LEVELS - AER GSL SCHEME
B78: Complete Table 6.9.2 if the AER's GSL scheme applied at any time during the regulatory year. Do not complete Table 6.9.2 if the AER's GSL scheme did not apply during the regulatory year.
D80: =CRY -> 2015-16 | E80: =CRY -> 2015-16
D81: Volume | E81: Value of GSL payments
D82: 0's | E82: $0's
B83: New connections
B84: Number of connections made
B85: Number of connections not made on or before the day agreed
B86: Connections - GSL payments – 1-6 day delay
B87: Connections - GSL payments – 7+ day delay
B88: Reliability of supply
B89: Frequency of interruptions – CBD feeders – 9 interruptions
B90: Frequency of interruptions – Urban feeders – 9 interruptions
B91: Frequency of interruptions – Rural (short and long) feeders – 15 interruptions
B92: Interruptions – CBD feeders – 12 hours duration
B93: Interruptions – Urban feeders – 12 hours duration
B94: Interruptions – Rural (short and long) feeders – 18 hours duration
B95: Total duration of interruptions Level 1 – 20 hours
B96: Total duration of interruptions Level 2 – 30 hours
B97: Total duration of interruptions Level 3 – 60 hours
B98: Street lights
B99: Streetlight repair 5 days – GSL payments
B100: Planned interruptions
B101: Notice of planned interruptions – 4 business days notice not given
B102: Total | E102: =SUM(E101,E99,E89:E97,E86:E87) -> 0

Sheet 7.8 Avoided TUOS Payments
B1: =(LOOKUP(dms_Model,dms_Model_List,dms_Worksheet_List)) -> REGULATORY REPORTING STATEMENT
B2: =dms_TradingName -> ActewAGL Distribution
B3: =CONCATENATE("Annual Reporting RIN Response ",CRY) -> Annual Reporting RIN Response 2015-16
B4: 7.8 - AVOIDED TUOS PAYMENTS
B6: 7.8.1 - AVOIDED TUOS PAYMENTS
B7: Description | C7: Avoided TUOS Payment
C8: $0's, nominal
B9: Embedded generators
B10: Market network service providers
B11: Other | C11: 41171

Sheet 7.10 Juris Scheme
B1: =(LOOKUP(dms_Model,dms_Model_List,dms_Worksheet_List)) -> REGULATORY REPORTING STATEMENT
B2: =dms_TradingName -> ActewAGL Distribution
B3: =CONCATENATE("Annual Reporting RIN Response ",CRY) -> Annual Reporting RIN Response 2015-16
B4: 7.10 - JURISDICTIONAL SCHEMES
B6: Instructions Business must list each relevant jurisdictional scheme individually and report information for each scheme separately from other schemes.
B8: 7.10.1 - JURISDICTIONAL SCHEME PAYMENTS
B9: Jurisdictional Scheme Name | C9: Description | D9: Date DNSP Became Subject to Scheme | E9: Description of Cost Recovery Method | F9: Total Scheme Payments
F10: $0's, nominal
B11: Energy Industry Levy | C11: Part 3A of the Utilities Act 2000 (ACT) imposes a levy on energy utilities to recover the amount of the ACT’s national regulatory costs, and local regulations costs, in relation to the energy industry sectors | D11: 2014-01-29 | E11: Recovered through Network Tariffs | F11: 1057892.1
B12: Utilities Network Facilities Tax | C12: The Utilities (Network Facilities Tax) Act 2006 (ACT) imposes a tax on owners of utility network facilities on land in the ACT | D12: 2014-01-29 | E12: Recovered through Network Tariffs | F12: 6478224.66
B13: Feed-in Tariffs (small scale) | C13: Feed-in Tariff for small generation which is already specified as a Jurisdictional Scheme under the NER clause 6.18.7A(e)(1)(i)). | D13: 2010-04-08 | E13: Recovered through Network Tariffs | F13: 14358750
B14: Feed-in Tariffs (large scale) | C14: The Electricity Feed-in (Large-scale Renewable Energy Generation) Act 2011 (ACT) is a scheme to support the development of up to 210 MW of large-scale renewable energy generation capacity for the ACT. | D14: 2014-01-29 | E14: Recovered through Network Tariffs | F14: 6036368.11
E17: Total | F17: =SUM(F11:F16) -> 27931234.87

Sheet 7.11 DMIS-DMIA
B1: =(LOOKUP(dms_Model,dms_Model_List,dms_Worksheet_List)) -> REGULATORY REPORTING STATEMENT
B2: =dms_TradingName -> ActewAGL Distribution
B3: =CONCATENATE("Annual Reporting RIN Response ",CRY) -> Annual Reporting RIN Response 2015-16
B4: 7.11 - DEMAND MANAGEMENT INCENTIVE SCHEME
B6: 7.11.1 - DMIA - PROJECTS SUBMITTED FOR APPROVAL
B7: Name of project | C7: =CONCATENATE("Total amount of the DMIA spent in ", CRY) -> Total amount of the DMIA spent in 2015-16
C8: Operating expenditure | D8: Capital expenditure | E8: Total
C9: $0's, nominal
B10: Residential Battery Energy Storage | C10: 9955.21 | D10: 27613.48 | E10: =SUM(C10:D10) -> 37568.69
E11: =SUM(C11:D11) -> 0
E12: 0
E13: 0
E14: 0
E15: =SUM(C15:D15) -> 0
B16: To enter additional projects - please copy a row from above and "insert copied cells" above this row.
B17: Total | C17: =SUM(C10:C16) -> 9955.21 | D17: =SUM(D10:D16) -> 27613.48 | E17: =SUM(E10:E16) -> 37568.69

Sheet 7.12 Safety and Bushfire
B1: =(LOOKUP(dms_Model,dms_Model_List,dms_Worksheet_List)) -> REGULATORY REPORTING STATEMENT
B2: =dms_TradingName -> ActewAGL Distribution
B3: =CONCATENATE("Annual Reporting RIN Response ",CRY) -> Annual Reporting RIN Response 2015-16
B4: 7.12 SAFETY AND BUSHFIRE RELATED EXPENDITURE
B6: These templates collect information from Victorian businesses only. Bushfire and safety related expenditure information is used by the AER to monitor the expenditures throughout the regulatory control period.
B8: CPI applied to convert expected expenditure in real $ to nominal based on lagged September CPI index
B10: Instructions
B11: For "Exclusive of Margins & Overheads" reported expenditure is to EXCLUDE any overheads, profit margins or management fees paid directly or indirectly to related party contractors (not including actual incurred expense of the related party contractor) for the reporting period.
B12: For "Value of Margins & Overheads" reported expenditure is to COMPRISE ONLY the sum of overheads, profit margins or management fees paid directly or indirectly to related party contractors (not including actual incurred expenses of the related party contractor) for the reporting period.
B14: =CONCATENATE(dms_TradingName, " is to specify each activity in this table in accordance with the definition in Appendix F of the RIN.") -> ActewAGL Distribution is to specify each activity in this table in accordance with the definition in Appendix F of the RIN.
B15: All activities must be reported but the Reason for Difference is only required if there is a 10 per cent difference between the expected value and the actual value. Use median unit costs. Where unit costs are not recorded at the asset category level - provide the best estimates of the unit cost using the cost allocation method identified in this table. (As a transitional measure, the unit cost may be based on a statistically significant annual sample of actual work orders at a 5% or better confidence interval.) Provide basis of allocation where applicable.
B17: 7.12.1 - SAFETY AND BUSHFIRE RELATED ASSET GROUP DEFINITIONS AND ALLOCATION BASIS
B18: Activity | C18: Definitions | G18: Basis for allocation of cost to activity
B19: Planned non-preferred services replacements
B20: Planned replacement of non-preferred services due to height
B21: Removal of public lighting switchwire
B22: Replacement of existing SWER lines with 22kV overhead bare conductor
B23: Installation of GFN and associated equipment at zone substations
B24: Replacement of crossarms/insulator sets – pole top fire mitigation
B25: Replacement of crossarms – based on age and condition
B26: Replacement of poles – based on age and condition
B27: Stake poles – based on age and condition
B28: Replacement of undersized poles
B29: Stake undersized poles
B30: Replacement of overhead conductor – mainly steel
B31: Service line clearance – overhead services requiring relocation
B32: Service line clearance – overhead services requiring undergrounding
B33: Replacement of 22kV distribution feeders with ABC/underground cabling
B34: Replacement of SWER with covered carbon core conductor or equivalent
B35: Replacement of SWER with ABC
B36: Replacement of SWER with underground
B37: Replacement of surge diverters (neptune configuration)
B38: Replacement of surge diverters (single phase or three phase)
B46: To enter further activities - please copy row from above and "insert copied cells" into a row above this row.
B48: 7.12.2 - BUSHFIRE RELATED
B50: 7.12.2.1 - NUMBER OF ACTIVITIES
B51: Activity | C51: Units | D51: AER expected number | E51: Actual Number | F51: Difference | G51: Reasons for Difference
B52: Planned non-preferred services replacements | C52: number of services | F52: =D52-E52 -> 0
B53: Planned replacement of non-preferred services due to height | C53: number of services | F53: =D53-E53 -> 0
B54: Removal of public lighting switchwire | C54: number of spans removed | F54: 0
B55: Replacement of existing SWER lines with 22kV overhead bare conductor | C55: kms of SWER | F55: 0
B56: Installation of GFN and associated equipment at zone substations | C56: number of zone substations | F56: =D56-E56 -> 0
B57: Replacement of crossarms/insulator sets – pole top fire mitigation | C57: number of crossarms/sets | F57: 0
B58: Replacement of crossarms – based on age and condition | C58: number of crossarms | F58: 0
B59: Replacement of poles – based on age and condition | C59: number of poles | F59: 0
B60: Stake poles – based on age and condition | C60: number of poles | F60: 0
B61: Replacement of undersized poles | C61: number of poles | F61: 0
B62: Stake undersized poles | C62: number of poles | F62: 0
B63: Replacement of overhead conductor – mainly steel | C63: kms | F63: 0
B64: Service line clearance – overhead services requiring relocation | C64: number of services | F64: 0
B65: Service line clearance – overhead services requiring undergrounding | C65: number of services | F65: 0
B66: Replacement of 22kV distribution feeders with ABC/underground cabling | C66: number of feeders | F66: 0
B67: Replacement of SWER with covered carbon core conductor or equivalent | C67: kms | F67: 0
B68: Replacement of SWER with ABC | C68: kms | F68: 0
B69: Replacement of SWER with underground | C69: kms | F69: 0
B70: Replacement of surge diverters (neptune configuration) | C70: number of units | F70: =D70-E70 -> 0
B71: Replacement of surge diverters (single phase or three phase) | C71: number of units | F71: 0
B72: =IF(ISBLANK(B39),"",B39) ->  | F72: =D72-E72 -> 0
B73: =IF(ISBLANK(B40),"",B40) ->  | F73: 0
F74: 0
F75: 0
F76: 0
F77: 0
F78: 0
B79: To enter further activities - please copy row from above and "insert copied cells" into a row above this row.
B82: 7.12.2.2 - EXPENDITURE
B83: Activity | C83: Units | D83: Exclusive of Margins & Overheads | G83: Value of Margins & Overheads | J83: Reasons for Difference
D84: AER expected expenditure | E84: Actual expenditure | F84: Difference | G84: AER expected expenditure | H84: Actual expenditure | I84: Difference
D85: $0's, Nominal | G85: $0's, Nominal
B86: Planned non-preferred services replacements | C86: number of services | F86: =D86*$C$8-E86 -> 0 | I86: =G86*$C$8-H86 -> 0
B87: Planned replacement of non-preferred services due to height | C87: number of services | F87: =D87*$C$8-E87 -> 0 | I87: =G87*$C$8-H87 -> 0
B88: Removal of public lighting switchwire | C88: number of spans removed | F88: 0 | I88: 0
B89: Replacement of existing SWER lines with 22kV overhead bare conductor | C89: kms of SWER | F89: 0 | I89: 0
B90: Installation of GFN and associated equipment at zone substations | C90: number of zone substations | F90: 0 | I90: 0
B91: Replacement of crossarms/insulator sets – pole top fire mitigation | C91: number of crossarms/sets | F91: 0 | I91: 0
B92: Replacement of crossarms – based on age and condition | C92: number of crossarms | F92: 0 | I92: 0
B93: Replacement of poles – based on age and condition | C93: number of poles | F93: 0 | I93: 0
B94: Stake poles – based on age and condition | C94: number of poles | F94: 0 | I94: 0
B95: Replacement of undersized poles | C95: number of poles | F95: 0 | I95: 0
B96: Stake undersized poles | C96: number of poles | F96: 0 | I96: 0
B97: Replacement of overhead conductor – mainly steel | C97: kms | F97: 0 | I97: 0
B98: Service line clearance – overhead services requiring relocation | C98: number of services | F98: 0 | I98: 0
B99: Service line clearance – overhead services requiring undergrounding | C99: number of services | F99: 0 | I99: 0
B100: Replacement of 22kV distribution feeders with ABC/underground cabling | C100: number of feeders | F100: 0 | I100: 0
B101: Replacement of SWER with covered carbon core conductor or equivalent | C101: kms | F101: 0 | I101: 0
B102: Replacement of SWER with ABC | C102: kms | F102: 0 | I102: 0
B103: Replacement of SWER with underground | C103: kms | F103: 0 | I103: 0
B104: Replacement of surge diverters (neptune configuration) | C104: number of units | F104: 0 | I104: 0
B105: Replacement of surge diverters (single phase or three phase) | C105: number of units | F105: 0 | I105: 0
B106: =IF(ISBLANK(B39),"",B39) ->  | C106: =IF(ISBLANK(C72),"",C72) ->  | F106: 0 | I106: 0
F107: =D107*$C$8-E107 -> 0 | I107: =G107*$C$8-H107 -> 0
F108: 0 | I108: 0
F109: 0 | I109: 0
F110: 0 | I110: 0
F111: 0 | I111: 0
F112: 0 | I112: 0
B113: To enter further activities - please copy row from above and "insert copied cells" into a row above this row.
B117: 7.12.2.3 - UNIT COSTS
B118: Activity | D118: AER expected | E118: Actual | F118: Difference | G118: Reasons for Difference
D119: $0's, Per Unit
B120: Planned non-preferred services replacements | F120: =D120*$C$8-E120 -> 0
B121: Planned replacement of non-preferred services due to height | F121: 0
B122: Removal of public lighting switchwire | F122: 0
B123: Replacement of existing SWER lines with 22kV overhead bare conductor | F123: 0
B124: Installation of GFN and associated equipment at zone substations | F124: 0
B125: Replacement of crossarms/insulator sets – pole top fire mitigation | F125: 0
B126: Replacement of crossarms – based on age and condition | F126: 0
B127: Replacement of poles – based on age and condition | F127: 0
B128: Stake poles – based on age and condition | F128: 0
B129: Replacement of undersized poles | F129: 0
B130: Stake undersized poles | F130: 0
B131: Replacement of overhead conductor – mainly steel | F131: 0
B132: Service line clearance – overhead services requiring relocation | F132: 0
B133: Service line clearance – overhead services requiring undergrounding | F133: 0
B134: Replacement of 22kV distribution feeders with ABC/underground cabling | F134: 0
B135: Replacement of SWER with covered carbon core conductor or equivalent | F135: 0
B136: Replacement of SWER with ABC | F136: 0
B137: Replacement of SWER with underground | F137: 0
B138: Replacement of surge diverters (neptune configuration) | F138: 0
B139: Replacement of surge diverters (single phase or three phase) | F139: 0
B140: =IF(ISBLANK(B39),"",B39) ->  | F140: 0
F141: 0
F142: 0
F143: 0
F144: 0
F145: 0
F146: 0
B147: To enter further activities - please copy row from above and "insert copied cells" into a row above this row.
B150: 7.12.2.4 - CONTINGENT PROJECT APPLICATIONS - VOLUMES APPROVED
B151: Activity | C151: Units | D151: Volume approved under contingent project applications | E151: Actual volumes | F151: Difference
F152: =E152-D152 -> 0
F153: 0
F154: 0
F155: 0
F156: 0
F157: 0
F158: 0
F159: 0
B160: To enter further activities - please copy row from above and "insert copied cells" into a row above this row.
B162: 7.12.2.5 - CONTINGENT PROJECT APPLICATIONS - EXPENDITURE APPROVED
B163: Activity | C163: Exclusive of Margins & Overheads | F163: Value of Margins & Overheads | I163: Reasons for Difference
C164: Expenditure approved under contingent project applications | D164: Actual expenditure | E164: Difference | F164: Expenditure approved under contingent project applications | G164: Actual expenditure | H164: Difference
C165: $0's, Nominal | F165: $0's, Nominal
B166: =IF(ISBLANK(B152),"",B152) ->  | E166: =C166-D166 -> 0 | H166: =F166-G166 -> 0
B167: =IF(ISBLANK(B153),"",B153) ->  | E167: =C167-D167 -> 0 | H167: =F167-G167 -> 0
E168: 0 | H168: 0
E169: 0 | H169: 0
E170: 0 | H170: 0
E171: 0 | H171: 0
E172: 0 | H172: 0
E173: 0 | H173: 0
B174: To enter further activities - please copy row from above and "insert copied cells" into a row above this row.
B178: 7.12.3 - SAFETY RELATED
B180: 7.12.3.1 - NUMBER OF ACTIVITIES
B181: Activity | C181: Units | D181: AER expected volumes | E181: Actual units | F181: Difference | G181: Reasons for Difference
B182: Planned non-preferred services replacements | C182: number of services | F182: =D182-E182 -> 0
B183: Planned replacement of non-preferred services due to height | C183: number of services | F183: =D183-E183 -> 0
B184: Removal of public lighting switchwire | C184: number of spans removed | F184: 0
B185: Replacement of existing SWER lines with 22kV overhead bare conductor | C185: kms of SWER | F185: 0
B186: Installation of GFN and associated equipment at zone substations | C186: number of zone substations | F186: 0
B187: Replacement of crossarms/insulator sets – pole top fire mitigation | C187: number of crossarms/sets | F187: 0
B188: Replacement of crossarms – based on age and condition | C188: number of crossarms | F188: 0
B189: Replacement of poles – based on age and condition | C189: number of poles | F189: 0
B190: Stake poles – based on age and condition | C190: number of poles | F190: 0
B191: Replacement of undersized poles | C191: number of poles | F191: 0
B192: Stake undersized poles | C192: number of poles | F192: 0
B193: Replacement of overhead conductor – mainly steel | C193: kms | F193: 0
B194: Service line clearance – overhead services requiring relocation | C194: number of services | F194: 0
B195: Service line clearance – overhead services requiring undergrounding | C195: number of services | F195: 0
B196: Replacement of 22kV distribution feeders with ABC/underground cabling | C196: number of feeders | F196: 0
B197: Replacement of SWER with covered carbon core conductor or equivalent | C197: kms | F197: 0
B198: Replacement of SWER with ABC | C198: kms | F198: =D198-E198 -> 0
B199: Replacement of SWER with underground | C199: kms | F199: =D199-E199 -> 0
B200: Replacement of surge diverters (neptune configuration) | C200: number of units | F200: 0
B201: Replacement of surge diverters (single phase or three phase) | C201: number of units | F201: 0
B202: =IF(ISBLANK(B39),"",B39) ->  | C202: =IF(ISBLANK(C72),"",C72) ->  | F202: 0
F203: 0
F204: =D204-E204 -> 0
F205: =D205-E205 -> 0
F206: =D206-E206 -> 0
F207: 0
F208: 0
B209: To enter further activities - please copy row from above and "insert copied cells" into a row above this row.
B212: 7.12.3.2 - EXPENDITURE
B213: Activity | C213: Units | D213: Exclusive of Margins & Overheads | G213: Value of Margins & Overheads | J213: Reasons for Difference
D214: AER expected expenditure | E214: Actual expenditure | F214: Difference | G214: AER expected expenditure | H214: Actual expenditure | I214: Difference
D215: $0's, Nominal | G215: $0's, Nominal
B216: Planned non-preferred services replacements | C216: number of services | F216: =D216*$C$8-E216 -> 0 | I216: =G216*$C$8-H216 -> 0
B217: Planned replacement of non-preferred services due to height | C217: number of services | F217: =D217*$C$8-E217 -> 0 | I217: =G217*$C$8-H217 -> 0
B218: Removal of public lighting switchwire | C218: number of spans removed | F218: 0 | I218: 0
B219: Replacement of existing SWER lines with 22kV overhead bare conductor | C219: kms of SWER | F219: 0 | I219: 0
B220: Installation of GFN and associated equipment at zone substations | C220: number of zone substations | F220: 0 | I220: 0
B221: Replacement of crossarms/insulator sets – pole top fire mitigation | C221: number of crossarms/sets | F221: 0 | I221: 0
B222: Replacement of crossarms – based on age and condition | C222: number of crossarms | F222: 0 | I222: 0
B223: Replacement of poles – based on age and condition | C223: number of poles | F223: 0 | I223: 0
B224: Stake poles – based on age and condition | C224: number of poles | F224: 0 | I224: 0
B225: Replacement of undersized poles | C225: number of poles | F225: 0 | I225: 0
B226: Stake undersized poles | C226: number of poles | F226: 0 | I226: 0
B227: Replacement of overhead conductor – mainly steel | C227: kms | F227: 0 | I227: 0
B228: Service line clearance – overhead services requiring relocation | C228: number of services | F228: 0 | I228: 0
... 106 more rows

Sheet 7.13 TARC
B1: =(LOOKUP(dms_Model,dms_Model_List,dms_Worksheet_List)) -> REGULATORY REPORTING STATEMENT
B2: =dms_TradingName -> ActewAGL Distribution
B3: =CONCATENATE("Annual Reporting RIN Response ",CRY) -> Annual Reporting RIN Response 2015-16
B4: 7.13 - TARC
B7: 7.13.1 - TOTAL ANNUAL RETAILER CHARGES
C8: $0's
B9: TARC | C9: 246578799.1

Sheet 8.1 Income
B1: =(LOOKUP(dms_Model,dms_Model_List,dms_Worksheet_List)) -> REGULATORY REPORTING STATEMENT
B2: =dms_TradingName -> ActewAGL Distribution
B3: =CONCATENATE("Annual Reporting RIN Response ",CRY) -> Annual Reporting RIN Response 2015-16
B4: 8.1 - INCOME
B6: 8.1.1 - INCOME STATEMENT
B7: Description | C7: Audited Statutory Accounts | D7: Adjustments | E7: Distribution business | F7: Standard Control Services | G7: Alternative Control Services | L7: Negotiated Services
G8: Public Lighting | I8: Other
G9: =IF(dms_Jurisdiction="Vic","Energy efficient","") ->  | H9: =IF(dms_Jurisdiction="Vic","Non-energy efficient","") ->  | I9: Connection services | J9: Metering services | K9: Ancillary network services
C10: $0's, nominal
B12: 8.1.1.1 - REVENUE
B13: Distribution revenue | C13: 213601148.7 | D13: 50850414.12 | E13: 162750734.5 | F13: 160131305.9 | I13: 0 | J13: 2619428.62 | K13: 0
B14: Cross boundary revenue | C14: 0 | D14: 0 | E14: 0 | F14: 0 | I14: 0 | J14: 0 | K14: 0
B15: Contributions | C15: 13060911.6 | D15: 21476.57 | E15: 13039435.03 | F15: 8202903.95 | I15: 2645851.59 | J15: 0 | K15: 2190679.49
B16: Interest income | C16: 1455774.74 | D16: 1455774.74 | E16: 0 | F16: 0 | I16: 0 | J16: 0 | K16: 0
B17: Jurisdictional scheme amounts | C17: 30303507.67 | D17: 0 | E17: 30303507.67 | F17: 30303507.67 | I17: 0 | J17: 0 | K17: 0
B18: Profit from sale of fixed assets | C18: 52166.2 | D18: 9513.89 | E18: 42652.31 | F18: 42652.31 | I18: 0 | J18: 0 | K18: 0
B19: TUOS revenue | C19: 64791435.24 | D19: 0 | E19: 64791435.24 | F19: 64791435.24 | I19: 0 | J19: 0 | K19: 0
B20: Pass through revenue (F-factor) | D20: 0 | E20: 0
B21: Other Revenue | C21: 25284249.08 | D21: 21564136.82 | E21: 3720112.26 | I21: 0 | J21: 0 | K21: 3720112.26
B22: Total revenue | C22: =SUM(C13:C21) -> 348549193.2 | D22: =SUM(D13:D21) -> 73901316.14 | E22: =SUM(E13:E21) -> 274647877 | F22: =SUM(F13:F21) -> 263471805.1 | G22: =SUM(G13:G21) -> 0 | H22: 0 | I22: =SUM(I13:I21) -> 2645851.59 | J22: =SUM(J13:J21) -> 2619428.62 | K22: =SUM(K13:K21) -> 5910791.75 | L22: 0
B24: 8.1.1.2 - EXPENDITURE
B25: TUOS expenditure | C25: 34734573.29 | D25: -24421296.76 | E25: 59155870.05 | F25: 59155870.05 | I25: 0 | J25: 0 | K25: 0
B26: Avoided TUOS expenditure | C26: 41170.56 | D26: 0 | E26: 41170.56 | F26: 41170.56 | I26: 0 | J26: 0 | K26: 0
B27: Cross boundary expenditure | D27: 0 | E27: 0
B28: Depreciation | C28: 50558497.75 | D28: 15944357.08 | E28: 34614140.67 | F28: 34614140.67 | I28: 0 | J28: 0 | K28: 0
B29: Finance charges | C29: 781126.2 | D29: 289282.38 | E29: 491843.82 | F29: 491843.82 | I29: 0 | J29: 0 | K29: 0
B30: Impairment losses | C30: 0 | D30: 0 | E30: 0 | F30: 0 | I30: 0 | J30: 0 | K30: 0
B31: Jurisdictional scheme amounts | C31: 36110984.73 | D31: 8179749.86 | E31: 27931234.87 | F31: 27931234.87 | I31: 0 | J31: 0 | K31: 0
B32: Loss from sale of fixed assets | C32: 0 | D32: 0 | E32: 0 | F32: 0 | I32: 0 | J32: 0 | K32: 0
B33: Maintenance expenditure | C33: 0 | D33: -12806426.7 | E33: 12806426.7 | F33: 12806426.7 | I33: 0 | J33: 0 | K33: 0
B34: Operating expenditure excluding maintenance expenditure | C34: 82534037.44 | D34: 47064452.06 | E34: 35469585.38 | F34: 27764048.18 | I34: 0 | J34: 3530519.29 | K34: 4175017.91
B35: Other | C35: 3338188.54 | D35: 459415.78 | E35: 2878772.76 | F35: 2878772.76 | I35: 0 | J35: 0 | K35: 0
B37: 8.1.1.3 - PROFIT
B38: Profit before tax (PBT) | C38: =C22-SUM(C25:C35) -> 140450614.7 | D38: =D22-SUM(D25:D35) -> 39191782.44 | E38: =E22-SUM(E25:E35) -> 101258832.2 | F38: =F22-SUM(F25:F35) -> 97788297.47 | G38: =G22-SUM(G25:G35) -> 0 | H38: =H22-SUM(H25:H35) -> 0 | I38: =I22-SUM(I25:I35) -> 2645851.59 | J38: =J22-SUM(J25:J35) -> -911090.67 | K38: =K22-SUM(K25:K35) -> 1735773.84 | L38: 0
B39: Income tax expenses (/ benefit)
B40: Profit after tax | C40: =C38-C39 -> 140450614.7 | D40: =D38-D39 -> 39191782.44 | E40: =E38-E39 -> 101258832.2 | F40: =F38-F39 -> 97788297.47 | G40: =G38-G39 -> 0 | H40: 0 | I40: =I38-I39 -> 2645851.59 | J40: =J38-J39 -> -911090.67 | K40: =K38-K39 -> 1735773.84 | L40: 0

Sheet 8.2 Capex
B1: =(LOOKUP(dms_Model,dms_Model_List,dms_Worksheet_List)) -> REGULATORY REPORTING STATEMENT
B2: =dms_TradingName -> ActewAGL Distribution
B3: =CONCATENATE("Annual Reporting RIN Response ",CRY) -> Annual Reporting RIN Response 2015-16
B4: 8.2 - CAPEX
B6: Instructions
B7: Reported expenditure must EXCLUDE capital contributions (except tables 8.2.1 and 8.2.5 which should include all capital contributions).
B8: =CONCATENATE("Forecast expenditure is to be taken from ",dms_TradingName,"'s ",dms_DeterminationRef,".") -> Forecast expenditure is to be taken from ActewAGL Distribution's 2014-19 Distribution Determination.
B9: If allocating based on assumptions then provide method in Basis of Preparation. All adjustments must be explained in Basis of Preparation with supporting documentation attached.
B11: For tables 8.2.1 and 8.2.3: Reported expenditure must INCLUDE any profit margins or management fees paid directly or indirectly to related party contractors (not including actual incurred expenses of the related party contractor) for the regulatory reporting period. 'Related Party Margin Expenditure' must COMPRISE ONLY profit margins or management fees paid directly or indirectly to related party contractors (not including actual incurred expenses of the related party contractor) for the regulatory reporting period.
B13: 8.2.1 - CAPEX BY PURPOSE - STANDARD CONTROL SERVICES
B15: Each line item in this table must INCLUDE the capital contributions. Total capital contributions should also be identified in the last item in the table.
B17: Description | C17: EXPENDITURE
C18: CPI adjusted Forecast | D18: Actual | E18: Difference | F18: Related Party Margin | G18: Voltage level
G19: Subtransmission | H19: HV | I19: LV | J19: Other
C20: $0's, nominal | E20: (%) | F20: $0's, nominal
B21: Asset renewal/replacement | C21: 22432159.52 | D21: =SUM(G21:J21) -> 17058259.86 | E21: =IF(C21=0,1,(D21-C21)/C21*1) -> -0.239562297 | G21: 2102024.756 | H21: 969437.3272 | I21: 12198247.06 | J21: 1788550.717
B22: Customer initiated | C22: 16015705.75 | D22: =SUM(G22:J22) -> 18281691.72 | E22: 0.1414852397 | G22: 24836.21507 | H22: 8934705.653 | I22: 9215977.442 | J22: 106172.4095
B23: Augmentation | C23: 9164616.664 | D23: 3717260.49 | E23: -0.5943899645 | G23: 3017271.923 | H23: 358572.6246 | I23: 0 | J23: 341415.9427
B24: Reliability and Quality Improvements | C24: 1264916.109 | D24: 224454.12 | E24: -0.8225541454 | G24: 65758.86 | H24: 0 | I24: 0 | J24: 158695.26
B25: Non-Network | C25: 10810615.67 | D25: 15388990.03 | E25: 0.4235072733 | G25: 0 | H25: 0 | I25: 0 | J25: 15388990.03
B26: Less Capital Contributions | C26: -6334367.862 | D26: -8175862.596 | E26: 0.2907148391 | G26: -367900.1631 | H26: -3775358.045 | I26: -3894209.382 | J26: -138395.006
D27: 0 | E27: 1
B28: Corporate Overhead | C28: 10235961.55 | D28: 13300852.37 | E28: 0.2994238308 | G28: 1340476.598 | H28: 3053828.262 | I28: 5319989.176 | J28: 3586558.334
D29: =SUM(G29:J29) -> 0 | E29: =IF(C29=0,1,(D29-C29)/C29*1) -> 1
D30: =SUM(G30:J30) -> 0 | E30: 1
D31: 0 | E31: 1
D32: 0 | E32: 1
D33: 0 | E33: 1
D34: 0 | E34: 1
D35: 0 | E35: 1
B36: Capital contributions included in the above | D36: 0 | E36: 1
B37: Total | C37: =SUM(C21:C35) -> 63589607.41 | D37: =SUM(D21:D35) -> 59795646 | E37: =IF(C37=0,1,(D37-C37)/C37*1) -> -0.05966323056 | G37: =SUM(G21:G35) -> 6182468.188 | H37: =SUM(H21:H35) -> 9541185.822 | I37: =SUM(I21:I35) -> 22840004.3 | J37: =SUM(J21:J35) -> 21231987.69
B40: 8.2.2 - CAPEX BY PURPOSE - MATERIAL DIFFERENCE EXPLANATION
B42: Where the difference between forecast and actual expenditure shown in table 8.2.1 is a Material Difference please explain the main factors driving the difference.
B44: Description | C44: Reason for material difference
B45: Asset renewal/replacement | C45: Zone Building Refurbishment and Asbestos Removal Program has been rolled into future regulatory years. Around December 2014 the pole asset strategy was reviewed with a view to improved Reliability Centred Maintenance (RCM) and better understanding of the asset’s condition and associated risk. Pole inspection cycles (amongst other things) were refined, reducing the number of poles requiring replacement. Applying a continuous improvement approach, the criteria for condemning poles was again reviewed and modified in December 2015/January 2016, further reducing the number of poles requiring replacement.
B46: Customer initiated | C46: Stronger customer growth than expected.
B47: Augmentation | C47: Three large augmentation projects have been rolled forward into future financial years being the Provisional Power Transformer, East Lake Zone Substation Feeder Installations & ANU Feeders as these projects are primarily driven by customer load growth which hasn’t been as rapid as originally forecast, timing has changed to reflect this & TNSP Metering Installation delayed, being implemented in 2016/17
B48: Reliability and Quality Improvements | C48: Optical Ground Wire prgram has been redefined as augmentation.
B49: Non-Network | C49: Network Billing Project was delayed from go-live 30 June 2014 to September 2014. No estimated CAPEX for post go-live. Expenditure incurred to remediate defect issues were required. GIS ArcFM Costs incurred in 2015/16 were for developing functionality to assist in supporting the investment in ENIT Telvent.
B50: Less Capital Contributions | C50: Stronger customer growth than expected.
B52: Corporate Overhead
B62: 8.2.3 - CAPEX OTHER
C63: EXPENDITURE
C64: CPI adjusted Forecast | D64: Actual | E64: Difference | F64: Related Party Margin | G64: Voltage level
G65: Subtransmission | H65: HV | I65: LV | J65: Other
C66: $0's, nominal | E66: (%) | F66: $0's, nominal
B67: Public lighting
B68: =IF(dms_Jurisdiction="Vic","Energy Efficient", "Total") -> Total | D68: =SUM(G68:J68) -> 0 | E68: =IF(C68=0,1,((D68-C68)/C68)*1) -> 1
B69: =IF(dms_Jurisdiction="Vic","Non-energy efficient", "") ->  | D69: =SUM(G69:J69) -> 0 | E69: =IF(C69=0,1,((D69-C69)/C69)*1) -> 1
B70: Alternative Control Services
B71: Connection services | D71: =SUM(G71:J71) -> 0 | E71: =IF(C71=0,1,((D71-C71)/C71)*1) -> 1
B72: Metering services | C72: 1689621.54 | D72: =SUM(G72:J72) -> 684685 | E72: =IF(C72=0,1,((D72-C72)/C72)*1) -> -0.5947701992 | J72: 684685
B73: Ancillary network services | D73: 0 | E73: =IF(C73=0,1,((D73-C73)/C73)*1) -> 1
B74: Negotiated Services
B75: Negotiated services | D75: =SUM(G75:J75) -> 0 | E75: =IF(C75=0,1,((D75-C75)/C75)*1) -> 1
B76: Total | C76: =SUM(C68:C69,C71:C73,C75) -> 1689621.54 | D76: =SUM(D68:D69,D71:D73,D75) -> 684685 | G76: =SUM(G68:G69,G71:G73,G75) -> 0 | H76: =SUM(H68:H69,H71:H73,H75) -> 0 | I76: =SUM(I68:I69,I71:I73,I75) -> 0 | J76: =SUM(J68:J69,J71:J73,J75) -> 684685
B80: 8.2.4 - CAPEX BY ASSET CLASS
B82: =CONCATENATE(dms_TradingName, " to enter in Table 8.2.4 each Asset Class specified in its current determination as listed in the AER's final decision in its Roll Forward Model and Post-tax Revenue Model and enter information against that Asset Class.") -> ActewAGL Distribution to enter in Table 8.2.4 each Asset Class specified in its current determination as listed in the AER's final decision in its Roll Forward Model and Post-tax Revenue Model and enter information against that Asset Class.
B84: Asset class | C84: CPI adjusted Forecast | D84: Actual | E84: Difference | F84: Movements in provisions allocated to as-incurred capex
C86: $0's, nominal | E86: (%) | F86: $0's, nominal
B87: Sub-transmission Overhead | C87: 2490039.776 | D87: 3860334.761 | E87: =IF(C87=0,1,((D87-C87)/C87)*1) -> 0.5503104805
B88: Sub-transmission Underground | C88: 0 | D88: 33364.91314 | E88: 1
B89: Zone Substation | C89: 7848571.163 | D89: 3541388.002 | E89: -0.5487856416
B90: Distribution Substations | C90: 8440577.985 | D90: 10560690.19 | E90: 0.2511809272
B91: Distribution Overhead Lines | C91: 17458797.73 | D91: 11536420.51 | E91: -0.3392202208
B92: Distribution Underground Lines | C92: 19341557.97 | D92: 18102881.18 | E92: -0.06404224513
B93: IT & Communication Systems (Networks) | C93: 4440882.497 | D93: 17364161.68 | E93: 2.910070056
B94: Motor Vehicles | C94: 4307937.771 | D94: 631565.78 | E94: -0.8533948693
B95: Other Non-System Assets (Networks) | C95: 534097.0367 | D95: 534906.92 | E95: 0.001516359904
B96: IT Systems (Corporate) | C96: 1397673.91 | D96: 1109032.775 | E96: -0.2065153628
B97: Telecommunications (Corporate) | C97: 0 | D97: 0 | E97: 1
B98: Other Non-System Assets (Corporate) | C98: 695397.0492 | D98: 289940.7778 | E98: -0.5830572215
B99: Land | C99: 0 | D99: 0 | E99: 1
B100: Buildings | C100: 2968442.378 | D100: 406820.65 | E100: -0.8629514748
E101: =IF(C101=0,1,((D101-C101)/C101)*1) -> 1
E102: 1
E103: 1
E104: 1
E105: 1
E106: 1
E107: =IF(C107=0,1,((D107-C107)/C107)*1) -> 1
E108: 1
E109: 1
E110: 1
E111: 1
E112: 1
E113: 1
E114: 1
E115: 1
E116: 1
E117: =IF(C117=0,1,((D117-C117)/C117)*1) -> 1
E118: 1
E119: 1
E120: 1
E121: 1
E122: 1
E123: 1
E124: 1
E125: 1
E126: 1
E127: 1
E128: 1
E129: 1
E130: 1
E131: 1
E132: 1
E133: 1
E134: 1
E135: 1
E136: 1
B137: Total | C137: =SUM(C87:C136) -> 69923975.27 | D137: =SUM(D87:D136) -> 67971508.13 | E137: =IF(C137=0,1,((D137-C137)/C137)*1) -> -0.02792271364 | F137: =SUM(F87:F136) -> 0
B140: 8.2.5 - CAPITAL CONTRIBUTIONS BY ASSET CLASS
B141: Asset class | C141: CPI Adjusted Forecast | D141: Actual | E141: Difference
C143: $0's, nominal | E143: (%)
B144: Sub-transmission Overhead | C144: 0 | D144: 15394.19239 | E144: =IF(C144=0,1,((D144-C144)/C144)*1) -> 1
B145: Sub-transmission Underground | C145: 0 | D145: 49623.16994 | E145: 1
B146: Zone Substation | C146: 75162.09085 | D146: 302882.8007 | E146: 3.029728249
B147: Distribution Substations | C147: 2554235.784 | D147: 3724971.973 | E147: 0.4583508682
B148: Distribution Overhead Lines | C148: 232771.6185 | D148: 180503.035 | E148: -0.2245487822
B149: Distribution Underground Lines | C149: 3472198.368 | D149: 3764679.58 | E149: 0.08423516758
B150: IT & Communication Systems (Networks) | C150: 0 | D150: 137807.8446 | E150: 1
B151: Motor Vehicles | C151: 0 | D151: 0 | E151: =IF(C151=0,1,((D151-C151)/C151)*1) -> 1
B152: Other Non-System Assets (Networks) | C152: 0 | D152: 0 | E152: 1
B153: IT Systems (Corporate) | C153: 0 | D153: 0 | E153: 1
B154: Telecommunications (Corporate) | C154: 0 | D154: 0 | E154: 1
B155: Other Non-System Assets (Corporate) | C155: 0 | D155: 0 | E155: 1
B156: Land | C156: 0 | D156: 0 | E156: 1
B157: Buildings | C157: 0 | D157: 0 | E157: 1
B158: =IF(ISBLANK(B101),"",B101) ->  | E158: 1
E159: 1
E160: 1
E161: 1
E162: 1
E163: 1
E164: =IF(C164=0,1,((D164-C164)/C164)*1) -> 1
E165: 1
E166: 1
E167: 1
E168: 1
E169: 1
E170: 1
E171: 1
E172: 1
E173: =IF(C173=0,1,((D173-C173)/C173)*1) -> 1
E174: 1
E175: 1
B176: =IF(ISBLANK(B119),"",B119) ->  | E176: 1
E177: 1
E178: 1
E179: 1
E180: 1
E181: 1
E182: 1
E183: =IF(C183=0,1,((D183-C183)/C183)*1) -> 1
E184: 1
E185: 1
E186: 1
E187: 1
E188: 1
E189: 1
E190: 1
E191: 1
E192: 1
E193: 1
B194: Total | C194: =SUM(C144:C193) -> 6334367.862 | D194: =SUM(D144:D193) -> 8175862.596 | E194: 0.2907148391
B197: 8.2.6 - DISPOSALS BY ASSET CLASS
B198: Asset class | C198: CPI Adjusted Forecast | D198: Actual | E198: Difference
C200: $0's, nominal | E200: (%)
B201: Sub-transmission Overhead | C201: 0 | D201: 0 | E201: =IF(C201=0,1,((D201-C201)/C201)*1) -> 1
B202: Sub-transmission Underground | C202: 0 | D202: 0 | E202: =IF(C202=0,1,((D202-C202)/C202)*1) -> 1
B203: Zone Substation | C203: 0 | D203: 0 | E203: 1
B204: Distribution Substations | C204: 0 | D204: 0 | E204: 1
B205: Distribution Overhead Lines | C205: 0 | D205: 0 | E205: 1
B206: Distribution Underground Lines | C206: 0 | D206: 0 | E206: 1
B207: IT & Communication Systems (Networks) | C207: 0 | D207: 0 | E207: 1
B208: Motor Vehicles | C208: 987361.9469 | D208: 75145.04 | E208: =IF(C208=0,1,((D208-C208)/C208)*1) -> -0.9238931172
B209: Other Non-System Assets (Networks) | C209: 0 | D209: 0 | E209: 1
B210: IT Systems (Corporate) | C210: 0 | D210: 0 | E210: 1
B211: Telecommunications (Corporate) | C211: 0 | D211: 0 | E211: 1
B212: Other Non-System Assets (Corporate) | C212: 0 | D212: 0 | E212: 1
B213: Land | C213: 0 | D213: 0 | E213: 1
B214: Buildings | C214: 0 | D214: 0 | E214: 1
B215: =IF(ISBLANK(B101),"",B101) ->  | E215: 1
E216: 1
E217: 1
E218: 1
E219: 1
E220: 1
E221: 1
E222: 1
E223: 1
E224: 1
E225: 1
E226: 1
E227: 1
E228: 1
E229: 1
E230: 1
E231: =IF(C231=0,1,((D231-C231)/C231)*1) -> 1
... 20 more rows

Sheet 8.4 Opex
B1: =(LOOKUP(dms_Model,dms_Model_List,dms_Worksheet_List)) -> REGULATORY REPORTING STATEMENT
B2: =dms_TradingName -> ActewAGL Distribution
B3: =CONCATENATE("Annual Reporting RIN Response ",CRY) -> Annual Reporting RIN Response 2015-16
B4: 8.4 OPEX
B6: Instructions
B7: =CONCATENATE("Forecast expenditure is to be taken from ",dms_TradingName,"'s ",dms_DeterminationRef,".") -> Forecast expenditure is to be taken from ActewAGL Distribution's 2014-19 Distribution Determination.
B8: If allocating based on assumptions then provide method in Basis of Preparation. All adjustments must be explained in Basis of Preparation with supporting documentation attached.
B10: 8.4.1 - OPERATING & MAINTENANCE EXPENDITURE - BY PURPOSE
B13: =CONCATENATE(dms_TradingName," is to list the operating expenditure categories identified in ", dms_TradingName,"'s regulatory proposal at table 3.2.1.1 current opex categories and cost allocations.") -> ActewAGL Distribution is to list the operating expenditure categories identified in ActewAGL Distribution's regulatory proposal at table 3.2.1.1 current opex categories and cost allocations.
B14: =CONCATENATE(dms_TradingName, " must specify any expenditure category where the expense is more than 5 per cent of the total standard control services operating expenditure.") -> ActewAGL Distribution must specify any expenditure category where the expense is more than 5 per cent of the total standard control services operating expenditure.
B15: Reported operating expenditure must INCLUDE any profit margins or management fees paid directly or indirectly to related party contractors (not including actual incurred expenditure of the related party contractor) for the regulatory reporting period.
B17: Opex category | C17: Audited Statutory Accounts | D17: Adjustments | E17: Distribution business | F17: Standard Control Services | I17: Alternative Control Services | N17: Negotiated Services
F18: CPI Adjusted Forecast | G18: Actual | H18: Difference | I18: Public Lighting | K18: Other
I19: =IF(dms_Jurisdiction="Vic","Energy efficient","") ->  | J19: =IF(dms_Jurisdiction="Vic","Non-energy efficient","") ->  | K19: Connection services | L19: Metering services | M19: Ancillary network services
C20: $0's, nominal | H20: % | I20: $0's, nominal
B21: Zone Substation maintenance | F21: 2096386.161 | G21: 1151945.31 | H21: =IF(F21=0,1,((G21-F21)/F21)*1) -> -0.4505090086
B22: Transmission maintenance | F22: 624968.021 | G22: 74745.88 | H22: -0.8804004725
B23: Distribution maintenance | F23: 8140237.786 | G23: 8057535.52 | H23: -0.0101596868
B24: Secondary Systems maintenance | F24: 872276.6589 | G24: 771029.96 | H24: -0.1160717736
B25: Property Services maintenance | F25: 170696.7216 | G25: 574080.42 | H25: 2.363160198
B26: Vegetation Management | F26: 2524981.116 | G26: 2177089.61 | H26: -0.1377798445
B27: System Control | F27: 2269724.287 | G27: 1688212.02 | H27: -0.2562039232
B28: Fault Call Centre | F28: 1806891.604 | G28: 2747681.21 | H28: 0.5206674293
B29: IT Support | F29: 3413969.985 | G29: 5204127.2 | H29: 0.5243623182
B30: Customer Support | F30: 2207729.679 | G30: 3538366.45 | H30: 0.6027172543
B31: Quality, Environmental and Safety Systems | F31: 1993486.513 | G31: 1053301.53 | H31: -0.4716284643
B32: Executive & Financial Management | F32: 871144.6955 | G32: 1395271.2 | H32: 0.6016526384
B33: Regulatory and NEM | F33: 2349058.92 | G33: 4526500.77 | H33: 0.9269422031
B34: Other Operating Expenses | F34: 2866444.927 | G34: 2806299.51 | H34: -0.02098258237
B35: Advertising & marketing | F35: 918593.3688 | G35: 985423.84 | H35: 0.07275305212
B36: Corporate Service Charges (Net) | F36: 6621805.081 | G36: 2372997.285 | H36: -0.6416389103
B37: Franchise Billing and Revenue Operations | F37: 1145175.884 | G37: 1323332.12 | H37: 0.1555710683
B38: Training Apprenticeship & Engineers | F38: 3475333.227 | G38: 39233.31 | H38: -0.9887109214
B39: Business Overhead | F39: 1411752.818 | G39: 1631726.86 | H39: 0.1558162586
B40: Overhead Recoveries | F40: 3408195.433 | G40: -1556721.13 | H40: -1.456758176
B41: Metering Maintenance Costs | H41: =IF(F41=0,1,((G41-F41)/F41)*1) -> 1 | L41: 400830.6
B42: Metering Operating Costs | H42: =IF(F42=0,1,((G42-F42)/F42)*1) -> 1 | L42: 2506444.74
B43: Metering Overhead | H43: 1 | L43: 623243.95
B44: Ancillary Services expenditures | H44: 1 | M44: 3508611.51
B45: Ancillary Services Overhead | H45: 1 | M45: 666406.4
H46: 1
H47: 1
H48: 1
H49: 1
H50: 1
H51: 1
H52: 1
H53: 1
H54: 1
H55: 1
H56: =IF(F56=0,1,((G56-F56)/F56)*1) -> 1
H57: 1
H58: 1
H59: 1
H60: 1
H61: 1
H62: 1
H63: 1
H64: 1
H65: 1
H66: 1
H67: 1
H68: 1
H69: 1
H70: 1
B71: Total | C71: =SUM(C21:C70) -> 0 | D71: 0 | E71: 0 | F71: =SUM(F21:F70) -> 49188852.89 | G71: =SUM(G21:G70) -> 40562178.87 | H71: =IF(F71=0,1,((G71-F71)/F71)*1) -> -0.1753786377 | I71: =SUM(I21:I70) -> 0 | J71: 0 | K71: 0 | L71: =SUM(L21:L70) -> 3530519.29 | M71: =SUM(M21:M70) -> 4175017.91 | N71: 0
B74: 8.4.2 - OPERATING & MAINTENANCE EXPENDITURE - BY PURPOSE - MARGINS ONLY
B76: "Related party margin expenditure' must COMPRISE ONLY profit margins or management fees paid directly or indirectly to related party contractors (for expenditure that is not an actual incurred expenditure of the related party contractor) for the regulatory reporting period.
B78: Opex category | C78: Audited Statutory Accounts | D78: Adjustments | E78: Distribution business | F78: Standard Control Services | I78: Alternative Control Services | N78: Negotiated Services
F79: CPI Adjusted Forecast | G79: Actual | H79: Difference | I79: Public Lighting | K79: Other
I80: =IF(dms_Jurisdiction="Vic","Energy efficient","") ->  | J80: =IF(dms_Jurisdiction="Vic","Non-energy efficient","") ->  | K80: Connection services | L80: Metering services | M80: Ancillary network services
C81: $0's, nominal | G81: $0's, nominal | H81: per cent | I81: $0's, nominal
B82: Zone Substation maintenance | H82: =IF(F82=0,1,((G82-F82)/F82)*1) -> 1
B83: Transmission maintenance | H83: 1
B84: Distribution maintenance | H84: 1
B85: Secondary Systems maintenance | H85: 1
B86: Property Services maintenance | H86: 1
B87: Vegetation Management | H87: 1
B88: System Control | H88: 1
B89: System Control | H89: =IF(F89=0,1,((G89-F89)/F89)*1) -> 1
B90: Fault Call Centre | H90: 1
B91: IT Support | H91: 1
B92: Customer Support | H92: 1
B93: Quality, Environmental and Safety Systems | H93: 1
B94: Executive & Financial Management | H94: 1
B95: Regulatory and NEM | H95: 1
B96: Other Operating Expenses | H96: 1
B97: Advertising & marketing | H97: 1
B98: Corporate Service Charges (Net) | H98: =IF(F98=0,1,((G98-F98)/F98)*1) -> 1
B99: Franchise Billing and Revenue Operations | H99: 1
B100: Training Apprenticeship & Engineers | H100: 1
B101: Business Overhead | H101: 1
B102: Overhead Recoveries | H102: 1
B103: Metering Maintenance Costs | H103: 1
B104: Metering Operating Costs | H104: =IF(F104=0,1,((G104-F104)/F104)*1) -> 1
B105: Metering Overhead | H105: 1
B106: Ancillary Services expenditures | H106: 1
B107: Ancillary Services Overhead | H107: 1
B108: =IF(ISBLANK(B46),"",B46) ->  | H108: 1
H109: 1
H110: 1
H111: 1
H112: 1
H113: 1
H114: 1
H115: 1
H116: 1
H117: 1
H118: 1
H119: 1
H120: 1
H121: 1
H122: 1
H123: 1
H124: 1
H125: 1
H126: 1
H127: 1
H128: 1
H129: 1
H130: 1
H131: 1
H132: 1
B133: Total | C133: =SUM(C82:C132) -> 0 | D133: =SUM(D82:D132) -> 0 | E133: =SUM(E82:E132) -> 0 | F133: =SUM(F82:F132) -> 0 | G133: =SUM(G82:G132) -> 0 | H133: 1 | I133: =SUM(I82:I132) -> 0 | J133: =SUM(J82:J132) -> 0 | K133: 0 | L133: 0 | M133: =SUM(M82:M132) -> 0 | N133: =SUM(N82:N132) -> 0
B136: 8.4.3 - OPERATING & MAINTENANCE EXPENDITURE - EXPLANATION OF MATERIAL DIFFERENCE
B138: Where the difference between forecast and actual expenditure shown in table 8.4.1, column I is a Material Difference please explain the main factors driving the difference.
B140: Category | C140: Explanation
B141: Zone Substation maintenance | C141: AER's final decision was not based on AAD base year approach but have used their preferred benchmarking model as the starting point to arrive at an alternative estimate for base level of opex. Forecast is calculated using our AAD submission reduced by AER decision. Due to the final decision from the AER it is very difficult to explain any material differences. 2014/15 year was the transitional year & AAD operated to the transitional decision.
B142: Transmission maintenance | C142: As Above
B143: Secondary Systems maintenance | C143: As Above
B144: Property Services maintenance | C144: As Above
B145: System Control | C145: As Above
B146: Fault Call Centre | C146: As Above
B147: IT Support | C147: As Above
B148: Customer Support | C148: As Above
B149: Quality, Environmental and Safety Systems | C149: As Above
B150: Executive & Financial Management | C150: As Above
B151: Regulatory and NEM | C151: As Above
B152: Other Operating Expenses | C152: As Above
B153: Advertising & marketing | C153: As Above
B154: Corporate Service Charges (Net) | C154: As Above
B155: Franchise Billing and Revenue Operations | C155: As Above
B156: Training Apprenticeship & Engineers | C156: As Above. Apprentice program was ceased due to AER's decision.
B157: Business Overhead | C157: As Above
B158: Overhead Recoveries | C158: As Above

Sheet 9.5 TUoS
B1: =(LOOKUP(dms_Model,dms_Model_List,dms_Worksheet_List)) -> REGULATORY REPORTING STATEMENT
B2: =dms_TradingName -> ActewAGL Distribution
B3: =CONCATENATE("Annual Reporting RIN Response ",CRY) -> Annual Reporting RIN Response 2015-16
B4: 9.5 - TUoS AUDIT (t-2)
B6: This template collects information for annual pricing proposals from Victorian businesses only.
B8: 9.5.1 - TUOS CHARGES (AEMO)
F9: =CRY -> 2015-16
E14: Total | F14: =SUM(F10:F13) -> 0
B16: 9.5.2 - TRANSMISSION CONNECTION FEES
F17: =CRY -> 2015-16
E22: Total | F22: =SUM(F18:F21) -> 0
B24: 9.5.3 - CROSS BOUNDARY NETWORK CHARGES
B25: Distribution Business | C25: Amount (payable)/receivable
C26: $0's, nominal
C27: HV crossings | D27: Subtransmission crossings | E27: TUoS Adjustment | F27: Total
F28: =CRY -> 2015-16
F29: =IF((SUM(C29:E29)=0),"",(SUM(C29:E29))) -> 
F30: =IF((SUM(C30:E30)=0),"",(SUM(C30:E30))) -> 
B37: Total
B39: 9.5.4 - PAYMENTS TO EMBEDDED GENERATORS
B40: 9.5.4.1 - AVOIDED TRANSMISSION COSTS | F40: =CRY -> 2015-16
B49: Total | F49: =SUM(F41:F48) -> 0
B50: 9.5.4.2 - AVOIDED TUoS USAGE CHARGES | F50: =CRY -> 2015-16
B59: Total | F59: =SUM(F51:F58) -> 0
B60: Total payments to embedded generators | F60: =F59+F49 -> 0

Sheet Sheet1
